Transaction Number,Service - Fund ,Service  - Function ,Service - Cost Centre,Expense Type ,Expense Description,Supplier Name,Supplier Post Code (first 4 digits),Payment Date,Amount �
108305280,Social Care,Children & Families,Children's Resource and Home Finding Team,3rd Party Payments,Residential Care,4D CARE LTD,PE14,06/10/2023,"1,214.29"
111250237,School Transport,"Education, Inclusion and Skills",Mainstream School Transport,Transport Costs,Home to School Transport,4K TRAVEL LTD,SN1 ,27/10/2023,"5,108.40"
108313233,Property Service Charged Properties,Property,Service Charged - Carriageworks,Premises Costs,Waste,707 LTD T/A CLICK WASTE,NG24,06/10/2023,"2,892.90"
108982233,Streetsmart,Streetsmart,Waste - Processing,Transport Costs,Vehicle Hire / Contract,911 STAFFING LTD,SN2 ,11/10/2023,756.80
108983233,Streetsmart,Streetsmart,Waste - Processing,Transport Costs,Vehicle Hire / Contract,911 STAFFING LTD,SN2 ,11/10/2023,756.80
109162233,Streetsmart,Streetsmart,Waste - Processing,Transport Costs,Vehicle Hire / Contract,911 STAFFING LTD,SN2 ,13/10/2023,595.98
108984233,Streetsmart,Streetsmart,Waste - Processing,Transport Costs,Vehicle Hire / Contract,911 STAFFING LTD,SN2 ,11/10/2023,458.88
109701233,Sheltered Accomodation,Special Services,Sheltered Housing Management General,Employees,Training,A PLUS SAFETY & TRAINING SERVICES LTD,SN3 ,18/10/2023,"1,575.00"
108159233,Human Resources and Organisational Development,"People, Culture and Organisational Resilience",Organisational Development,Employees,Training,A PLUS SAFETY & TRAINING SERVICES LTD,SN3 ,06/10/2023,575.00
110552330,Homelessness and Travellers,Housing Services,Private Sector Landlords,Transfer Payments,Payment of Costs,REDACTED PERSONAL DATA,SN3 ,23/10/2023,800.00
109761233,Highways Schemes,Strategic Planning and Highways,Blunsdon High Street,Capital,Contractor Payments,A.H. WILLIS & SONS LTD,SN7 ,18/10/2023,"1,597.85"
107647234,Other Repairs,Repairs,Unallocated job costs from OPEN system,Premises Costs,Maintenance - Buildings,ABBEY ELECTRICAL (SWINDON) LTD T/A ABBEY ELECTRICAL UK,SN6 ,04/10/2023,431.14
111356240,Other Repairs,Repairs,Cyclical Maintenance,Supplies and Services,Testing / Inspection,ABBEY ELECTRICAL (SWINDON) LTD T/A ABBEY ELECTRICAL UK,SN6 ,27/10/2023,970.27
107651233,Other Repairs,Repairs,Cyclical Maintenance,Supplies and Services,Testing / Inspection,ABBEY ELECTRICAL (SWINDON) LTD T/A ABBEY ELECTRICAL UK,SN6 ,04/10/2023,"1,435.24"
110104233,Other Repairs,Repairs,Cyclical Maintenance,Supplies and Services,Testing / Inspection,ABBEY ELECTRICAL (SWINDON) LTD T/A ABBEY ELECTRICAL UK,SN6 ,20/10/2023,"1,239.07"
111625233,Other Repairs,Repairs,Cyclical Maintenance,Supplies and Services,Testing / Inspection,ABBEY ELECTRICAL (SWINDON) LTD T/A ABBEY ELECTRICAL UK,SN6 ,30/10/2023,"1,110.78"
111623233,Other Repairs,Repairs,Cyclical Maintenance,Supplies and Services,Testing / Inspection,ABBEY ELECTRICAL (SWINDON) LTD T/A ABBEY ELECTRICAL UK,SN6 ,30/10/2023,"1,368.46"
109602233,Early Years Block,Dedicated Schools Grant (DSG),Free Nursery Education Commissioning - three & four  year olds,3rd Party Payments,Contracts - Child Care,ABBEY FARM EDUCATE TOGETHER PRIMARY,SN25,18/10/2023,"6,625.32"
109504282,High Needs Block,Dedicated Schools Grant (DSG),SEN Resourcing Assessment Panel,3rd Party Payments,Top up funding - Academies and Free Schools Pre 16,ABBEY MEADS COMMUNITY PRIMARY SCHOOL,SN25,16/10/2023,"5,074.59"
109793241,Physical Support,Adults,Physical Support 65 and over,3rd Party Payments,Personal Budget - Domiciliary care,ABICARE SERVICES LTD (LIVE IN),SP2 ,20/10/2023,"1,645.50"
109793244,Physical Support,Adults,Physical Support 65 and over,3rd Party Payments,Personal Budget - Domiciliary care,ABICARE SERVICES LTD (LIVE IN),SP2 ,20/10/2023,-614.70
109793243,Learning Disabilities,Adults,Learning Disability 18 - 64,3rd Party Payments,Personal Budget - Domiciliary care,ABICARE SERVICES LTD (LIVE IN),SP2 ,20/10/2023,"1,645.50"
109793240,Physical Support,Adults,Physical Support 65 and over,3rd Party Payments,Personal Budget - Domiciliary care,ABICARE SERVICES LTD (LIVE IN),SP2 ,20/10/2023,"1,645.50"
109793239,Physical Support,Adults,Physical Support 65 and over,3rd Party Payments,Personal Budget - Domiciliary care,ABICARE SERVICES LTD (LIVE IN),SP2 ,20/10/2023,"1,645.50"
109793242,Physical Support,Adults,Physical Support 65 and over,3rd Party Payments,Personal Budget - Domiciliary care,ABICARE SERVICES LTD (LIVE IN),SP2 ,20/10/2023,"1,645.50"
111279233,Social Care,Children & Families,Placement - Care Leaver Team,3rd Party Payments,Semi Independent,ABIDING LIMITED T/A ABIDING CARE,OX4 ,27/10/2023,"7,406.62"
111278233,Social Care,Children & Families,Unaccompanied Asylum Seeking Children (UASC),3rd Party Payments,Semi Independent,ABIDING LIMITED T/A ABIDING CARE,OX4 ,27/10/2023,"11,697.70"
109602234,Early Years Block,Dedicated Schools Grant (DSG),Free Nursery Education Commissioning - three & four  year olds,3rd Party Payments,Contracts - Child Care,REDACTED PERSONAL DATA,SN2 ,18/10/2023,686.00
108032314,Care Management & Safeguarding,Adults,Swindon Safeguarding Partnershiph,Supplies and Services,Fees,ABLE TRAINING AND CONSULTANCY (LINDA COBB),TN25,06/10/2023,550.00
109035233,Streetsmart,Streetsmart,Waterside Fleet Hires,Transport Costs,Vehicle Hire / Contract,ACCESS HIRE NATIONWIDE,WF6 ,11/10/2023,"1,617.86"
110232318,Physical Support,Adults,Physical Support 18 - 64,Income,Client Contribution - Residential,ACCOMPLISH,B45 ,20/10/2023,-438.80
110232318,Physical Support,Adults,Physical Support 18 - 64,3rd Party Payments,Residential Care,ACCOMPLISH,B45 ,20/10/2023,"6,320.88"
108974233,Public Health,Public Health,DAAT,3rd Party Payments,Contract Payments,ACE TEC LEISURE,BN41,11/10/2023,"1,290.00"
110552351,Homelessness and Travellers,Housing Services,Private Sector Landlords,Transfer Payments,Payment of Costs,REDACTED PERSONAL DATA,SN8 ,23/10/2023,700.00
110552389,Homelessness and Travellers,Housing Services,Private Sector Landlords,Transfer Payments,Payment of Costs,REDACTED PERSONAL DATA,SN8 ,23/10/2023,650.00
108305234,Social Care,Children & Families,Children's Resource and Home Finding Team,3rd Party Payments,Independent Fostering Agency Placements,ACTION FOR CHILDREN,WD18,06/10/2023,"3,170.99"
108305235,Social Care,Children & Families,Children's Resource and Home Finding Team,3rd Party Payments,Independent Fostering Agency Placements,ACTION FOR CHILDREN,WD18,06/10/2023,"3,175.33"
108305237,Social Care,Children & Families,Children's Resource and Home Finding Team,3rd Party Payments,Independent Fostering Agency Placements,ACTION FOR CHILDREN,WD18,06/10/2023,"3,660.17"
108305236,Social Care,Children & Families,Children's Resource and Home Finding Team,3rd Party Payments,Independent Fostering Agency Placements,ACTION FOR CHILDREN,WD18,06/10/2023,"3,660.17"
109504338,High Needs Block,Dedicated Schools Grant (DSG),SEN Resourcing Assessment Panel,3rd Party Payments,Top up funding - Academies and Free Schools Post 16,ACTIVATE LEARNING EDUCATION TRUST,OX1 ,16/10/2023,660.83
108305259,Social Care,Children & Families,Children's Resource and Home Finding Team,3rd Party Payments,Independent Fostering Agency Placements,ACTIVE CARE SOLUTIONS LTD,B60 ,06/10/2023,"3,171.30"
111262233,Social Care,Children & Families,Unaccompanied Asylum Seeking Children (UASC),3rd Party Payments,Independent Fostering Agency Placements,ACTIVE CARE SOLUTIONS LTD,B60 ,27/10/2023,"4,345.58"
111261233,Social Care,Children & Families,Children's Resource and Home Finding Team,3rd Party Payments,Independent Fostering Agency Placements,ACTIVE CARE SOLUTIONS LTD,B60 ,27/10/2023,"6,394.68"
111266233,Social Care,Children & Families,Children's Resource and Home Finding Team,3rd Party Payments,Independent Fostering Agency Placements,ACTIVE CARE SOLUTIONS LTD,B60 ,27/10/2023,"1,211.76"
111264233,Social Care,Children & Families,Children's Resource and Home Finding Team,3rd Party Payments,Independent Fostering Agency Placements,ACTIVE CARE SOLUTIONS LTD,B60 ,27/10/2023,"1,181.16"
111263233,Social Care,Children & Families,Children's Resource and Home Finding Team,3rd Party Payments,Independent Fostering Agency Placements,ACTIVE CARE SOLUTIONS LTD,B60 ,27/10/2023,"3,277.01"
108305260,Social Care,Children & Families,Children's Resource and Home Finding Team,3rd Party Payments,Independent Fostering Agency Placements,ACTIVE CARE SOLUTIONS LTD,B60 ,06/10/2023,"3,256.80"
108305257,Social Care,Children & Families,Children's Resource and Home Finding Team,3rd Party Payments,Independent Fostering Agency Placements,ACTIVE CARE SOLUTIONS LTD,B60 ,06/10/2023,"6,188.40"
108305258,Social Care,Children & Families,Unaccompanied Asylum Seeking Children (UASC),3rd Party Payments,Independent Fostering Agency Placements,ACTIVE CARE SOLUTIONS LTD,B60 ,06/10/2023,"4,205.40"
111265233,Social Care,Children & Families,Children's Resource and Home Finding Team,3rd Party Payments,Independent Fostering Agency Placements,ACTIVE CARE SOLUTIONS LTD,B60 ,27/10/2023,"3,365.36"
111254307,Learning Disabilities,Adults,Learning Disability 18 - 64,Transfer Payments,Personal Budget - Direct Payments - Domiciliary Care,REDACTED PERSONAL DATA,SN4 ,27/10/2023,"1,237.28"
111254307,Learning Disabilities,Adults,Learning Disability 18 - 64,Income,Client Contribution - Personal Budget - DP,REDACTED PERSONAL DATA,SN4 ,27/10/2023,-49.00
111254295,Learning Disabilities,Adults,Learning Disability 18 - 64,Transfer Payments,Personal Budget - Direct Payments - Domiciliary Care,REDACTED PERSONAL DATA,SN3 ,27/10/2023,"1,823.36"
111254295,Learning Disabilities,Adults,Learning Disability 18 - 64,Transfer Payments,Personal Budget - Direct Payments - Domiciliary Care,REDACTED PERSONAL DATA,SN3 ,27/10/2023,410.88
111254295,Learning Disabilities,Adults,Learning Disability 18 - 64,Income,Client Contribution - Personal Budget - DP,REDACTED PERSONAL DATA,SN3 ,27/10/2023,-156.00
111254295,Learning Disabilities,Adults,Learning Disability 18 - 64,Income,Client Contribution - Personal Budget - DP,REDACTED PERSONAL DATA,SN3 ,27/10/2023,-35.16
108505233,NEV,"Economy, Growth and Place",Package 2 - Nythe Road Junction and Piccadilly Roundabout,Capital,Contractor Payments,ADAMS & WATT LTD,SN3 ,09/10/2023,450.00
110552350,Homelessness and Travellers,Housing Services,Private Sector Landlords,Transfer Payments,Payment of Costs,ADVANCE HOUSING & SUPPORT LTD,OX28,23/10/2023,"1,074.00"
108109233,Streetsmart,Streetsmart,Waterside Fleet Workshops,Transport Costs,Repairs & Maintenance - Vehicles,AEBI SCHMIDT UK LTD,PE2 ,06/10/2023,"1,777.63"
109082233,Planning & Regulatory,Strategic Planning,Local Development Frameworks,Supplies and Services,Consultation / Evaluation,AECOM LIMITED,E1 8,11/10/2023,"8,128.00"
107192234,Planned Maintenance Programme,HRA Capital Financing,Central Heating,Capital,Contractor Payments,AEGIR TECHNICAL SERVICES LTD,BA14,04/10/2023,"5,863.00"
107192233,Other Repairs,Repairs,Unallocated job costs from OPEN system,Premises Costs,Maintenance - Buildings,AEGIR TECHNICAL SERVICES LTD,BA14,04/10/2023,"4,590.00"
109789233,Landscaping & Open Space,Culture & Heritage & Art,Moredon Recreation - Multi Sports Hub,Capital,Contractor Payments,AGGREGATE INDUSTRIES UK LTD T/A SPADEOAK,HP10,18/10/2023,"123,373.33"
110574238,Learning Disabilities,Adults,Learning Disability 65 and over,Income,Client Contribution - Supported Living,AGINCARE ENABLE LTD,DT5 ,23/10/2023,-335.16
110574238,Learning Disabilities,Adults,Learning Disability 65 and over,3rd Party Payments,Supported Lodgings (Childrens)/Supported Living (Adults),AGINCARE ENABLE LTD,DT5 ,23/10/2023,"2,573.48"
110574238,Learning Disabilities,Adults,Learning Disability 65 and over,Income,Client Contribution - Supported Living,AGINCARE ENABLE LTD,DT5 ,23/10/2023,-141.44
111222233,Learning Disabilities,Adults,Learning Disability 65 and over,3rd Party Payments,Supported Lodgings (Childrens)/Supported Living (Adults),AGINCARE ENABLE LTD,DT5 ,27/10/2023,"2,787.58"
110574238,Learning Disabilities,Adults,Learning Disability 65 and over,3rd Party Payments,Supported Lodgings (Childrens)/Supported Living (Adults),AGINCARE ENABLE LTD,DT5 ,23/10/2023,"6,099.00"
110232283,Physical Support,Adults,Physical Support 65 and over,Income,Client Contribution - Residential,AGINCARE LTD,DT5 ,20/10/2023,"-1,231.12"
110232283,Physical Support,Adults,Physical Support 65 and over,3rd Party Payments,Residential Care,AGINCARE LTD,DT5 ,20/10/2023,"3,780.00"
Corporate Card Transaction,Landlord Services,Supervision & Management,Estate Management Team,Supplies and Services,Equipment,Airbnb * Hmbxfjnfnh,,05/10/2023,1438.7
Corporate Card Transaction,Landlord Services,Supervision & Management,Estate Management Team,Premises Costs,Non-contract Cleaning,Airbnb * Hmwjmwpm55,,19/10/2023,1427
111051233,School Transport,"Education, Inclusion and Skills",Mainstream School Transport,Transport Costs,Home to School Transport,AKCESS CIC,SN2 ,25/10/2023,"4,433.33"
111050233,School Transport,"Education, Inclusion and Skills",Mainstream School Transport,Transport Costs,Home to School Transport,AKCESS CIC,SN2 ,25/10/2023,"35,615.72"
108572233,Travel,Highways & Transport,Public Transport,3rd Party Payments,Contract Payments,AKCESS CIC,SN2 ,09/10/2023,"15,023.18"
109735233,School Transport,"Education, Inclusion and Skills",Special Educational Needs Transport,Transport Costs,Home to School Transport,AKCESS CIC,SN2 ,18/10/2023,"4,433.33"
109642233,Senior Management Team,Children & Families,Family Safeguarding Model,Supplies and Services,Services,ALASDAIR CANT & ASSOCIATES LIMITED,CB2 ,18/10/2023,"5,541.20"
110027233,Learning Disabilities,Adults,Learning Disability 18 - 64,3rd Party Payments,Supported Accommodation Scheme,REDACTED PERSONAL DATA,SN2 ,23/10/2023,"2,280.00"
111254320,Learning Disabilities,Adults,Learning Disability 18 - 64,Income,Client Contribution - Personal Budget - DP,REDACTED PERSONAL DATA,SN25,27/10/2023,-403.64
111254320,Learning Disabilities,Adults,Learning Disability 18 - 64,Transfer Payments,Personal Budget - Direct Payments - Domiciliary Care,REDACTED PERSONAL DATA,SN25,27/10/2023,"1,400.08"
111254320,Learning Disabilities,Adults,Learning Disability 18 - 64,Transfer Payments,Personal Budget - Direct Payments - Domiciliary Care,REDACTED PERSONAL DATA,SN25,27/10/2023,68.48
111254320,Learning Disabilities,Adults,Learning Disability 18 - 64,Income,Client Contribution - Personal Budget - DP,REDACTED PERSONAL DATA,SN25,27/10/2023,-19.76
109602237,Early Years Block,Dedicated Schools Grant (DSG),Free Nursery Education Commissioning - two year olds,3rd Party Payments,Contracts - Child Care,ALFRESCO CHILDCARE,SN6 ,18/10/2023,864.64
109602236,Early Years Block,Dedicated Schools Grant (DSG),Free Nursery Education Commissioning - three & four  year olds,3rd Party Payments,Contracts - Child Care,ALFRESCO CHILDCARE,SN6 ,18/10/2023,"6,840.40"
110066233,Learning Disabilities,Adults,Learning Disability 18 - 64,3rd Party Payments,Supported Accommodation Scheme,REDACTED PERSONAL DATA,SN1 ,23/10/2023,"2,666.00"
111254430,Learning Disabilities,Adults,Learning Disability 18 - 64,Transfer Payments,Personal Budget - Direct Payments - Domiciliary Care,REDACTED PERSONAL DATA,SN4 ,27/10/2023,197.52
111254430,Learning Disabilities,Adults,Learning Disability 18 - 64,Transfer Payments,Personal Budget - Direct Payments - Domiciliary Care,REDACTED PERSONAL DATA,SN4 ,27/10/2023,"2,817.60"
111254430,Learning Disabilities,Adults,Learning Disability 18 - 64,Transfer Payments,Personal Budget - Direct Payments - Other,REDACTED PERSONAL DATA,SN4 ,27/10/2023,157.92
111254430,Learning Disabilities,Adults,Learning Disability 18 - 64,Transfer Payments,Personal Budget - Direct Payments - Domiciliary Care,REDACTED PERSONAL DATA,SN4 ,27/10/2023,"1,448.48"
111254430,Learning Disabilities,Adults,Learning Disability 18 - 64,Transfer Payments,Personal Budget - Direct Payments - Other,REDACTED PERSONAL DATA,SN4 ,27/10/2023,118.80
111254430,Learning Disabilities,Adults,Learning Disability 18 - 64,Transfer Payments,Personal Budget - Direct Payments - Domiciliary Care,REDACTED PERSONAL DATA,SN4 ,27/10/2023,469.50
111254430,Learning Disabilities,Adults,Learning Disability 18 - 64,Transfer Payments,Personal Budget - Direct Payments - Domiciliary Care,REDACTED PERSONAL DATA,SN4 ,27/10/2023,"2,378.80"
111254430,Learning Disabilities,Adults,Learning Disability 18 - 64,Transfer Payments,Personal Budget - Direct Payments - Other,REDACTED PERSONAL DATA,SN4 ,27/10/2023,151.20
108588233,Streetsmart,Streetsmart,Refuse Collection,Employees,Temporary / Agency - by Accounts Payable,ALIGRA PERSONNEL LTD,SN25,09/10/2023,"1,624.00"
108587233,Streetsmart,Streetsmart,Refuse Collection,Employees,Temporary / Agency - by Accounts Payable,ALIGRA PERSONNEL LTD,SN25,09/10/2023,"1,055.60"
110067233,Learning Disabilities,Adults,Learning Disability 18 - 64,3rd Party Payments,Supported Accommodation Scheme,REDACTED PERSONAL DATA,SN2 ,23/10/2023,"2,226.00"
110067233,Learning Disabilities,Adults,Learning Disability 18 - 64,3rd Party Payments,Supported Accommodation Scheme,REDACTED PERSONAL DATA,SN2 ,23/10/2023,"1,866.00"
110067233,Learning Disabilities,Adults,Learning Disability 18 - 64,3rd Party Payments,Supported Accommodation Scheme,REDACTED PERSONAL DATA,SN2 ,23/10/2023,"1,840.00"
111254262,Learning Disabilities,Adults,Learning Disability 18 - 64,Transfer Payments,Personal Budget - Direct Payments - Domiciliary Care,REDACTED PERSONAL DATA,SN5 ,27/10/2023,"3,660.00"
111254262,Learning Disabilities,Adults,Learning Disability 18 - 64,Income,Client Contribution - Personal Budget - DP,REDACTED PERSONAL DATA,SN5 ,27/10/2023,-142.20
111254262,Learning Disabilities,Adults,Learning Disability 18 - 64,Income,Client Contribution - Personal Budget - DP,REDACTED PERSONAL DATA,SN5 ,27/10/2023,-1.08
111254262,Learning Disabilities,Adults,Learning Disability 18 - 64,Income,Client Contribution - Personal Budget - DP,REDACTED PERSONAL DATA,SN5 ,27/10/2023,-169.04
111254262,Learning Disabilities,Adults,Learning Disability 18 - 64,Transfer Payments,Personal Budget - Direct Payments - Domiciliary Care,REDACTED PERSONAL DATA,SN5 ,27/10/2023,"2,817.36"
111254262,Learning Disabilities,Adults,Learning Disability 18 - 64,Transfer Payments,Personal Budget - Direct Payments - Domiciliary Care,REDACTED PERSONAL DATA,SN5 ,27/10/2023,"3,079.68"
111254262,Learning Disabilities,Adults,Learning Disability 18 - 64,Income,Client Contribution - Personal Budget - DP,REDACTED PERSONAL DATA,SN5 ,27/10/2023,-130.08
111254262,Learning Disabilities,Adults,Learning Disability 18 - 64,Transfer Payments,Personal Budget - Direct Payments - Other,REDACTED PERSONAL DATA,SN5 ,27/10/2023,23.80
109602238,Early Years Block,Dedicated Schools Grant (DSG),Free Nursery Education Commissioning - three & four  year olds,3rd Party Payments,Contracts - Child Care,REDACTED PERSONAL DATA,SN1 ,18/10/2023,588.00
109602239,Early Years Block,Dedicated Schools Grant (DSG),Free Nursery Education Commissioning - three & four  year olds,3rd Party Payments,Contracts - Child Care,REDACTED PERSONAL DATA,SN1 ,18/10/2023,"1,215.20"
111254294,Learning Disabilities,Adults,Learning Disability 18 - 64,Transfer Payments,Personal Budget - Direct Payments - Domiciliary Care,REDACTED PERSONAL DATA,SN5 ,27/10/2023,"3,628.80"
111254294,Learning Disabilities,Adults,Learning Disability 18 - 64,Income,Client Contribution - Personal Budget - DP,REDACTED PERSONAL DATA,SN5 ,27/10/2023,-1.36
111254294,Learning Disabilities,Adults,Learning Disability 18 - 64,Transfer Payments,Personal Budget - Direct Payments - Domiciliary Care,REDACTED PERSONAL DATA,SN5 ,27/10/2023,39.20
111254294,Learning Disabilities,Adults,Learning Disability 18 - 64,Income,Client Contribution - Personal Budget - DP,REDACTED PERSONAL DATA,SN5 ,27/10/2023,-127.04
108608233,Schools Maintenance,Skills & Attainment,Condition Works,Capital,Contractor Payments,ALL PUMP SOLUTIONS LLP,SY1 ,09/10/2023,"3,106.78"
109341233,Local Transport Plan Funded,Strategic Planning and Highways,Rights of way Improvement Plan,Capital,Contractor Payments,ALLBUILD BUILDING & LANDSCAPING SERVICES,SN25,16/10/2023,"2,470.00"
109122233,Local Transport Plan Funded,Strategic Planning and Highways,Rights of way Improvement Plan,Capital,Contractor Payments,ALLBUILD BUILDING & LANDSCAPING SERVICES,SN25,13/10/2023,"1,225.00"
109050233,Streetsmart,Streetsmart,Waterside Fleet Workshops,Supplies and Services,Equipment,ALLIANCE AUTOMOTIVE UK T/A BRAYMARC,BD4 ,11/10/2023,915.00
108265233,Treasury,Corporate Finance,Treasury,Supplies and Services,Bank Charges,ALLPAY-NET LIMITED,HR1 ,06/10/2023,"1,188.85"
109531233,Landlord Services,Supervision & Management,Estate Management Team,Supplies and Services,Contracts,ALLPAY-NET LIMITED,HR1 ,18/10/2023,"1,895.31"
107600233,Social Care,Children & Families,Looked After Children Service,3rd Party Payments,Personal Needs,ALPHA24 HEALTHCARE LTD,EC3A,04/10/2023,706.80
108767233,Social Care,Children & Families,Children's Resource and Home Finding Team,3rd Party Payments,Respite Care,ALPHA24 HEALTHCARE LTD,EC3A,11/10/2023,"5,040.00"
108670233,Social Care,Children & Families,Children's Resource and Home Finding Team,3rd Party Payments,Respite Care,ALPHA24 HEALTHCARE LTD,EC3A,11/10/2023,870.00
108712234,Social Care,Children & Families,Children's Resource and Home Finding Team,3rd Party Payments,Respite Care,ALPHA24 HEALTHCARE LTD,EC3A,11/10/2023,540.00
108707233,Social Care,Children & Families,Children's Resource and Home Finding Team,3rd Party Payments,Respite Care,ALPHA24 HEALTHCARE LTD,EC3A,11/10/2023,"2,580.00"
108706233,Social Care,Children & Families,Children's Resource and Home Finding Team,3rd Party Payments,Respite Care,ALPHA24 HEALTHCARE LTD,EC3A,11/10/2023,"2,915.15"
109688233,Disabled Children,Children & Families,DCT Daytime Short Breaks,3rd Party Payments,Respite Care,ALPHA24 HEALTHCARE LTD,EC3A,18/10/2023,720.00
108768233,Social Care,Children & Families,Children's Resource and Home Finding Team,3rd Party Payments,Respite Care,ALPHA24 HEALTHCARE LTD,EC3A,11/10/2023,"4,320.00"
110685234,Disabled Children,Children & Families,DCT Daytime Short Breaks,3rd Party Payments,Respite Care,ALPHA24 HEALTHCARE LTD,EC3A,25/10/2023,652.50
109685233,Disabled Children,Children & Families,DCT Daytime Short Breaks,3rd Party Payments,Respite Care,ALPHA24 HEALTHCARE LTD,EC3A,18/10/2023,720.00
111314233,Social Care,Children & Families,Looked After Children Service,3rd Party Payments,Personal Needs,ALPHA24 HEALTHCARE LTD,EC3A,27/10/2023,650.00
108709233,Social Care,Children & Families,Children's Resource and Home Finding Team,3rd Party Payments,Respite Care,ALPHA24 HEALTHCARE LTD,EC3A,11/10/2023,"4,320.00"
110705233,Social Care,Children & Families,Looked After Children Service,3rd Party Payments,Personal Needs,ALPHA24 HEALTHCARE LTD,EC3A,25/10/2023,750.00
111307233,Social Care,Children & Families,Looked After Children Service,3rd Party Payments,Personal Needs,ALPHA24 HEALTHCARE LTD,EC3A,27/10/2023,"1,100.00"
109686233,Disabled Children,Children & Families,DCT Daytime Short Breaks,3rd Party Payments,Respite Care,ALPHA24 HEALTHCARE LTD,EC3A,18/10/2023,720.00
109687233,Disabled Children,Children & Families,DCT Daytime Short Breaks,3rd Party Payments,Respite Care,ALPHA24 HEALTHCARE LTD,EC3A,18/10/2023,720.00
110664233,Disabled Children,Children & Families,DCT Daytime Short Breaks,3rd Party Payments,Respite Care,ALPHA24 HEALTHCARE LTD,EC3A,23/10/2023,652.50
107574233,Social Care,Children & Families,Looked After Children Service,3rd Party Payments,Personal Needs,ALPHA24 HEALTHCARE LTD,EC3A,04/10/2023,500.00
108823233,Disabled Children,Children & Families,DCT Daytime Short Breaks,3rd Party Payments,Respite Care,ALPHA24 HEALTHCARE LTD,EC3A,11/10/2023,"1,080.00"
111309233,Social Care,Children & Families,Looked After Children Service,3rd Party Payments,Personal Needs,ALPHA24 HEALTHCARE LTD,EC3A,27/10/2023,"1,050.00"
111312233,Social Care,Children & Families,Looked After Children Service,3rd Party Payments,Personal Needs,ALPHA24 HEALTHCARE LTD,EC3A,27/10/2023,720.00
108740234,Social Care,Children & Families,Children's Resource and Home Finding Team,3rd Party Payments,Respite Care,ALPHA24 HEALTHCARE LTD,EC3A,11/10/2023,"5,040.00"
109682233,Disabled Children,Children & Families,DCT Daytime Short Breaks,3rd Party Payments,Respite Care,ALPHA24 HEALTHCARE LTD,EC3A,18/10/2023,"1,440.00"
108824233,Disabled Children,Children & Families,DCT Daytime Short Breaks,3rd Party Payments,Respite Care,ALPHA24 HEALTHCARE LTD,EC3A,11/10/2023,"1,080.00"
109622233,Social Care,Children & Families,Children's Resource and Home Finding Team,3rd Party Payments,Respite Care,ALPHA24 HEALTHCARE LTD,EC3A,18/10/2023,870.00
107573233,Social Care,Children & Families,Looked After Children Service,3rd Party Payments,Personal Needs,ALPHA24 HEALTHCARE LTD,EC3A,04/10/2023,503.20
110704233,Social Care,Children & Families,Looked After Children Service,3rd Party Payments,Personal Needs,ALPHA24 HEALTHCARE LTD,EC3A,25/10/2023,870.00
111313233,Social Care,Children & Families,Looked After Children Service,3rd Party Payments,Personal Needs,ALPHA24 HEALTHCARE LTD,EC3A,27/10/2023,585.00
108819233,Disabled Children,Children & Families,DCT Daytime Short Breaks,3rd Party Payments,Respite Care,ALPHA24 HEALTHCARE LTD,EC3A,11/10/2023,720.00
108820233,Disabled Children,Children & Families,DCT Daytime Short Breaks,3rd Party Payments,Respite Care,ALPHA24 HEALTHCARE LTD,EC3A,11/10/2023,"1,080.00"
109689240,Disabled Children,Children & Families,DCT Daytime Short Breaks,3rd Party Payments,Respite Care,ALPHA24 HEALTHCARE LTD,EC3A,18/10/2023,720.00
110662233,Disabled Children,Children & Families,DCT Daytime Short Breaks,3rd Party Payments,Respite Care,ALPHA24 HEALTHCARE LTD,EC3A,23/10/2023,652.50
110232328,Physical Support,Adults,Physical Support 65 and over,3rd Party Payments,Nursing Care,ALTOGETHER CARE WEYMOUTH CARE HOME,DT4 ,20/10/2023,"4,023.28"
110232328,Physical Support,Adults,Physical Support 65 and over,Income,Client Contribution - Nursing,ALTOGETHER CARE WEYMOUTH CARE HOME,DT4 ,20/10/2023,-691.20
111546233,Town Centre,"Economy, Growth and Place",Uk shared Properity Fund,Supplies and Services,Services,ALZHEIMERS SOCIETY,PL6 ,30/10/2023,"5,833.33"
110282233,Town Centre,"Economy, Growth and Place",Uk shared Properity Fund,Supplies and Services,Services,ALZHEIMERS SOCIETY,PL2 ,20/10/2023,"5,833.33"
110511233,Town Centre,"Economy, Growth and Place",Uk shared Properity Fund,Supplies and Services,Services,ALZHEIMERS SOCIETY,PL2 ,20/10/2023,"5,833.33"
110284233,Town Centre,"Economy, Growth and Place",Uk shared Properity Fund,Supplies and Services,Services,ALZHEIMERS SOCIETY,PL2 ,20/10/2023,"5,833.33"
111547233,Town Centre,"Economy, Growth and Place",Uk shared Properity Fund,Supplies and Services,Services,ALZHEIMERS SOCIETY,PL6 ,30/10/2023,"5,833.33"
111545233,Town Centre,"Economy, Growth and Place",Uk shared Properity Fund,Supplies and Services,Services,ALZHEIMERS SOCIETY,PL6 ,30/10/2023,"5,833.33"
111254264,Learning Disabilities,Adults,Learning Disability 18 - 64,Transfer Payments,Personal Budget - Direct Payments - Domiciliary Care,REDACTED PERSONAL DATA,SN3 ,27/10/2023,"1,782.66"
111254264,Learning Disabilities,Adults,Learning Disability 18 - 64,Transfer Payments,Personal Budget - Direct Payments - Domiciliary Care,REDACTED PERSONAL DATA,SN3 ,27/10/2023,81.40
111663233,Disabled Children,Children & Families,Aiming High for Disabled Children,3rd Party Payments,Cash Support,REDACTED PERSONAL DATA,SN4 ,30/10/2023,600.40
Corporate Card Transaction,ASC Finance Services Teams,ASC Finance Services,ASC Money Management Team,Supplies and Services,Services,Amznmktplace,,23/10/2023,534.84
110927234,Social Care,Children & Families,Children's Resource and Home Finding Team,3rd Party Payments,Residential Care,AMEGREEN CHILDREN'S SERVICES LTD,RG7 ,25/10/2023,562.50
110927234,Social Care,Children & Families,Children's Resource and Home Finding Team,3rd Party Payments,Semi Independent,AMEGREEN CHILDREN'S SERVICES LTD,RG7 ,25/10/2023,"12,857.10"
108772233,Routes to Employment,"Education, Inclusion and Skills",Multiply,Supplies and Services,Materials,AMENA HANMAN (DYSLEXIA ASSESSOR),SN3 ,11/10/2023,720.00
110958233,Landscaping & Open Space,Culture & Heritage & Art,GWCF - Trees for Climate,Capital,Professional Fees,AMEY OW LTD,L19 ,25/10/2023,"4,536.00"
110146233,Highways & Transport,Highways & Transport,Project Delivery,Supplies and Services,Services,AMEY OW LTD,L19 ,20/10/2023,"83,223.52"
107834233,Highways & Transport,Highways & Transport,Project Delivery,Supplies and Services,Services,AMEY OW LTD,L19 ,04/10/2023,"52,103.55"
110945233,Highways Schemes,Strategic Planning and Highways,John Street car park redevelopment (Parade),Capital,Contractor Payments,AMEY OW LTD,L19 ,25/10/2023,"2,463.23"
110348233,Property Estates,Property,Estates - Corporate Property General,Premises Costs,Rents,AMEY TPT,EC4A,20/10/2023,"2,785.00"
109604233,Social Care,Children & Families,Children's Resource and Home Finding Team,3rd Party Payments,Independent Fostering Agency Placements,AMICUS FOSTER CARE,BS2 ,18/10/2023,"5,086.50"
110529233,Disabled Children,Children & Families,DCT Daytime Short Breaks,Transfer Payments,Personal Budget - Direct Payments - Other,REDACTED PERSONAL DATA,SN2 ,23/10/2023,"1,650.70"
111350238,Mental Health,Adults,Mental Health 18-64,Transfer Payments,Personal Budget - Direct Payments - Domiciliary Care,REDACTED PERSONAL DATA,SN25,27/10/2023,570.16
109602241,Early Years Block,Dedicated Schools Grant (DSG),Free Nursery Education Commissioning - three & four  year olds,3rd Party Payments,Contracts - Child Care,REDACTED PERSONAL DATA,SN25,18/10/2023,"1,176.00"
110552342,Homelessness and Travellers,Housing Services,Private Sector Landlords,Transfer Payments,Payment of Costs,ANGELVIEW PROPERTIES LTD,ALBO,23/10/2023,590.00
109602243,Early Years Block,Dedicated Schools Grant (DSG),Free Nursery Education Commissioning - three & four  year olds,3rd Party Payments,Contracts - Child Care,REDACTED PERSONAL DATA,SN1 ,18/10/2023,588.00
111254319,Physical Support,Adults,Physical Support 18 - 64,Transfer Payments,Personal Budget - Direct Payments - Domiciliary Care,REDACTED PERSONAL DATA,SN25,27/10/2023,24.80
111254319,Physical Support,Adults,Physical Support 18 - 64,Transfer Payments,Personal Budget - Direct Payments - Domiciliary Care,REDACTED PERSONAL DATA,SN25,27/10/2023,732.60
111254319,Physical Support,Adults,Physical Support 18 - 64,Transfer Payments,Personal Budget - Direct Payments - Domiciliary Care,REDACTED PERSONAL DATA,SN25,27/10/2023,171.20
111254319,Physical Support,Adults,Physical Support 18 - 64,Transfer Payments,Personal Budget - Direct Payments - Domiciliary Care,REDACTED PERSONAL DATA,SN25,27/10/2023,"1,172.16"
111254319,Physical Support,Adults,Physical Support 18 - 64,Transfer Payments,Personal Budget - Direct Payments - Domiciliary Care,REDACTED PERSONAL DATA,SN25,27/10/2023,376.00
110209233,HRA Overheads,Supervision & Management,Admin / Management General,Premises Costs,Insurance - Premises,AON UK LIMITED,EC3V,20/10/2023,"3,240.87"
110626233,Supported Employment,Housing Services,Community Meals,Supplies and Services,Food,APETITO LIMITED,BA14,23/10/2023,526.67
109476233,Supported Employment,Housing Services,Community Meals,Supplies and Services,Food,APETITO LIMITED,BA14,18/10/2023,887.69
110626235,Care Management & Safeguarding,Adults,Mental Capacity & DOL,Supplies and Services,Equipment,APETITO LIMITED,BA14,23/10/2023,886.74
107488233,Responsive Repairs,Repairs,Responsive Repairs,3rd Party Payments,Contract Payments,APEX SCAFFOLDING SERVICES,SN2 ,02/10/2023,864.00
107487233,Responsive Repairs,Repairs,Responsive Repairs,3rd Party Payments,Contract Payments,APEX SCAFFOLDING SERVICES,SN2 ,02/10/2023,988.80
110259233,,,Balance Sheet,Balance Sheet & Recharge,Resources Recharges,APOGEE CORPORATION LIMITED,ME16,20/10/2023,"9,746.78"
110232295,Learning Disabilities,Adults,Learning Disability 18 - 64,Income,Client Contribution - Residential,APPLEFORD LTD T/A DANESWOOD,BS25,20/10/2023,-438.80
110232295,Learning Disabilities,Adults,Learning Disability 18 - 64,3rd Party Payments,Residential Care,APPLEFORD LTD T/A DANESWOOD,BS25,20/10/2023,"22,008.12"
110506233,Adults - Staffing and Supporting People,Adults,Blue Badges,Supplies and Services,Materials,APS GROUP,SK3 ,20/10/2023,"1,339.91"
110658233,Repairs Staffing,Repairs,Maintenance,Supplies and Services,Fees,APSE--------------------------------,M32 ,23/10/2023,"4,150.00"
108594233,Community Health & Wellbeing,Public Health,Community Health and Wellbeing Management,Employees,Training,APT TRAINING & CONSULTANCY LTD,LE7 ,09/10/2023,440.00
110765233,Early Years Block,Dedicated Schools Grant (DSG),Free Nursery Education Commissioning - three & four  year olds,3rd Party Payments,Contracts - Child Care,REDACTED PERSONAL DATA,SN2 ,25/10/2023,"7,980.00"
111011234,High Needs Block,Dedicated Schools Grant (DSG),SEN Resourcing Assessment Panel,3rd Party Payments,Top up funding - Maintained providers Pre 16,REDACTED PERSONAL DATA,SN2 ,25/10/2023,"7,980.00"
109169233,Town Centre,"Economy, Growth and Place",Carriage Works Phase 3,Capital,Professional Fees,ARCHAEOLOGICAL MANAGEMENT SERVICES LTD T/A FOUNDATIONS ARCHAEOLOGY,SN2 ,13/10/2023,495.00
109707248,Social Care,Children & Families,Children's Resource and Home Finding Team,3rd Party Payments,Residential Care,AREA CAMDEN GROUP,N8 0,18/10/2023,"21,857.10"
108402233,Human Resources and Organisational Development,"People, Culture and Organisational Resilience",Pay & Reward,Employees,Temporary / Agency - by Accounts Payable,ARGONAUT MANAGEMENT SERVICES LIMITED,N11 ,06/10/2023,"7,200.00"
110232335,Mental Health,Adults,Mental Health 65 and over,3rd Party Payments,Nursing Care,ARIA HEALTHCARE GROUP LTD,CO4 ,20/10/2023,"6,000.00"
108687234,Lydiard Park,Culture & Heritage,Lydiard : Hotel Operations,Supplies and Services,Liquid,ARKELLS BREWERY LTD,SN2 ,11/10/2023,"1,303.77"
108522233,Lydiard Park,Culture & Heritage,Lydiard : Hotel Operations,Supplies and Services,Liquid,ARKELLS BREWERY LTD,SN2 ,09/10/2023,455.79
108115233,Streetsmart,Streetsmart,Waterside Fleet Hires,Transport Costs,Vehicle Hire / Contract,ARNOLD PLANT HIRE LIMITED,SK6 ,06/10/2023,"1,470.00"
108113233,Streetsmart,Streetsmart,Waterside Fleet Hires,Transport Costs,Vehicle Hire / Contract,ARNOLD PLANT HIRE LIMITED,SK6 ,06/10/2023,"1,113.00"
108111233,Streetsmart,Streetsmart,Waterside Fleet Hires,Transport Costs,Repairs & Maintenance - Vehicles,ARNOLD PLANT HIRE LIMITED,SK6 ,06/10/2023,587.00
108112233,Streetsmart,Streetsmart,Waterside Fleet Hires,Transport Costs,Vehicle Hire / Contract,ARNOLD PLANT HIRE LIMITED,SK6 ,06/10/2023,"7,300.00"
110232333,Mental Health,Adults,Mental Health 65 and over,3rd Party Payments,Residential Care,ARTI CARE HOMES (GLOUCESTER) LIMITED,WD7 ,20/10/2023,"4,800.00"
109639233,Town Centre,"Economy, Growth and Place",Town Centre Market,Capital,Professional Fees,ARTSITE LIMITED,SN1 ,18/10/2023,"15,000.00"
108035233,Care Management & Safeguarding,Adults,Community Safety Partnership,3rd Party Payments,Contract Payments,ASB HELP,SE1 ,06/10/2023,"4,050.00"
110016233,Sheltered Accomodation,Special Services,Sheltered Housing Management General,Supplies and Services,Equipment,ASF SIGNS LTD,SN4 ,20/10/2023,591.50
110232296,Mental Health,Adults,Mental Health 18-64,Income,Client Contribution - Residential,ASH VIEW HOUSE,BS15,20/10/2023,-418.80
111224233,Mental Health,Adults,Mental Health 18-64,3rd Party Payments,Residential Care,ASH VIEW HOUSE,BS15,27/10/2023,570.98
110232296,Mental Health,Adults,Mental Health 18-64,3rd Party Payments,Residential Care,ASH VIEW HOUSE,BS15,20/10/2023,"7,993.72"
110285233,Physical Support,Adults,Physical Support 65 and over,Income,Client Contribution - Residential,ASHBURY LODGE,SN3 ,20/10/2023,-730.76
110285233,Physical Support,Adults,Physical Support 65 and over,Income,Client Contribution - Residential,ASHBURY LODGE,SN3 ,20/10/2023,-657.68
110285233,Mental Health,Adults,Mental Health 65 and over,Income,Client Contribution - Residential,ASHBURY LODGE,SN3 ,20/10/2023,-691.20
110285233,Physical Support,Adults,Physical Support 65 and over,Income,Client Contribution - Residential,ASHBURY LODGE,SN3 ,20/10/2023,"-1,308.16"
110285233,Physical Support,Adults,Physical Support 65 and over,Income,Client Contribution - Residential,ASHBURY LODGE,SN3 ,20/10/2023,"-1,084.96"
110285233,Physical Support,Adults,Physical Support 65 and over,3rd Party Payments,Residential Care,ASHBURY LODGE,SN3 ,20/10/2023,"2,867.32"
110285233,Physical Support,Adults,Physical Support 65 and over,Income,Client Contribution - Residential,ASHBURY LODGE,SN3 ,20/10/2023,-953.20
110285233,Physical Support,Adults,Physical Support 65 and over,Income,Client Contribution - Residential,ASHBURY LODGE,SN3 ,20/10/2023,-886.60
110285233,Physical Support,Adults,Physical Support 65 and over,Income,Client Contribution - Residential,ASHBURY LODGE,SN3 ,20/10/2023,"-1,125.72"
110285233,Physical Support,Adults,Physical Support 65 and over,Income,Client Contribution - Residential,ASHBURY LODGE,SN3 ,20/10/2023,-691.20
110285233,Mental Health,Adults,Mental Health 65 and over,Income,Client Contribution - Residential,ASHBURY LODGE,SN3 ,20/10/2023,"-2,867.32"
110285233,Physical Support,Adults,Physical Support 65 and over,3rd Party Payments,Residential Care,ASHBURY LODGE,SN3 ,20/10/2023,"4,032.00"
110285233,Physical Support,Adults,Physical Support 65 and over,Income,Client Contribution - Residential,ASHBURY LODGE,SN3 ,20/10/2023,-610.40
110285233,Mental Health,Adults,Mental Health 65 and over,Income,Client Contribution - Residential,ASHBURY LODGE,SN3 ,20/10/2023,-881.64
110285233,Mental Health,Adults,Mental Health 65 and over,3rd Party Payments,Residential Care,ASHBURY LODGE,SN3 ,20/10/2023,"2,867.32"
110285233,Mental Health,Adults,Mental Health 65 and over,3rd Party Payments,Residential Care,ASHBURY LODGE,SN3 ,20/10/2023,"2,988.96"
110285233,Physical Support,Adults,Physical Support 65 and over,Income,Client Contribution - Residential,ASHBURY LODGE,SN3 ,20/10/2023,-801.80
110285233,Physical Support,Adults,Physical Support 65 and over,Income,Client Contribution - Residential,ASHBURY LODGE,SN3 ,20/10/2023,-764.80
110232237,Physical Support,Adults,Physical Support 65 and over,Income,Client Contribution - Nursing,ASHGROVE HOUSE NURSING HOME,SN5 ,20/10/2023,-655.04
110232237,Physical Support,Adults,Physical Support 65 and over,3rd Party Payments,Nursing Care,ASHGROVE HOUSE NURSING HOME,SN5 ,20/10/2023,"6,080.00"
111328233,Public Health,Public Health,Health Checks,3rd Party Payments,Contract Payments,ASHINGTON HOUSE SURGERY,SN5 ,27/10/2023,"1,196.00"
111350253,Physical Support,Adults,Physical Support 18 - 64,Transfer Payments,Personal Budget - Direct Payments - Domiciliary Care,REDACTED PERSONAL DATA,SN25,27/10/2023,"1,555.80"
107758233,Libraries,"Education, Inclusion and Skills",Library Delivery,Supplies and Services,Materials,ASKEWS AND HOLTS LIBRARY SERVICES LIMITED,PR1 ,04/10/2023,"1,279.26"
109108233,Libraries,"Education, Inclusion and Skills",Library Delivery,Supplies and Services,Materials,ASKEWS AND HOLTS LIBRARY SERVICES LIMITED,PR1 ,13/10/2023,516.42
110178233,Libraries,"Education, Inclusion and Skills",Library Delivery,Supplies and Services,Materials,ASKEWS AND HOLTS LIBRARY SERVICES LIMITED,PR1 ,20/10/2023,"1,212.21"
110232266,Learning Disabilities,Adults,Learning Disability 18 - 64,Income,Client Contribution - Residential,ASPECTS & MILESTONES TRUST,BS16,20/10/2023,-463.20
110232266,Learning Disabilities,Adults,Learning Disability 18 - 64,3rd Party Payments,Residential Care,ASPECTS & MILESTONES TRUST,BS16,20/10/2023,"6,964.88"
110574236,Physical Support,Adults,Physical Support 18 - 64,3rd Party Payments,Supported Lodgings (Childrens)/Supported Living (Adults),ASPECTS 2 LTD,B70 ,23/10/2023,"4,200.00"
110232299,Learning Disabilities,Adults,Learning Disability 18 - 64,3rd Party Payments,Residential Care,ASPECTS 2 LTD,B70 ,20/10/2023,"9,278.64"
110574236,Mental Health,Adults,Mental Health 65 and over,3rd Party Payments,Supported Lodgings (Childrens)/Supported Living (Adults),ASPECTS 2 LTD,B70 ,23/10/2023,"1,449.60"
110232299,Learning Disabilities,Adults,Learning Disability 18 - 64,Income,Client Contribution - Residential,ASPECTS 2 LTD,B70 ,20/10/2023,-438.80
111018233,Disabled Children,Children & Families,DCT Overnight Short Breaks,3rd Party Payments,Respite Care,ASPRIS CHILDREN'S SERVICES,DL1 ,25/10/2023,"64,800.00"
110232311,Learning Disabilities,Adults,Learning Disability 18 - 64,3rd Party Payments,Residential Care,ASTON CARE LIMITED,RG30,20/10/2023,"8,288.00"
110232312,Learning Disabilities,Adults,Learning Disability 18 - 64,3rd Party Payments,Residential Care,ASTON CARE LIMITED,RG30,20/10/2023,"9,733.80"
110232311,Learning Disabilities,Adults,Learning Disability 18 - 64,Income,Client Contribution - Residential,ASTON CARE LIMITED,RG30,20/10/2023,-410.80
110232311,Learning Disabilities,Adults,Learning Disability 18 - 64,Income,Client Contribution - Residential,ASTON CARE LIMITED,RG30,20/10/2023,"-1,033.20"
110232311,Learning Disabilities,Adults,Learning Disability 18 - 64,Income,Client Contribution - Residential,ASTON CARE LIMITED,RG30,20/10/2023,-587.40
111482233,Learning Disabilities,Adults,Learning Disability 18 - 64,3rd Party Payments,Residential Care,ASTON CARE LIMITED,RG30,30/10/2023,592.00
111482234,Learning Disabilities,Adults,Learning Disability 18 - 64,3rd Party Payments,Residential Care,ASTON CARE LIMITED,RG30,30/10/2023,572.00
110232311,Learning Disabilities,Adults,Learning Disability 18 - 64,3rd Party Payments,Residential Care,ASTON CARE LIMITED,RG30,20/10/2023,"8,008.00"
110232311,Learning Disabilities,Adults,Learning Disability 18 - 64,3rd Party Payments,Residential Care,ASTON CARE LIMITED,RG30,20/10/2023,"7,288.00"
110232311,Learning Disabilities,Adults,Learning Disability 18 - 64,Income,Client Contribution - Residential,ASTON CARE LIMITED,RG30,20/10/2023,-676.40
110232312,Learning Disabilities,Adults,Learning Disability 18 - 64,Income,Client Contribution - Residential,ASTON CARE LIMITED,RG30,20/10/2023,-788.80
109452233,Highways & Transport,Highways & Transport,Project Delivery,Supplies and Services,Services,ATKINS LTD,WR4 ,16/10/2023,"8,036.73"
107603234,Social Care,Children & Families,CP & CIN Social Work - South,Employees,DBS checks,ATTENTI LTD,EC2R,04/10/2023,"18,997.81"
109562234,Senior Management Team,Children & Families,Senior Management Team - Staffing,Employees,Temporary / Agency - by Accounts Payable,ATTENTI LTD,EC2R,18/10/2023,"2,596.00"
107603233,Social Care,Children & Families,CP & CIN Social Work - South,Employees,DBS checks,ATTENTI LTD,EC2R,04/10/2023,"18,997.81"
109099233,Senior Management Team,Children & Families,Family Safeguarding Model,Employees,Temporary / Agency - by Accounts Payable,ATTENTI LTD,EC2R,13/10/2023,"2,360.00"
109261233,Social Care,Children & Families,Practise Development,Employees,Temporary / Agency - by Accounts Payable,ATTENTI LTD,EC2R,13/10/2023,"2,360.00"
109681233,Senior Management Team,Children & Families,Senior Management Team - Staffing,Employees,Temporary / Agency - by Accounts Payable,ATTENTI LTD,EC2R,18/10/2023,"3,540.00"
107607253,Senior Management Team,Children & Families,Senior Management Team - Staffing,Employees,Temporary / Agency - by Accounts Payable,ATTENTI LTD,EC2R,04/10/2023,"3,245.00"
109263233,Social Care,Children & Families,Practise Development,Employees,Temporary / Agency - by Accounts Payable,ATTENTI LTD,EC2R,13/10/2023,"2,360.00"
109262233,Social Care,Children & Families,Practise Development,Employees,Temporary / Agency - by Accounts Payable,ATTENTI LTD,EC2R,13/10/2023,"2,360.00"
109101233,Social Care,Children & Families,Practise Development,Employees,Temporary / Agency - by Accounts Payable,ATTENTI LTD,EC2R,13/10/2023,"2,360.00"
107605233,Safeguarding and Quality Assurance,Children & Families,Quality Assurance Team,Employees,Temporary / Agency - by Accounts Payable,ATTENTI LTD,EC2R,04/10/2023,"1,416.00"
109303258,Senior Management Team,Children & Families,Senior Management Team - Staffing,Employees,Temporary / Agency - by Accounts Payable,ATTENTI LTD,EC2R,13/10/2023,"3,540.00"
110503233,Social Care,Children & Families,Practise Development,Employees,Temporary / Agency - by Accounts Payable,ATTENTI LTD,EC2R,20/10/2023,"2,360.00"
111678233,Senior Management Team,Children & Families,Senior Management Team - Staffing,Employees,Temporary / Agency - by Accounts Payable,ATTENTI LTD,EC2R,30/10/2023,"3,980.00"
107603236,Social Care,Children & Families,CP & CIN Social Work - South,Employees,DBS checks,ATTENTI LTD,EC2R,04/10/2023,"18,997.81"
107602233,Social Care,Children & Families,CP & CIN Social Work - South,Employees,DBS checks,ATTENTI LTD,EC2R,04/10/2023,"18,997.81"
109097233,Senior Management Team,Children & Families,Family Safeguarding Model,Employees,Temporary / Agency - by Accounts Payable,ATTENTI LTD,EC2R,13/10/2023,"2,950.00"
109100233,Social Care,Children & Families,Practise Development,Employees,Temporary / Agency - by Accounts Payable,ATTENTI LTD,EC2R,13/10/2023,"2,360.00"
108826233,Safeguarding and Quality Assurance,Children & Families,Quality Assurance Team,Employees,Temporary / Agency - by Accounts Payable,ATTENTI LTD,EC2R,11/10/2023,"2,360.00"
109560233,Senior Management Team,Children & Families,Senior Management Team - Staffing,Employees,Temporary / Agency - by Accounts Payable,ATTENTI LTD,EC2R,18/10/2023,"3,245.00"
111677233,Senior Management Team,Children & Families,Senior Management Team - Staffing,Employees,Temporary / Agency - by Accounts Payable,ATTENTI LTD,EC2R,30/10/2023,"3,980.00"
109179233,Senior Management Team,Children & Families,Senior Management Team - Staffing,Employees,Temporary / Agency - by Accounts Payable,ATTENTI LTD,EC2R,13/10/2023,"3,980.00"
108472233,Senior Management Team,Children & Families,Senior Management Team - Staffing,Employees,Temporary / Agency - by Accounts Payable,ATTENTI LTD,EC2R,09/10/2023,"3,980.00"
107604233,Social Care,Children & Families,CP & CIN Social Work - South,Employees,DBS checks,ATTENTI LTD,EC2R,04/10/2023,"17,306.81"
109246233,Senior Management Team,Children & Families,Family Safeguarding Model,Employees,Temporary / Agency - by Accounts Payable,ATTENTI LTD,EC2R,13/10/2023,"1,180.00"
109098233,Social Care,Children & Families,Practise Development,Employees,Temporary / Agency - by Accounts Payable,ATTENTI LTD,EC2R,13/10/2023,"2,360.00"
109102234,Social Care,Children & Families,Practise Development,Employees,Temporary / Agency - by Accounts Payable,ATTENTI LTD,EC2R,13/10/2023,"2,360.00"
109247233,Senior Management Team,Children & Families,Senior Management Team - Staffing,Employees,Temporary / Agency - by Accounts Payable,ATTENTI LTD,EC2R,13/10/2023,"2,950.00"
109248233,Senior Management Team,Children & Families,Family Safeguarding Model,Employees,Temporary / Agency - by Accounts Payable,ATTENTI LTD,EC2R,13/10/2023,"2,360.00"
109643233,Safeguarding and Quality Assurance,Children & Families,Quality Assurance Team,Employees,Temporary / Agency - by Accounts Payable,ATTENTI LTD,EC2R,18/10/2023,"2,360.00"
107603235,Social Care,Children & Families,CP & CIN Social Work - South,Employees,DBS checks,ATTENTI LTD,EC2R,04/10/2023,"18,997.81"
110120233,Digital & Business Change,Digital & Business Change,IT Operations,Supplies and Services,Services,AUDITEL RENTAL & SERVICE LTD,HP12,20/10/2023,"6,217.00"
110308234,Physical Support,Adults,Physical Support 65 and over,3rd Party Payments,Nursing Care,AURA CARE LIVING CIRENCESTER LTD,GL7 ,27/10/2023,"5,886.00"
110308234,Physical Support,Adults,Physical Support 65 and over,Income,Client Contribution - Residential,AURA CARE LIVING CIRENCESTER LTD,GL7 ,27/10/2023,"-1,021.48"
110308234,Mental Health,Adults,Mental Health 65 and over,3rd Party Payments,Residential Care,AURA CARE LIVING CIRENCESTER LTD,GL7 ,27/10/2023,"6,104.00"
110308234,Physical Support,Adults,Physical Support 65 and over,Income,Client Contribution - Nursing,AURA CARE LIVING CIRENCESTER LTD,GL7 ,27/10/2023,-691.20
110308234,Physical Support,Adults,Physical Support 65 and over,3rd Party Payments,Nursing Care,AURA CARE LIVING CIRENCESTER LTD,GL7 ,27/10/2023,"4,796.00"
110308234,Mental Health,Adults,Mental Health 18-64,3rd Party Payments,Residential Care,AURA CARE LIVING CIRENCESTER LTD,GL7 ,27/10/2023,"11,734.00"
110308234,Physical Support,Adults,Physical Support 65 and over,3rd Party Payments,Residential Care,AURA CARE LIVING CIRENCESTER LTD,GL7 ,27/10/2023,"4,142.00"
110308234,Mental Health,Adults,Mental Health 18-64,3rd Party Payments,Nursing Care,AURA CARE LIVING CIRENCESTER LTD,GL7 ,27/10/2023,"12,606.00"
110308234,Physical Support,Adults,Physical Support 65 and over,Income,Client Contribution - Nursing,AURA CARE LIVING CIRENCESTER LTD,GL7 ,27/10/2023,-608.00
110308234,Physical Support,Adults,Physical Support 65 and over,Income,Client Contribution - Nursing,AURA CARE LIVING CIRENCESTER LTD,GL7 ,27/10/2023,-735.64
110232319,Learning Disabilities,Adults,Learning Disability 18 - 64,Income,Client Contribution - Residential,AUTONOMY LIFE LIMITED,SN12,20/10/2023,-628.56
110232319,Learning Disabilities,Adults,Learning Disability 18 - 64,3rd Party Payments,Residential Care,AUTONOMY LIFE LIMITED,SN12,20/10/2023,"10,027.60"
111373241,Learning Disabilities,Adults,Learning Disability 65 and over,3rd Party Payments,Residential Care,AUTONOMY LIFE LIMITED,SN12,27/10/2023,716.26
107554233,Property Management,Property,Property Assets,Supplies and Services,Fees,AVISON YOUNG (UK) LTD,B1 2,02/10/2023,950.00
110156233,Property Management,Property,Property Assets,Supplies and Services,Fees,AVISON YOUNG (UK) LTD,B1 2,20/10/2023,"11,050.00"
107543233,Property Management,Property,Property Assets,Supplies and Services,Fees,AVISON YOUNG (UK) LTD,B1 2,02/10/2023,"6,368.20"
110232247,Learning Disabilities,Adults,Learning Disability 18 - 64,3rd Party Payments,Residential Care,AVON AUTISTIC FOUNDATION LTD,BS11,20/10/2023,"5,482.04"
110232248,Learning Disabilities,Adults,Learning Disability 18 - 64,3rd Party Payments,Residential Care,AVON AUTISTIC FOUNDATION LTD,BS11,20/10/2023,"7,668.32"
110232248,Learning Disabilities,Adults,Learning Disability 18 - 64,Income,Client Contribution - Residential,AVON AUTISTIC FOUNDATION LTD,BS11,20/10/2023,-483.20
110232247,Learning Disabilities,Adults,Learning Disability 18 - 64,Income,Client Contribution - Residential,AVON AUTISTIC FOUNDATION LTD,BS11,20/10/2023,-438.80
110552378,Homelessness and Travellers,Housing Services,Private Sector Landlords,Transfer Payments,Payment of Costs,AVONPARK PROPERTIES LTD,SN3 ,23/10/2023,550.00
110552285,Homelessness and Travellers,Housing Services,Private Sector Landlords,Transfer Payments,Payment of Costs,AVONPARK PROPERTIES LTD,SN3 ,23/10/2023,615.00
109646233,Town Centre,"Economy, Growth and Place",Carriage Works Phase 3,Capital,Professional Fees,BAILEY PARTNERSHIP (CONSULTANTS) LLP,PL1 ,18/10/2023,"1,000.00"
109647233,Town Centre,"Economy, Growth and Place",Carriage Works Phase 3,Capital,Professional Fees,BAILEY PARTNERSHIP (CONSULTANTS) LLP,PL1 ,18/10/2023,"2,000.00"
107731507,Town Centre,"Economy, Growth and Place",Carriage Works Phase 3,Capital,Professional Fees,BAILEY PARTNERSHIP (CONSULTANTS) LLP,PL1 ,04/10/2023,"2,300.00"
109265233,Social Care,Children & Families,Childrens Homefinding Team,Employees,Temporary / Agency - by Accounts Payable,REDACTED PERSONAL DATA,BS1 ,13/10/2023,"2,500.00"
109266233,Social Care,Children & Families,Childrens Homefinding Team,Employees,Temporary / Agency - by Accounts Payable,REDACTED PERSONAL DATA,BS1 ,13/10/2023,"3,125.00"
108698233,Social Care,Children & Families,Childrens Homefinding Team,Employees,Temporary / Agency - by Accounts Payable,REDACTED PERSONAL DATA,BS1 ,11/10/2023,"2,500.00"
107507233,Social Care,Children & Families,Childrens Homefinding Team,Employees,Temporary / Agency - by Accounts Payable,REDACTED PERSONAL DATA,BS1 ,02/10/2023,"3,125.00"
108699233,Social Care,Children & Families,Childrens Homefinding Team,Employees,Temporary / Agency - by Accounts Payable,REDACTED PERSONAL DATA,BS1 ,11/10/2023,"3,125.00"
109604239,Social Care,Children & Families,Children's Resource and Home Finding Team,3rd Party Payments,Independent Fostering Agency Placements,BANYA FAMILY PLACEMENT AGENCY LIMITED,SE24,18/10/2023,"3,851.40"
109604238,Social Care,Children & Families,Children's Resource and Home Finding Team,3rd Party Payments,Independent Fostering Agency Placements,BANYA FAMILY PLACEMENT AGENCY LIMITED,SE24,18/10/2023,"2,054.08"
109604236,Social Care,Children & Families,Children's Resource and Home Finding Team,3rd Party Payments,Independent Fostering Agency Placements,BANYA FAMILY PLACEMENT AGENCY LIMITED,SE24,18/10/2023,"2,054.08"
109604237,Social Care,Children & Families,Children's Resource and Home Finding Team,3rd Party Payments,Independent Fostering Agency Placements,BANYA FAMILY PLACEMENT AGENCY LIMITED,SE24,18/10/2023,"3,851.40"
111254429,Physical Support,Adults,Physical Support 65 and over,Transfer Payments,Personal Budget - Direct Payments - Domiciliary Care,REDACTED PERSONAL DATA,2969,27/10/2023,8.56
111254429,Physical Support,Adults,Physical Support 65 and over,Transfer Payments,Personal Budget - Direct Payments - Domiciliary Care,REDACTED PERSONAL DATA,2969,27/10/2023,"1,111.32"
111254429,Physical Support,Adults,Physical Support 65 and over,Income,Client Contribution - Personal Budget - DP,REDACTED PERSONAL DATA,2969,27/10/2023,-2.48
111254429,Physical Support,Adults,Physical Support 65 and over,Income,Client Contribution - Personal Budget - DP,REDACTED PERSONAL DATA,2969,27/10/2023,-321.76
109602245,Early Years Block,Dedicated Schools Grant (DSG),Free Nursery Education Commissioning - three & four  year olds,3rd Party Payments,Contracts - Child Care,BARN OWL PRE-SCHOOL,SN25,18/10/2023,"6,552.22"
107929234,Care Management & Safeguarding,Adults,Community Safety Partnership,3rd Party Payments,Contract Payments,BARNARDO'S,IG6 ,04/10/2023,"70,000.00"
108403233,School Transport,"Education, Inclusion and Skills",Mainstream School Transport,Transport Costs,Home to School Transport,BARNES COACHES LTD,SN3 ,06/10/2023,"10,707.20"
109264233,Landlord Services,Supervision & Management,Estate Management Team,Premises Costs,Rents,BARNES SOLICITORS LLP,SE1 ,13/10/2023,"5,000.00"
110753234,Streetsmart,Streetsmart,StreetSmart Contracts & Strategic Planning,Supplies and Services,Services,BARTEC MUNICIPAL TECHNOLOGIES LTD,S75 ,25/10/2023,"2,800.00"
108730233,Schools - Primary,Dedicated Schools Grant (DSG),Primary School Budgets,3rd Party Payments,Mainstream Delegated Funding,BEECHCROFT INFANT SCHOOL,SN2 ,13/10/2023,"96,891.00"
108754233,DSG Other Funding,Dedicated Schools Grant (DSG),DFE Additional Grants,3rd Party Payments,Payment of Pupil Premium to school,BEECHCROFT INFANT SCHOOL,SN2 ,13/10/2023,"8,347.00"
109504252,High Needs Block,Dedicated Schools Grant (DSG),SEN Resourcing Assessment Panel,3rd Party Payments,Top up funding - Maintained providers Pre 16,BEECHCROFT INFANT SCHOOL,SN2 ,16/10/2023,"3,428.50"
110232294,Learning Disabilities,Adults,Learning Disability 18 - 64,Income,Client Contribution - Residential,BEECHWOOD COURT LTD,CF10,20/10/2023,-322.56
110232294,Learning Disabilities,Adults,Learning Disability 18 - 64,3rd Party Payments,Residential Care,BEECHWOOD COURT LTD,CF10,20/10/2023,"29,947.84"
110232294,Learning Disabilities,Adults,Learning Disability 18 - 64,3rd Party Payments,Residential Care,BEECHWOOD COURT LTD,CF10,20/10/2023,"20,830.56"
Corporate Card Transaction,Homelessness and Travellers,Housing Services,Bed and Breakfast Accommodation,Transfer Payments,Payment of Costs,Bellemasion.Uk,,18/10/2023,560
Corporate Card Transaction,Homelessness and Travellers,Housing Services,Bed and Breakfast Accommodation,Transfer Payments,Payment of Costs,Bellemasion.Uk,,10/10/2023,560
Corporate Card Transaction,ASC Finance Services Teams,ASC Finance Services,ASC Money Management Team,Supplies and Services,Services,Bensonsforbedsretail,,11/10/2023,518.99
109003233,Libraries,"Education, Inclusion and Skills",Central,Premises Costs,Waste,BIFFA WASTE SERVICES LTD,HP12,11/10/2023,476.40
108722233,Schools - Primary,Dedicated Schools Grant (DSG),Primary School Budgets,3rd Party Payments,Mainstream Delegated Funding,BISHOPSTONE C E PRIMARY SCHOOL,SN6 ,13/10/2023,"27,037.00"
108744233,DSG Other Funding,Dedicated Schools Grant (DSG),DFE Additional Grants,3rd Party Payments,Payment of Pupil Premium to school,BISHOPSTONE C E PRIMARY SCHOOL,SN6 ,13/10/2023,"1,618.00"
107622234,High Needs Block,Dedicated Schools Grant (DSG),Out of Borough School Fees,3rd Party Payments,OLA Special schools- Pre 16,BISHOPSWOOD SCHOOL,OX12,04/10/2023,"10,513.08"
109276233,DSG Other Funding,Dedicated Schools Grant (DSG),LAC pupil premium,Supplies and Services,Services,BISHOPSWOOD SCHOOL,OX12,20/10/2023,600.00
109093233,High Needs Block,Dedicated Schools Grant (DSG),Out of Borough School Fees,3rd Party Payments,OLA Special schools- Pre 16,BISHOPSWOOD SCHOOL,OX12,13/10/2023,"10,513.08"
109093233,High Needs Block,Dedicated Schools Grant (DSG),Out of Borough School Fees,3rd Party Payments,OLA Special schools- Pre 16,BISHOPSWOOD SCHOOL,OX12,13/10/2023,"10,513.08"
109275233,DSG Other Funding,Dedicated Schools Grant (DSG),LAC pupil premium,Supplies and Services,Services,BISHOPSWOOD SCHOOL,OX12,20/10/2023,600.00
107622234,High Needs Block,Dedicated Schools Grant (DSG),Out of Borough School Fees,3rd Party Payments,OLA Special schools- Pre 16,BISHOPSWOOD SCHOOL,OX12,04/10/2023,"10,513.08"
Corporate Card Transaction,Social Care,"Children, Families and Community Health Services",No Recourse to Public Funds,3rd Party Payments,Personal Needs,Bkg*hotel At Booking.C,,13/10/2023,1907.28
Corporate Card Transaction,Social Care,"Children, Families and Community Health Services",External Placements,3rd Party Payments,Care Packages,Bkg*hotel At Booking.C,,28/09/2023,1143.45
Corporate Card Transaction,Social Care,"Children, Families and Community Health Services",CP & CIN Social Work - North,Supplies and Services,Materials,Bkg*hotel At Booking.C,,02/10/2023,1943.25
Corporate Card Transaction,Social Care,"Children, Families and Community Health Services",CP & CIN Social Work - North,Supplies and Services,Materials,Bkg*hotel At Booking.C,,28/09/2023,815.04
110943233,Landscaping & Open Space,Culture & Heritage & Art,Moredon Recreation - Multi Sports Hub,Capital,Contractor Payments,BLB KILMINSTER BEER LLP,SN1 ,25/10/2023,"12,315.00"
108305241,Social Care,Children & Families,Children's Resource and Home Finding Team,3rd Party Payments,Independent Fostering Agency Placements,BLUE SKY,HA1 ,06/10/2023,"6,248.40"
108305243,Social Care,Children & Families,Children's Resource and Home Finding Team,3rd Party Payments,Independent Fostering Agency Placements,BLUE SKY,HA1 ,06/10/2023,"6,248.40"
108305244,Social Care,Children & Families,Children's Resource and Home Finding Team,3rd Party Payments,Independent Fostering Agency Placements,BLUE SKY,HA1 ,06/10/2023,"6,300.00"
108305242,Social Care,Children & Families,Children's Resource and Home Finding Team,3rd Party Payments,Independent Fostering Agency Placements,BLUE SKY,HA1 ,06/10/2023,"5,742.60"
108305240,Social Care,Children & Families,Children's Resource and Home Finding Team,3rd Party Payments,Independent Fostering Agency Placements,BLUE SKY,HA1 ,06/10/2023,620.00
108305238,Social Care,Children & Families,Children's Resource and Home Finding Team,3rd Party Payments,Parent & Child Placements,BLUE SKY,HA1 ,06/10/2023,"-2,442.00"
108305239,Social Care,Children & Families,Children's Resource and Home Finding Team,3rd Party Payments,Independent Fostering Agency Placements,BLUE SKY,HA1 ,06/10/2023,"1,364.00"
109036233,Streetsmart,Streetsmart,Waterside Fleet Workshops,Supplies and Services,Equipment,BOC LTD,M28 ,11/10/2023,489.20
110232306,Mental Health,Adults,Mental Health 65 and over,3rd Party Payments,Residential Care,BOLEALLER HOUSE LTD,EX15,20/10/2023,"5,299.80"
110261237,Libraries,"Education, Inclusion and Skills",Library Delivery,Supplies and Services,Materials,BOLINDA UK LTD,RG14,20/10/2023,486.99
107585233,Physical Support,Adults,Fessey House,Supplies and Services,Food,BOOKER LIMITED,CH5 ,04/10/2023,109.54
107585233,Physical Support,Adults,Fessey House,Supplies and Services,Food,BOOKER LIMITED,CH5 ,04/10/2023,538.37
108169233,Customer Strategy & Operations,"People, Culture and Organisational Resilience",Cemeteries & Crematoria,Supplies and Services,Materials,BOSWELL BROS (SALISBURY) LTD,SP4 ,06/10/2023,"2,108.96"
110465234,Physical Support,Adults,Physical Support 65 and over,3rd Party Payments,Nursing Care,BOTHWELLS LTD,HA6 ,20/10/2023,"2,867.32"
110465234,Physical Support,Adults,Physical Support 65 and over,3rd Party Payments,Nursing Care,BOTHWELLS LTD,HA6 ,20/10/2023,"3,763.24"
110465234,Physical Support,Adults,Physical Support 65 and over,Income,Client Contribution - Nursing,BOTHWELLS LTD,HA6 ,20/10/2023,-691.20
110465234,Physical Support,Adults,Physical Support 65 and over,Income,Client Contribution - Nursing,BOTHWELLS LTD,HA6 ,20/10/2023,194.23
110465234,Physical Support,Adults,Physical Support 18 - 64,Income,Client Contribution - Nursing,BOTHWELLS LTD,HA6 ,20/10/2023,-659.80
110465234,Physical Support,Adults,Physical Support 18 - 64,Income,Client Contribution - Nursing,BOTHWELLS LTD,HA6 ,20/10/2023,-425.60
110465234,Physical Support,Adults,Physical Support 18 - 64,3rd Party Payments,Nursing Care,BOTHWELLS LTD,HA6 ,20/10/2023,"2,867.32"
110465234,Physical Support,Adults,Physical Support 65 and over,Income,Client Contribution - Nursing,BOTHWELLS LTD,HA6 ,20/10/2023,-779.00
110465234,Physical Support,Adults,Physical Support 65 and over,3rd Party Payments,Nursing Care,BOTHWELLS LTD,HA6 ,20/10/2023,"7,160.96"
110465234,Physical Support,Adults,Physical Support 65 and over,Income,Client Contribution - Nursing,BOTHWELLS LTD,HA6 ,20/10/2023,-781.40
110465234,Physical Support,Adults,Physical Support 65 and over,3rd Party Payments,Residential Care,BOTHWELLS LTD,HA6 ,20/10/2023,"3,600.00"
110465234,Physical Support,Adults,Physical Support 18 - 64,3rd Party Payments,Nursing Care,BOTHWELLS LTD,HA6 ,20/10/2023,"3,270.76"
110465234,Physical Support,Adults,Physical Support 65 and over,Income,Client Contribution - Nursing,BOTHWELLS LTD,HA6 ,20/10/2023,-909.16
110465234,Physical Support,Adults,Physical Support 65 and over,Income,Client Contribution - Nursing,BOTHWELLS LTD,HA6 ,20/10/2023,"-1,182.84"
110465234,Physical Support,Adults,Physical Support 65 and over,Income,Client Contribution - Nursing,BOTHWELLS LTD,HA6 ,20/10/2023,"-1,384.80"
107486233,Responsive Repairs,Repairs,Responsive Repairs,3rd Party Payments,Contract Payments,BOUNDARY SCAFFOLDING LTD,SN6 ,02/10/2023,"1,920.00"
107519233,Responsive Repairs,Repairs,Responsive Repairs,3rd Party Payments,Contract Payments,BOUNDARY SCAFFOLDING LTD,SN6 ,02/10/2023,890.00
107484233,Responsive Repairs,Repairs,Responsive Repairs,3rd Party Payments,Contract Payments,BOUNDARY SCAFFOLDING LTD,SN6 ,02/10/2023,"1,734.00"
107480233,Responsive Repairs,Repairs,Responsive Repairs,3rd Party Payments,Contract Payments,BOUNDARY SCAFFOLDING LTD,SN6 ,02/10/2023,"1,620.00"
107943234,Responsive Repairs,Repairs,Responsive Repairs,3rd Party Payments,Contract Payments,BOUNDARY SCAFFOLDING LTD,SN6 ,06/10/2023,"6,560.00"
107520233,Responsive Repairs,Repairs,Responsive Repairs,3rd Party Payments,Contract Payments,BOUNDARY SCAFFOLDING LTD,SN6 ,02/10/2023,580.00
107479233,Responsive Repairs,Repairs,Responsive Repairs,3rd Party Payments,Contract Payments,BOUNDARY SCAFFOLDING LTD,SN6 ,02/10/2023,"1,188.00"
107485233,Responsive Repairs,Repairs,Responsive Repairs,3rd Party Payments,Contract Payments,BOUNDARY SCAFFOLDING LTD,SN6 ,02/10/2023,"1,780.00"
109591233,Responsive Repairs,Repairs,Responsive Repairs,3rd Party Payments,Contract Payments,BOUNDARY SCAFFOLDING LTD,SN6 ,18/10/2023,680.00
107481233,Responsive Repairs,Repairs,Responsive Repairs,3rd Party Payments,Contract Payments,BOUNDARY SCAFFOLDING LTD,SN6 ,02/10/2023,580.00
107483233,Responsive Repairs,Repairs,Responsive Repairs,3rd Party Payments,Contract Payments,BOUNDARY SCAFFOLDING LTD,SN6 ,02/10/2023,960.00
107482233,Responsive Repairs,Repairs,Responsive Repairs,3rd Party Payments,Contract Payments,BOUNDARY SCAFFOLDING LTD,SN6 ,02/10/2023,820.00
110245233,Property Management,Property,Property Assets,Supplies and Services,Fees,BPE SOLICITORS LLP,GL50,20/10/2023,6.00
110246233,Property Management,Property,Property Assets,Supplies and Services,Fees,BPE SOLICITORS LLP,GL50,20/10/2023,500.00
110245233,Property Management,Property,Property Assets,Supplies and Services,Fees,BPE SOLICITORS LLP,GL50,20/10/2023,"1,000.00"
107560233,Responsive Repairs,Repairs,Responsive Repairs,3rd Party Payments,Contract Payments,BPM CONTRACTING SERVICES LTD,BA2 ,04/10/2023,826.91
109654239,Responsive Repairs,Repairs,Responsive Repairs,3rd Party Payments,Contract Payments,BPM CONTRACTING SERVICES LTD,BA2 ,18/10/2023,529.84
110941233,Responsive Repairs,Repairs,Responsive Repairs,3rd Party Payments,Contract Payments,BPM CONTRACTING SERVICES LTD,BA2 ,25/10/2023,688.62
111079238,Responsive Repairs,Repairs,Responsive Repairs,3rd Party Payments,Contract Payments,BPM CONTRACTING SERVICES LTD,BA2 ,27/10/2023,"1,242.73"
111356234,Responsive Repairs,Repairs,Responsive Repairs,3rd Party Payments,Contract Payments,BPM CONTRACTING SERVICES LTD,BA2 ,27/10/2023,805.29
110783233,Responsive Repairs,Repairs,Responsive Repairs,3rd Party Payments,Contract Payments,BPM CONTRACTING SERVICES LTD,BA2 ,25/10/2023,420.68
111079233,Responsive Repairs,Repairs,Responsive Repairs,3rd Party Payments,Contract Payments,BPM CONTRACTING SERVICES LTD,BA2 ,27/10/2023,"1,509.67"
111099240,Responsive Repairs,Repairs,Responsive Repairs,3rd Party Payments,Contract Payments,BPM CONTRACTING SERVICES LTD,BA2 ,27/10/2023,"1,645.70"
111011235,High Needs Block,Dedicated Schools Grant (DSG),SEN Resourcing Assessment Panel,3rd Party Payments,Top up funding - Maintained providers Pre 16,BRAMBLE HOUSE DAY NURSERY LTD,SN2 ,25/10/2023,"1,260.00"
110649233,Social Care,Children & Families,Children's Resource and Home Finding Team,3rd Party Payments,Residential Care,BRANAS ISAF LIMITED,EN6 ,23/10/2023,"24,578.66"
110002233,Museums & Heritage,Culture & Heritage,Steam:Income Generation,Supplies and Services,Equipment,BRANDART LTD,CO4 ,20/10/2023,480.00
107646233,Property Service Charged Properties,Property,Service Charged - Robert Le Kyng Childrens Centre,Premises Costs,Maintenance - Buildings,BRISTOL FIRE,BS37,04/10/2023,930.17
111250240,Streetsmart,Streetsmart,Waterside Depot,Premises Costs,Gas,BRITISH GAS TRADING LTD,S98 ,27/10/2023,"2,722.71"
Corporate Card Transaction,Homelessness and Travellers,Housing Services,Warm Welcome Project,Supplies and Services,Equipment,British Heart Foundation,,04/10/2023,520
110116233,Revenues & Benefits,Revenues & Benefits,Swindon Emergency Assistance Fund,Supplies and Services,Materials,BRITISH HEART FOUNDATION,NW1 ,20/10/2023,780.00
109118233,,,Balance Sheet,Balance Sheet & Recharge,British Telecom invoices,BRITISH TELECOMMUNICATIONS PLC,S98 ,13/10/2023,"21,660.94"
109142233,Corporate,Corporate Finance,Corporate Financial Management,Supplies and Services,Fees,BROADSTONE CONSULTANTS & ACTUARIES LTD,BS1 ,13/10/2023,"2,706.02"
110864233,Disabled Children,Children & Families,DCT Daytime Short Breaks,3rd Party Payments,Day Care,BRUNEL EDUCATION,SN25,25/10/2023,"1,570.80"
110850233,Disabled Children,Children & Families,DCT Daytime Short Breaks,3rd Party Payments,Day Care,BRUNEL EDUCATION,SN25,25/10/2023,792.00
109504310,High Needs Block,Dedicated Schools Grant (DSG),SEN Resourcing Assessment Panel,3rd Party Payments,Top up funding - Academies and Free Schools Pre 16,BRUNEL EDUCATION,SN25,16/10/2023,"13,776.46"
110884233,Disabled Children,Children & Families,DCT Daytime Short Breaks,3rd Party Payments,Day Care,BRUNEL EDUCATION,SN25,25/10/2023,"1,452.00"
110881233,Disabled Children,Children & Families,DCT Daytime Short Breaks,3rd Party Payments,Day Care,BRUNEL EDUCATION,SN25,25/10/2023,580.80
111041233,Disabled Children,Children & Families,DCT Daytime Short Breaks,3rd Party Payments,Day Care,BRUNEL EDUCATION,SN25,25/10/2023,616.00
111389233,Disabled Children,Children & Families,DCT Daytime Short Breaks,3rd Party Payments,Day Care,BRUNEL EDUCATION,SN25,27/10/2023,660.00
110885233,Disabled Children,Children & Families,DCT Daytime Short Breaks,3rd Party Payments,Day Care,BRUNEL EDUCATION,SN25,25/10/2023,"1,254.00"
110875233,Disabled Children,Children & Families,DCT Daytime Short Breaks,3rd Party Payments,Day Care,BRUNEL EDUCATION,SN25,25/10/2023,792.00
111463234,Disabled Children,Children & Families,DCT Daytime Short Breaks,3rd Party Payments,Day Care,BRUNEL EDUCATION,SN25,30/10/2023,660.00
110863234,Disabled Children,Children & Families,DCT Daytime Short Breaks,3rd Party Payments,Day Care,BRUNEL EDUCATION,SN25,25/10/2023,739.20
110866233,Disabled Children,Children & Families,DCT Daytime Short Breaks,3rd Party Payments,Day Care,BRUNEL EDUCATION,SN25,25/10/2023,"1,056.00"
110892233,Disabled Children,Children & Families,DCT Daytime Short Breaks,3rd Party Payments,Day Care,BRUNEL EDUCATION,SN25,25/10/2023,"1,056.00"
110886233,Disabled Children,Children & Families,DCT Daytime Short Breaks,3rd Party Payments,Day Care,BRUNEL EDUCATION,SN25,25/10/2023,"1,452.00"
110889233,Disabled Children,Children & Families,DCT Daytime Short Breaks,3rd Party Payments,Day Care,BRUNEL EDUCATION,SN25,25/10/2023,"1,056.00"
111466233,Disabled Children,Children & Families,DCT Daytime Short Breaks,3rd Party Payments,Day Care,BRUNEL EDUCATION,SN25,30/10/2023,924.00
111386236,Disabled Children,Children & Families,DCT Daytime Short Breaks,3rd Party Payments,Day Care,BRUNEL EDUCATION,SN25,27/10/2023,616.00
110859233,Disabled Children,Children & Families,DCT Daytime Short Breaks,3rd Party Payments,Day Care,BRUNEL EDUCATION,SN25,25/10/2023,"1,254.00"
111386255,Disabled Children,Children & Families,DCT Daytime Short Breaks,3rd Party Payments,Day Care,BRUNEL EDUCATION,SN25,27/10/2023,726.00
110846233,Disabled Children,Children & Families,DCT Daytime Short Breaks,3rd Party Payments,Day Care,BRUNEL EDUCATION,SN25,25/10/2023,968.00
111039233,Disabled Children,Children & Families,DCT Daytime Short Breaks,3rd Party Payments,Day Care,BRUNEL EDUCATION,SN25,25/10/2023,814.00
111049233,Disabled Children,Children & Families,DCT Daytime Short Breaks,3rd Party Payments,Day Care,BRUNEL EDUCATION,SN25,25/10/2023,528.00
109504345,High Needs Block,Dedicated Schools Grant (DSG),Post 16 - New Responsibilties,3rd Party Payments,Independent Service Provider- Post 16,BRUNEL EDUCATION,SN25,16/10/2023,"113,367.67"
110862233,Disabled Children,Children & Families,DCT Daytime Short Breaks,3rd Party Payments,Day Care,BRUNEL EDUCATION,SN25,25/10/2023,"2,354.00"
110891233,Disabled Children,Children & Families,DCT Daytime Short Breaks,3rd Party Payments,Day Care,BRUNEL EDUCATION,SN25,25/10/2023,792.00
109504331,High Needs Block,Dedicated Schools Grant (DSG),SEN Resourcing Assessment Panel,3rd Party Payments,Top up funding - Academies and Free Schools Pre 16,REDACTED PERSONAL DATA,SN25,16/10/2023,"7,332.89"
109504311,High Needs Block,Dedicated Schools Grant (DSG),SEN Resourcing Assessment Panel,3rd Party Payments,Top up funding - Academies and Free Schools Pre 16,REDACTED PERSONAL DATA,SN25,16/10/2023,"31,689.54"
109504324,High Needs Block,Dedicated Schools Grant (DSG),SEN Resourcing Assessment Panel,3rd Party Payments,Top up funding - Academies and Free Schools Pre 16,REDACTED PERSONAL DATA,SN25,16/10/2023,"72,044.21"
109504334,High Needs Block,Dedicated Schools Grant (DSG),SEN Resourcing Assessment Panel,3rd Party Payments,Top up funding - Academies and Free Schools Pre 16,REDACTED PERSONAL DATA,SN25,16/10/2023,"4,945.45"
108765233,High Needs Block,Dedicated Schools Grant (DSG),Advisory Teacher Services,Supplies and Services,Payments to Educational Bodies,REDACTED PERSONAL DATA,SN25,13/10/2023,"7,250.00"
111324235,Treasury,Corporate Finance,Private Finance Initiatives (PFI),Income,Leases & Lettings,REDACTED PERSONAL DATA,SN25,27/10/2023,677.29
109504309,High Needs Block,Dedicated Schools Grant (DSG),SEN Resourcing Assessment Panel,3rd Party Payments,Top up funding - Academies and Free Schools Pre 16,REDACTED PERSONAL DATA,SN25,16/10/2023,"7,291.67"
109504316,High Needs Block,Dedicated Schools Grant (DSG),SEN Resourcing Assessment Panel,3rd Party Payments,Top up funding - Academies and Free Schools Pre 16,REDACTED PERSONAL DATA,SN25,16/10/2023,"119,946.53"
109602346,Early Years Block,Dedicated Schools Grant (DSG),Free Nursery Education Commissioning - three & four  year olds,3rd Party Payments,Contracts - Child Care,REDACTED PERSONAL DATA,SN25,18/10/2023,"6,260.76"
109504293,High Needs Block,Dedicated Schools Grant (DSG),SEN Resourcing Assessment Panel,3rd Party Payments,Top up funding - Academies and Free Schools Pre 16,REDACTED PERSONAL DATA,SN25,16/10/2023,555.62
111324235,Treasury,Corporate Finance,Private Finance Initiatives (PFI),Income,Leases & Lettings,REDACTED PERSONAL DATA,SN25,27/10/2023,"2,980.21"
109504313,High Needs Block,Dedicated Schools Grant (DSG),SEN Resourcing Assessment Panel,3rd Party Payments,Top up funding - Academies and Free Schools Pre 16,REDACTED PERSONAL DATA,SN25,16/10/2023,"152,203.10"
108766233,High Needs Block,Dedicated Schools Grant (DSG),Advisory Teacher Services,Supplies and Services,Payments to Educational Bodies,REDACTED PERSONAL DATA,SN25,13/10/2023,"11,325.00"
109504312,High Needs Block,Dedicated Schools Grant (DSG),SEN Resourcing Assessment Panel,3rd Party Payments,Top up funding - Academies and Free Schools Pre 16,REDACTED PERSONAL DATA,SN25,16/10/2023,"70,388.57"
109504308,High Needs Block,Dedicated Schools Grant (DSG),SEN Resourcing Assessment Panel,3rd Party Payments,Top up funding - Academies and Free Schools Pre 16,REDACTED PERSONAL DATA,SN25,16/10/2023,"113,113.78"
109504337,High Needs Block,Dedicated Schools Grant (DSG),SEN Resourcing Assessment Panel,3rd Party Payments,Top up funding - Academies and Free Schools Post 16,REDACTED PERSONAL DATA,SN25,16/10/2023,"53,295.85"
109504335,High Needs Block,Dedicated Schools Grant (DSG),SEN Resourcing Assessment Panel,3rd Party Payments,Top up funding - Academies and Free Schools Pre 16,REDACTED PERSONAL DATA,SN25,16/10/2023,"21,038.33"
109123233,Landscaping & Open Space,Culture & Heritage & Art,GWCF - Trees for Climate,Capital,Contractor Payments,BRUNEL SURVEYS LTD,CM20,13/10/2023,800.00
109115233,Landscaping & Open Space,Culture & Heritage & Art,GWCF - Trees for Climate,Capital,Contractor Payments,BRUNEL SURVEYS LTD,CM20,13/10/2023,700.00
109117233,Landscaping & Open Space,Culture & Heritage & Art,GWCF - Trees for Climate,Capital,Contractor Payments,BRUNEL SURVEYS LTD,CM20,13/10/2023,650.00
109121233,Landscaping & Open Space,Culture & Heritage & Art,GWCF - Trees for Climate,Capital,Contractor Payments,BRUNEL SURVEYS LTD,CM20,13/10/2023,650.00
109125233,Landscaping & Open Space,Culture & Heritage & Art,GWCF - Trees for Climate,Capital,Contractor Payments,BRUNEL SURVEYS LTD,CM20,13/10/2023,650.00
110222233,NEV,"Economy, Growth and Place",White Hart Junction,Capital,Consultants,BRUTON KNOWLES,GL2 ,20/10/2023,923.00
107548233,NEV,"Economy, Growth and Place",Southern Connector Road,Capital,Compensation Payments,BRUTON KNOWLES,GL2 ,02/10/2023,"4,930.80"
107549233,NEV,"Economy, Growth and Place",Southern Connector Road,Capital,Compensation Payments,BRUTON KNOWLES,GL2 ,02/10/2023,"6,168.00"
107641233,NEV,"Economy, Growth and Place",Southern Connector Road,Capital,Consultants,BRUTON KNOWLES,GL2 ,04/10/2023,"1,829.70"
110220233,NEV,"Economy, Growth and Place",White Hart Junction,Capital,Consultants,BRUTON KNOWLES,GL2 ,20/10/2023,"7,500.00"
110722235,Non-HRA Vehicles,Transport,Vehicle & Plant replacement strategy,Capital,Contractor Payments,BSP TEX LTD,IP6 ,25/10/2023,"3,294.00"
108605233,Housing & Supported Living,Adults,ASC Equipment,Capital,Contractor Payments,BUILDTECH SW LIMITED,GL53,09/10/2023,539.01
108815233,Property & Assets,Property & Assets,General Enhancement Works Corporate Buildings,Capital,Contractor Payments,BUILDTECH SW LIMITED,GL53,11/10/2023,"12,580.16"
108815233,Property & Assets,Property & Assets,General Enhancement Works Corporate Buildings,Capital,Contractor Payments,BUILDTECH SW LIMITED,GL53,11/10/2023,"8,386.77"
108606233,Schools Maintenance,Skills & Attainment,Condition Works,Capital,Contractor Payments,BUILDTECH SW LIMITED,GL53,09/10/2023,"1,500.00"
108605233,Housing & Supported Living,Adults,ASC Equipment,Capital,Contractor Payments,BUILDTECH SW LIMITED,GL53,09/10/2023,"1,000.00"
108606233,Schools Maintenance,Skills & Attainment,Condition Works,Capital,Contractor Payments,BUILDTECH SW LIMITED,GL53,09/10/2023,"2,293.31"
111302233,Schools Maintenance,Skills & Attainment,Condition Works,Capital,Contractor Payments,BUILDTECH SW LIMITED,GL53,27/10/2023,"42,668.23"
111302233,Schools Maintenance,Skills & Attainment,Condition Works,Capital,Contractor Payments,BUILDTECH SW LIMITED,GL53,27/10/2023,"10,008.60"
109669233,Neighbourhood Wardens,Special Services,Neighbourhood Wardens,Supplies and Services,Hire / Rental,BUNZL CLEANING & HYGIENE SUPPLIES,SL3 ,18/10/2023,987.76
110232334,Physical Support,Adults,Physical Support 65 and over,3rd Party Payments,Residential Care,BUPA CARE HOME (ANS) LTD,LS5 ,20/10/2023,"4,400.00"
107701233,Human Resources and Organisational Development,"People, Culture and Organisational Resilience",HR Operations,Employees,Temporary / Agency - by Accounts Payable,BURMAN HR,DT1 ,04/10/2023,"2,286.48"
109602249,Early Years Block,Dedicated Schools Grant (DSG),Free Nursery Education Commissioning - three & four  year olds,3rd Party Payments,Contracts - Child Care,"BUSY BEES, BROOME MANOR",SN3 ,18/10/2023,"11,474.40"
109602248,Early Years Block,Dedicated Schools Grant (DSG),Free Nursery Education Commissioning - two year olds,3rd Party Payments,Contracts - Child Care,"BUSY BEES, BROOME MANOR",SN3 ,18/10/2023,"1,296.96"
110765244,Early Years Block,Dedicated Schools Grant (DSG),Free Nursery Education Commissioning - three & four  year olds,3rd Party Payments,Contracts - Child Care,"BUSY BEES, PEATMOOR",SN5 ,25/10/2023,"2,280.00"
109602250,Early Years Block,Dedicated Schools Grant (DSG),Free Nursery Education Commissioning - three & four  year olds,3rd Party Payments,Contracts - Child Care,"BUSY BEES, PEATMOOR",SN5 ,18/10/2023,"11,662.00"
110765238,Early Years Block,Dedicated Schools Grant (DSG),Free Nursery Education Commissioning - three & four  year olds,3rd Party Payments,Contracts - Child Care,"BUSY BEES, PEATMOOR",SN5 ,25/10/2023,"2,280.00"
109602251,Early Years Block,Dedicated Schools Grant (DSG),Free Nursery Education Commissioning - two year olds,3rd Party Payments,Contracts - Child Care,"BUSY BEES, PEATMOOR",SN5 ,18/10/2023,"2,593.92"
110765245,Early Years Block,Dedicated Schools Grant (DSG),Free Nursery Education Commissioning - three & four  year olds,3rd Party Payments,Contracts - Child Care,"BUSY BEES, PEATMOOR",SN5 ,25/10/2023,"2,280.00"
110765248,Early Years Block,Dedicated Schools Grant (DSG),Free Nursery Education Commissioning - three & four  year olds,3rd Party Payments,Contracts - Child Care,"BUSY BEES, PEATMOOR",SN5 ,25/10/2023,750.00
109602246,Early Years Block,Dedicated Schools Grant (DSG),Free Nursery Education Commissioning - three & four  year olds,3rd Party Payments,Contracts - Child Care,"BUSY BEES, ST ANDREWS RIDGE",SN25,18/10/2023,"17,248.00"
109602247,Early Years Block,Dedicated Schools Grant (DSG),Free Nursery Education Commissioning - two year olds,3rd Party Payments,Contracts - Child Care,"BUSY BEES, ST ANDREWS RIDGE",SN25,18/10/2023,864.64
110232277,Learning Disabilities,Adults,Learning Disability 18 - 64,3rd Party Payments,Residential Care,C.H.O.I.C.E LTD,RG12,20/10/2023,"10,380.16"
111358239,Learning Disabilities,Adults,Learning Disability 65 and over,3rd Party Payments,Residential Care,C.H.O.I.C.E LTD,RG12,27/10/2023,751.19
110232274,Learning Disabilities,Adults,Learning Disability 18 - 64,3rd Party Payments,Residential Care,C.H.O.I.C.E LTD,RG12,20/10/2023,"13,814.08"
110232274,Learning Disabilities,Adults,Learning Disability 18 - 64,Income,Client Contribution - Residential,C.H.O.I.C.E LTD,RG12,20/10/2023,-427.20
110232272,Learning Disabilities,Adults,Learning Disability 18 - 64,3rd Party Payments,Residential Care,C.H.O.I.C.E LTD,RG12,20/10/2023,"13,440.00"
110232278,Learning Disabilities,Adults,Learning Disability 18 - 64,Income,Client Contribution - Residential,C.H.O.I.C.E LTD,RG12,20/10/2023,-454.80
110232276,Learning Disabilities,Adults,Learning Disability 65 and over,3rd Party Payments,Residential Care,C.H.O.I.C.E LTD,RG12,20/10/2023,"10,516.64"
111479233,Learning Disabilities,Adults,Learning Disability 65 and over,3rd Party Payments,Residential Care,C.H.O.I.C.E LTD,RG12,30/10/2023,699.84
111478233,Learning Disabilities,Adults,Learning Disability 18 - 64,3rd Party Payments,Residential Care,C.H.O.I.C.E LTD,RG12,30/10/2023,706.24
110232273,Learning Disabilities,Adults,Learning Disability 18 - 64,Income,Client Contribution - Residential,C.H.O.I.C.E LTD,RG12,20/10/2023,-511.20
110232278,Learning Disabilities,Adults,Learning Disability 18 - 64,Income,Client Contribution - Residential,C.H.O.I.C.E LTD,RG12,20/10/2023,-276.60
110232277,Learning Disabilities,Adults,Learning Disability 18 - 64,Income,Client Contribution - Residential,C.H.O.I.C.E LTD,RG12,20/10/2023,-617.76
110232276,Learning Disabilities,Adults,Learning Disability 65 and over,3rd Party Payments,Residential Care,C.H.O.I.C.E LTD,RG12,20/10/2023,"9,862.32"
110232278,Physical Support,Adults,Physical Support 18 - 64,Income,Client Contribution - Residential,C.H.O.I.C.E LTD,RG12,20/10/2023,-483.20
110232277,Learning Disabilities,Adults,Learning Disability 18 - 64,3rd Party Payments,Residential Care,C.H.O.I.C.E LTD,RG12,20/10/2023,"9,887.36"
111358238,Learning Disabilities,Adults,Learning Disability 65 and over,3rd Party Payments,Residential Care,C.H.O.I.C.E LTD,RG12,27/10/2023,704.45
111221233,Learning Disabilities,Adults,Learning Disability 18 - 64,3rd Party Payments,Residential Care,C.H.O.I.C.E LTD,RG12,27/10/2023,960.00
110232278,Learning Disabilities,Adults,Learning Disability 18 - 64,3rd Party Payments,Residential Care,C.H.O.I.C.E LTD,RG12,20/10/2023,"13,870.08"
110232276,Learning Disabilities,Adults,Learning Disability 65 and over,Income,Client Contribution - Residential,C.H.O.I.C.E LTD,RG12,20/10/2023,-607.60
110232278,Physical Support,Adults,Physical Support 18 - 64,3rd Party Payments,Residential Care,C.H.O.I.C.E LTD,RG12,20/10/2023,"11,449.52"
110232277,Learning Disabilities,Adults,Learning Disability 18 - 64,3rd Party Payments,Residential Care,C.H.O.I.C.E LTD,RG12,20/10/2023,"9,797.76"
110232273,Learning Disabilities,Adults,Learning Disability 18 - 64,3rd Party Payments,Residential Care,C.H.O.I.C.E LTD,RG12,20/10/2023,"9,531.52"
110232277,Learning Disabilities,Adults,Learning Disability 18 - 64,Income,Client Contribution - Residential,C.H.O.I.C.E LTD,RG12,20/10/2023,-481.00
110232277,Learning Disabilities,Adults,Learning Disability 18 - 64,Income,Client Contribution - Residential,C.H.O.I.C.E LTD,RG12,20/10/2023,-639.20
111479234,Learning Disabilities,Adults,Learning Disability 65 and over,3rd Party Payments,Residential Care,C.H.O.I.C.E LTD,RG12,30/10/2023,741.44
110232276,Learning Disabilities,Adults,Learning Disability 65 and over,Income,Client Contribution - Residential,C.H.O.I.C.E LTD,RG12,20/10/2023,-773.20
111237236,Learning Disabilities,Adults,Learning Disability 18 - 64,3rd Party Payments,Residential Care,C.H.O.I.C.E LTD,SO23,27/10/2023,609.41
110232278,Learning Disabilities,Adults,Learning Disability 18 - 64,3rd Party Payments,Residential Care,C.H.O.I.C.E LTD,RG12,20/10/2023,"12,844.16"
110232272,Learning Disabilities,Adults,Learning Disability 18 - 64,Income,Client Contribution - Residential,C.H.O.I.C.E LTD,RG12,20/10/2023,-384.56
110232275,Learning Disabilities,Adults,Learning Disability 18 - 64,3rd Party Payments,Residential Care,C.H.O.I.C.E LTD,SO23,20/10/2023,"8,531.76"
107557233,Landscaping & Open Space,Culture & Heritage & Art,GWCF - Trees for Climate,Capital,Contractor Payments,CADENHAM FARMS PARTNERSHIP,SN15,02/10/2023,"18,819.15"
110645233,Social Care,Children & Families,Children's Resource and Home Finding Team,3rd Party Payments,Residential Care,CALCOT SERVICES FOR CHILDREN LTD,RG7 ,23/10/2023,"29,361.34"
110644233,Social Care,Children & Families,Children's Resource and Home Finding Team,3rd Party Payments,Residential Care,CALCOT SERVICES FOR CHILDREN LTD,RG7 ,23/10/2023,"29,892.68"
109384256,Social Care,Children & Families,Children's Resource and Home Finding Team,3rd Party Payments,Independent Fostering Agency Placements,CALDECOTT FOSTERING LTD,TN25,16/10/2023,"6,915.90"
109384258,Social Care,Children & Families,Children's Resource and Home Finding Team,3rd Party Payments,Independent Fostering Agency Placements,CALDECOTT FOSTERING LTD,TN25,16/10/2023,"7,146.43"
111256314,Learning Disabilities,Adults,Learning Disability 18 - 64,Transfer Payments,Personal Budget - Direct Payments - Domiciliary Care,REDACTED PERSONAL DATA,SP11,27/10/2023,360.48
111256314,Learning Disabilities,Adults,Learning Disability 18 - 64,Income,Client Contribution - Personal Budget - DP,REDACTED PERSONAL DATA,SP11,27/10/2023,-18.76
111256314,Learning Disabilities,Adults,Learning Disability 18 - 64,Transfer Payments,Personal Budget - Direct Payments - Domiciliary Care,REDACTED PERSONAL DATA,SP11,27/10/2023,821.76
111256314,Learning Disabilities,Adults,Learning Disability 18 - 64,Transfer Payments,Personal Budget - Direct Payments - Domiciliary Care,REDACTED PERSONAL DATA,SP11,27/10/2023,198.32
111256314,Learning Disabilities,Adults,Learning Disability 18 - 64,Income,Client Contribution - Personal Budget - DP,REDACTED PERSONAL DATA,SP11,27/10/2023,-42.80
111256314,Learning Disabilities,Adults,Learning Disability 18 - 64,Transfer Payments,Personal Budget - Direct Payments - Domiciliary Care,REDACTED PERSONAL DATA,SP11,27/10/2023,94.80
111256314,Learning Disabilities,Adults,Learning Disability 18 - 64,Income,Client Contribution - Personal Budget - DP,REDACTED PERSONAL DATA,SP11,27/10/2023,-4.92
111256314,Learning Disabilities,Adults,Learning Disability 18 - 64,Transfer Payments,Personal Budget - Direct Payments - Domiciliary Care,REDACTED PERSONAL DATA,SP11,27/10/2023,520.96
111256314,Learning Disabilities,Adults,Learning Disability 18 - 64,Income,Client Contribution - Personal Budget - DP,REDACTED PERSONAL DATA,SP11,27/10/2023,-10.36
111256314,Learning Disabilities,Adults,Learning Disability 18 - 64,Income,Client Contribution - Personal Budget - DP,REDACTED PERSONAL DATA,SP11,27/10/2023,-27.12
111256377,Learning Disabilities,Adults,Learning Disability 18 - 64,Transfer Payments,Personal Budget - Direct Payments - Domiciliary Care,REDACTED PERSONAL DATA,SP11,27/10/2023,651.20
110975233,Lydiard Park,Culture & Heritage,Lydiard : Hotel Operations,Premises Costs,Gas,CALOR GAS LTD,CV34,25/10/2023,811.98
110972233,Lydiard Park,Culture & Heritage,Lydiard : Hotel Operations,Premises Costs,Gas,CALOR GAS LTD,CV34,25/10/2023,876.33
108305252,Social Care,Children & Families,Children's Resource and Home Finding Team,3rd Party Payments,Residential Care,CAMBIAN CHILDCARE LTD,EN6 ,06/10/2023,"5,085.42"
111254302,Physical Support,Adults,Physical Support 18 - 64,Transfer Payments,Personal Budget - Direct Payments - Domiciliary Care,REDACTED PERSONAL DATA,SN25,27/10/2023,586.08
111254302,Physical Support,Adults,Physical Support 18 - 64,Income,Client Contribution - Personal Budget - DP,REDACTED PERSONAL DATA,SN25,27/10/2023,-75.68
111254302,Physical Support,Adults,Physical Support 18 - 64,Income,Client Contribution - Personal Budget - DP,REDACTED PERSONAL DATA,SN25,27/10/2023,-52.72
111254302,Physical Support,Adults,Physical Support 18 - 64,Transfer Payments,Personal Budget - Direct Payments - Domiciliary Care,REDACTED PERSONAL DATA,SN25,27/10/2023,408.24
107872233,Other Repairs,Repairs,Cyclical Maintenance,Supplies and Services,Testing / Inspection,CANTILLON GROUP LTD,SN25,04/10/2023,"1,586.66"
107873233,Other Repairs,Repairs,Cyclical Maintenance,Supplies and Services,Testing / Inspection,CANTILLON GROUP LTD,SN25,04/10/2023,508.94
109517236,Other Repairs,Repairs,Cyclical Maintenance,Supplies and Services,Testing / Inspection,CANTILLON GROUP LTD,SN25,16/10/2023,"1,521.17"
109588238,Other Repairs,Repairs,Cyclical Maintenance,Supplies and Services,Testing / Inspection,CANTILLON GROUP LTD,SN25,18/10/2023,436.67
107874233,Other Repairs,Repairs,Cyclical Maintenance,Supplies and Services,Testing / Inspection,CANTILLON GROUP LTD,SN25,04/10/2023,772.29
109588233,Other Repairs,Repairs,Cyclical Maintenance,Supplies and Services,Testing / Inspection,CANTILLON GROUP LTD,SN25,18/10/2023,446.67
108961233,Digital & Business Change,Digital & Business Change,IT Operations,3rd Party Payments,Strategic Partnership Service Charges,CAPITA BUSINESS SERVICES LTD,DL1 ,11/10/2023,"14,142.53"
111380233,Business Development,Supervision & Management,ICT & Administration,Supplies and Services,License Costs,CAPITA BUSINESS SERVICES LTD,DL1 ,27/10/2023,"80,586.65"
109649233,Business Development,Supervision & Management,ICT & Administration,3rd Party Payments,Contract Payments,CAPITA BUSINESS SERVICES LTD,EC2V,18/10/2023,750.00
109651233,Streetsmart,Streetsmart,Waterside Depot Improvements,Capital,Contractor Payments,CAPITA WORKFORCE MANAGEMENT LTD,DL1 ,18/10/2023,"12,385.00"
109384249,Social Care,Children & Families,Children's Resource and Home Finding Team,3rd Party Payments,Independent Fostering Agency Placements,CAPSTONE FOSTER CARE (SOUTH WEST) LTD,GL13,16/10/2023,"7,881.75"
109384250,Social Care,Children & Families,Children's Resource and Home Finding Team,3rd Party Payments,Independent Fostering Agency Placements,CAPSTONE FOSTER CARE (SOUTH WEST) LTD,GL13,16/10/2023,"3,608.25"
109384251,Social Care,Children & Families,Children's Resource and Home Finding Team,3rd Party Payments,Independent Fostering Agency Placements,CAPSTONE FOSTER CARE (SOUTH WEST) LTD,GL13,16/10/2023,"3,728.53"
109384248,Social Care,Children & Families,Children's Resource and Home Finding Team,3rd Party Payments,Independent Fostering Agency Placements,CAPSTONE FOSTER CARE (SOUTH WEST) LTD,GL13,16/10/2023,"7,627.50"
109043233,Streetsmart,Streetsmart,Waterside Fleet Workshops,Supplies and Services,Materials,CAR AND TRUCK SERVICES (SWINDON) LTD,SN1 ,11/10/2023,682.63
109038233,Streetsmart,Streetsmart,Waterside Fleet Workshops,Supplies and Services,Materials,CAR AND TRUCK SERVICES (SWINDON) LTD,SN1 ,11/10/2023,773.11
109277233,DSG Other Funding,Dedicated Schools Grant (DSG),LAC pupil premium,Supplies and Services,Services,CARDIFF HIGH SCHOOL,CF23,20/10/2023,600.00
109301233,Business Development,Supervision & Management,Personnel &Performance,Employees,Training,CARDIFF METROPOLITAN UNIVERSITY,CF5 ,13/10/2023,"1,980.00"
111338233,Disabled Children,Children & Families,ICES Paediatric,Supplies and Services,Equipment,CARE AND INDEPENDENCE LTD,OX26,27/10/2023,529.30
110768233,Learning Disabilities,Adults,Learning Disability 18 - 64,3rd Party Payments,Supported Lodgings (Childrens)/Supported Living (Adults),CAREFORYOU LTD,N13 ,25/10/2023,"4,882.00"
109604257,Social Care,Children & Families,Placement - Care Leaver Team,3rd Party Payments,Semi Independent,CARETECH COMMUNITY SERVICES LTD,EN6 ,18/10/2023,"8,785.71"
109604256,Social Care,Children & Families,Children's Resource and Home Finding Team,3rd Party Payments,Semi Independent,CARETECH COMMUNITY SERVICES LTD,EN6 ,18/10/2023,"9,078.57"
111328246,Public Health,Public Health,Health Checks,3rd Party Payments,Contract Payments,CARFAX HEALTH ENTERPRISE CIC,SN5 ,27/10/2023,"2,154.00"
110994233,Social Care,Children & Families,Placement - Care Leaver Team,3rd Party Payments,Semi Independent,CARING FOR COMMUNITIES AND PEOPLE (CCP),GL50,25/10/2023,"2,520.00"
111100233,Social Care,Children & Families,Unaccompanied Asylum Seeking Children (UASC),3rd Party Payments,Semi Independent,CARING FOR COMMUNITIES AND PEOPLE (CCP),GL50,27/10/2023,"3,410.33"
110896233,Social Care,Children & Families,Unaccompanied Asylum Seeking Children (UASC),3rd Party Payments,Semi Independent,CARING FOR COMMUNITIES AND PEOPLE (CCP),GL50,25/10/2023,454.93
111099245,Social Care,Children & Families,Unaccompanied Asylum Seeking Children (UASC),3rd Party Payments,Semi Independent,CARING FOR COMMUNITIES AND PEOPLE (CCP),GL50,27/10/2023,450.00
110896233,Social Care,Children & Families,Unaccompanied Asylum Seeking Children (UASC),3rd Party Payments,Semi Independent,CARING FOR COMMUNITIES AND PEOPLE (CCP),GL50,25/10/2023,"3,410.33"
109748234,Disabled Children,Children & Families,DCT Daytime Short Breaks,3rd Party Payments,Respite Care,CARING FOR COMMUNITIES AND PEOPLE (CCP),GL50,18/10/2023,592.50
111100233,Social Care,Children & Families,Unaccompanied Asylum Seeking Children (UASC),3rd Party Payments,Semi Independent,CARING FOR COMMUNITIES AND PEOPLE (CCP),GL50,27/10/2023,"3,410.33"
110896233,Social Care,Children & Families,Unaccompanied Asylum Seeking Children (UASC),3rd Party Payments,Semi Independent,CARING FOR COMMUNITIES AND PEOPLE (CCP),GL50,25/10/2023,"3,410.33"
111100233,Social Care,Children & Families,Unaccompanied Asylum Seeking Children (UASC),3rd Party Payments,Semi Independent,CARING FOR COMMUNITIES AND PEOPLE (CCP),GL50,27/10/2023,"3,410.33"
111329233,Social Care,Children & Families,Unaccompanied Asylum Seeking Children (UASC),3rd Party Payments,Semi Independent,CARING FOR COMMUNITIES AND PEOPLE (CCP),GL50,27/10/2023,600.00
111099245,Social Care,Children & Families,Unaccompanied Asylum Seeking Children (UASC),3rd Party Payments,Semi Independent,CARING FOR COMMUNITIES AND PEOPLE (CCP),GL50,27/10/2023,450.00
111329233,Social Care,Children & Families,Unaccompanied Asylum Seeking Children (UASC),3rd Party Payments,Semi Independent,CARING FOR COMMUNITIES AND PEOPLE (CCP),GL50,27/10/2023,600.00
111329233,Social Care,Children & Families,Unaccompanied Asylum Seeking Children (UASC),3rd Party Payments,Semi Independent,CARING FOR COMMUNITIES AND PEOPLE (CCP),GL50,27/10/2023,600.00
110896233,Social Care,Children & Families,Unaccompanied Asylum Seeking Children (UASC),3rd Party Payments,Semi Independent,CARING FOR COMMUNITIES AND PEOPLE (CCP),GL50,25/10/2023,"1,136.70"
111100233,Social Care,Children & Families,Unaccompanied Asylum Seeking Children (UASC),3rd Party Payments,Semi Independent,CARING FOR COMMUNITIES AND PEOPLE (CCP),GL50,27/10/2023,"3,410.33"
111099245,Social Care,Children & Families,Unaccompanied Asylum Seeking Children (UASC),3rd Party Payments,Semi Independent,CARING FOR COMMUNITIES AND PEOPLE (CCP),GL50,27/10/2023,450.00
110992233,Social Care,Children & Families,Children's Resource and Home Finding Team,3rd Party Payments,Semi Independent,CARING FOR COMMUNITIES AND PEOPLE (CCP),GL50,25/10/2023,"6,840.00"
110997233,Social Care,Children & Families,Placement - Care Leaver Team,3rd Party Payments,Semi Independent,CARING FOR COMMUNITIES AND PEOPLE (CCP),GL50,25/10/2023,"2,460.00"
111329233,Social Care,Children & Families,Unaccompanied Asylum Seeking Children (UASC),3rd Party Payments,Semi Independent,CARING FOR COMMUNITIES AND PEOPLE (CCP),GL50,27/10/2023,360.00
110896233,Social Care,Children & Families,Unaccompanied Asylum Seeking Children (UASC),3rd Party Payments,Semi Independent,CARING FOR COMMUNITIES AND PEOPLE (CCP),GL50,25/10/2023,"3,410.33"
110996233,Social Care,Children & Families,Unaccompanied Asylum Seeking Children (UASC),3rd Party Payments,Semi Independent,CARING FOR COMMUNITIES AND PEOPLE (CCP),GL50,25/10/2023,"3,540.00"
111099245,Social Care,Children & Families,Unaccompanied Asylum Seeking Children (UASC),3rd Party Payments,Semi Independent,CARING FOR COMMUNITIES AND PEOPLE (CCP),GL50,27/10/2023,450.00
111329233,Social Care,Children & Families,Unaccompanied Asylum Seeking Children (UASC),3rd Party Payments,Semi Independent,CARING FOR COMMUNITIES AND PEOPLE (CCP),GL50,27/10/2023,240.00
110896233,Social Care,Children & Families,Unaccompanied Asylum Seeking Children (UASC),3rd Party Payments,Semi Independent,CARING FOR COMMUNITIES AND PEOPLE (CCP),GL50,25/10/2023,"1,818.72"
111100233,Social Care,Children & Families,Unaccompanied Asylum Seeking Children (UASC),3rd Party Payments,Semi Independent,CARING FOR COMMUNITIES AND PEOPLE (CCP),GL50,27/10/2023,"3,410.35"
110896233,Social Care,Children & Families,Unaccompanied Asylum Seeking Children (UASC),3rd Party Payments,Semi Independent,CARING FOR COMMUNITIES AND PEOPLE (CCP),GL50,25/10/2023,"3,410.33"
111099245,Social Care,Children & Families,Unaccompanied Asylum Seeking Children (UASC),3rd Party Payments,Semi Independent,CARING FOR COMMUNITIES AND PEOPLE (CCP),GL50,27/10/2023,450.00
110995233,Social Care,Children & Families,Placement - Care Leaver Team,3rd Party Payments,Semi Independent,CARING FOR COMMUNITIES AND PEOPLE (CCP),GL50,25/10/2023,"2,520.00"
110993233,Social Care,Children & Families,Placement - Care Leaver Team,3rd Party Payments,Semi Independent,CARING FOR COMMUNITIES AND PEOPLE (CCP),GL50,25/10/2023,"2,520.00"
111329233,Social Care,Children & Families,Unaccompanied Asylum Seeking Children (UASC),3rd Party Payments,Semi Independent,CARING FOR COMMUNITIES AND PEOPLE (CCP),GL50,27/10/2023,600.00
111099245,Social Care,Children & Families,Unaccompanied Asylum Seeking Children (UASC),3rd Party Payments,Semi Independent,CARING FOR COMMUNITIES AND PEOPLE (CCP),GL50,27/10/2023,450.00
110896233,Social Care,Children & Families,Unaccompanied Asylum Seeking Children (UASC),3rd Party Payments,Semi Independent,CARING FOR COMMUNITIES AND PEOPLE (CCP),GL50,25/10/2023,"3,410.33"
111100233,Social Care,Children & Families,Unaccompanied Asylum Seeking Children (UASC),3rd Party Payments,Semi Independent,CARING FOR COMMUNITIES AND PEOPLE (CCP),GL50,27/10/2023,"3,410.33"
110998233,Social Care,Children & Families,Placement - Care Leaver Team,3rd Party Payments,Semi Independent,CARING FOR COMMUNITIES AND PEOPLE (CCP),GL50,25/10/2023,"2,520.00"
111329233,Social Care,Children & Families,Unaccompanied Asylum Seeking Children (UASC),3rd Party Payments,Semi Independent,CARING FOR COMMUNITIES AND PEOPLE (CCP),GL50,27/10/2023,600.00
111254271,Learning Disabilities,Adults,Learning Disability 18 - 64,Transfer Payments,Personal Budget - Direct Payments - Domiciliary Care,REDACTED PERSONAL DATA,SN2 ,27/10/2023,683.76
111254271,Learning Disabilities,Adults,Learning Disability 18 - 64,Income,Client Contribution - Personal Budget - DP,REDACTED PERSONAL DATA,SN2 ,27/10/2023,-12.60
111254271,Learning Disabilities,Adults,Learning Disability 18 - 64,Transfer Payments,Personal Budget - Direct Payments - Domiciliary Care,REDACTED PERSONAL DATA,SN2 ,27/10/2023,359.52
111254271,Learning Disabilities,Adults,Learning Disability 18 - 64,Transfer Payments,Personal Budget - Direct Payments - Domiciliary Care,REDACTED PERSONAL DATA,SN2 ,27/10/2023,651.20
111254271,Learning Disabilities,Adults,Learning Disability 18 - 64,Income,Client Contribution - Personal Budget - DP,REDACTED PERSONAL DATA,SN2 ,27/10/2023,-2.48
111254271,Learning Disabilities,Adults,Learning Disability 18 - 64,Transfer Payments,Personal Budget - Direct Payments - Domiciliary Care,REDACTED PERSONAL DATA,SN2 ,27/10/2023,736.16
111254271,Learning Disabilities,Adults,Learning Disability 18 - 64,Income,Client Contribution - Personal Budget - DP,REDACTED PERSONAL DATA,SN2 ,27/10/2023,-5.08
111254271,Learning Disabilities,Adults,Learning Disability 18 - 64,Income,Client Contribution - Personal Budget - DP,REDACTED PERSONAL DATA,SN2 ,27/10/2023,-4.72
111254271,Learning Disabilities,Adults,Learning Disability 18 - 64,Income,Client Contribution - Personal Budget - DP,REDACTED PERSONAL DATA,SN2 ,27/10/2023,-4.52
111256246,Physical Support,Adults,Physical Support 65 and over,Transfer Payments,Personal Budget - Direct Payments - Domiciliary Care,REDACTED PERSONAL DATA,SP11,27/10/2023,544.32
109372233,Social Care,Children & Families,Placement - Care Leaver Team,3rd Party Payments,Staying Put,REDACTED PERSONAL DATA,SN1 ,16/10/2023,"1,392.38"
109490233,High Needs Block,Dedicated Schools Grant (DSG),SEN Resourcing Assessment Panel,Supplies and Services,Services,REDACTED PERSONAL DATA,SN3 ,16/10/2023,752.54
109492233,High Needs Block,Dedicated Schools Grant (DSG),SEN Resourcing Assessment Panel,Supplies and Services,Services,REDACTED PERSONAL DATA,SN3 ,16/10/2023,"1,557.82"
111651233,Disabled Children,Children & Families,DCT Daytime Short Breaks,Transfer Payments,Personal Budget - Direct Payments - Other,REDACTED PERSONAL DATA,SN3 ,30/10/2023,"3,151.40"
111254329,Learning Disabilities,Adults,Learning Disability 18 - 64,Transfer Payments,Personal Budget - Direct Payments - Other,REDACTED PERSONAL DATA,SN2 ,27/10/2023,94.80
111254329,Learning Disabilities,Adults,Learning Disability 18 - 64,Transfer Payments,Personal Budget - Direct Payments - Other,REDACTED PERSONAL DATA,SN2 ,27/10/2023,405.76
111254329,Learning Disabilities,Adults,Learning Disability 18 - 64,Transfer Payments,Personal Budget - Direct Payments - Other,REDACTED PERSONAL DATA,SN2 ,27/10/2023,151.20
111254329,Learning Disabilities,Adults,Learning Disability 18 - 64,Transfer Payments,Personal Budget - Direct Payments - Other,REDACTED PERSONAL DATA,SN2 ,27/10/2023,118.80
111254329,Learning Disabilities,Adults,Learning Disability 18 - 64,Income,Client Contribution - Personal Budget - DP,REDACTED PERSONAL DATA,SN2 ,27/10/2023,-3.76
111254329,Learning Disabilities,Adults,Learning Disability 18 - 64,Transfer Payments,Personal Budget - Direct Payments - Other,REDACTED PERSONAL DATA,SN2 ,27/10/2023,270.48
111254329,Learning Disabilities,Adults,Learning Disability 18 - 64,Transfer Payments,Personal Budget - Direct Payments - Other,REDACTED PERSONAL DATA,SN2 ,27/10/2023,405.72
111254329,Learning Disabilities,Adults,Learning Disability 18 - 64,Income,Client Contribution - Personal Budget - DP,REDACTED PERSONAL DATA,SN2 ,27/10/2023,-19.48
111254329,Learning Disabilities,Adults,Learning Disability 18 - 64,Income,Client Contribution - Personal Budget - DP,REDACTED PERSONAL DATA,SN2 ,27/10/2023,-5.00
111254329,Learning Disabilities,Adults,Learning Disability 18 - 64,Income,Client Contribution - Personal Budget - DP,REDACTED PERSONAL DATA,SN2 ,27/10/2023,-5.68
111254329,Learning Disabilities,Adults,Learning Disability 18 - 64,Income,Client Contribution - Personal Budget - DP,REDACTED PERSONAL DATA,SN2 ,27/10/2023,-1.32
111254329,Learning Disabilities,Adults,Learning Disability 18 - 64,Transfer Payments,Personal Budget - Direct Payments - Other,REDACTED PERSONAL DATA,SN2 ,27/10/2023,360.96
111254329,Learning Disabilities,Adults,Learning Disability 18 - 64,Income,Client Contribution - Personal Budget - DP,REDACTED PERSONAL DATA,SN2 ,27/10/2023,-2.08
111254329,Learning Disabilities,Adults,Learning Disability 18 - 64,Transfer Payments,Personal Budget - Direct Payments - Other,REDACTED PERSONAL DATA,SN2 ,27/10/2023,60.16
111254329,Learning Disabilities,Adults,Learning Disability 18 - 64,Transfer Payments,Personal Budget - Direct Payments - Other,REDACTED PERSONAL DATA,SN2 ,27/10/2023,142.20
111254329,Learning Disabilities,Adults,Learning Disability 18 - 64,Transfer Payments,Personal Budget - Direct Payments - Other,REDACTED PERSONAL DATA,SN2 ,27/10/2023,157.92
111254329,Learning Disabilities,Adults,Learning Disability 18 - 64,Transfer Payments,Personal Budget - Direct Payments - Other,REDACTED PERSONAL DATA,SN2 ,27/10/2023,45.08
111254329,Learning Disabilities,Adults,Learning Disability 18 - 64,Transfer Payments,Personal Budget - Direct Payments - Domiciliary Care,REDACTED PERSONAL DATA,SN2 ,27/10/2023,"1,408.50"
111254329,Learning Disabilities,Adults,Learning Disability 18 - 64,Transfer Payments,Personal Budget - Direct Payments - Other,REDACTED PERSONAL DATA,SN2 ,27/10/2023,96.00
111254329,Learning Disabilities,Adults,Learning Disability 18 - 64,Income,Client Contribution - Personal Budget - DP,REDACTED PERSONAL DATA,SN2 ,27/10/2023,-0.64
111254329,Learning Disabilities,Adults,Learning Disability 18 - 64,Income,Client Contribution - Personal Budget - DP,REDACTED PERSONAL DATA,SN2 ,27/10/2023,-5.64
111254329,Learning Disabilities,Adults,Learning Disability 18 - 64,Income,Client Contribution - Personal Budget - DP,REDACTED PERSONAL DATA,SN2 ,27/10/2023,-2.20
111254329,Learning Disabilities,Adults,Learning Disability 18 - 64,Income,Client Contribution - Personal Budget - DP,REDACTED PERSONAL DATA,SN2 ,27/10/2023,-0.84
111254329,Learning Disabilities,Adults,Learning Disability 18 - 64,Transfer Payments,Personal Budget - Direct Payments - Other,REDACTED PERSONAL DATA,SN2 ,27/10/2023,410.80
111254329,Learning Disabilities,Adults,Learning Disability 18 - 64,Income,Client Contribution - Personal Budget - DP,REDACTED PERSONAL DATA,SN2 ,27/10/2023,-1.96
111254329,Learning Disabilities,Adults,Learning Disability 18 - 64,Income,Client Contribution - Personal Budget - DP,REDACTED PERSONAL DATA,SN2 ,27/10/2023,-1.64
109588237,Responsive Repairs,Repairs,Responsive Repairs,3rd Party Payments,Contract Payments,CARPET WAREHOUSE SWINDON LTD,SN2 ,18/10/2023,822.40
107743234,Responsive Repairs,Repairs,Responsive Repairs,3rd Party Payments,Contract Payments,CARPET WAREHOUSE SWINDON LTD,SN2 ,04/10/2023,842.92
109588235,Responsive Repairs,Repairs,Responsive Repairs,3rd Party Payments,Contract Payments,CARPET WAREHOUSE SWINDON LTD,SN2 ,18/10/2023,969.49
107503233,Responsive Repairs,Repairs,Responsive Repairs,3rd Party Payments,Contract Payments,CARPET WAREHOUSE SWINDON LTD,SN2 ,02/10/2023,800.00
108534233,Internal Audit,Internal Audit,Internal Audit,Supplies and Services,Services,CASEWARE UK LTD,ME14,09/10/2023,"1,190.00"
111254342,Learning Disabilities,Adults,Learning Disability 18 - 64,Transfer Payments,Personal Budget - Direct Payments - Other,REDACTED PERSONAL DATA,SN6 ,27/10/2023,198.32
111254342,Learning Disabilities,Adults,Learning Disability 18 - 64,Income,Client Contribution - Personal Budget - DP,REDACTED PERSONAL DATA,SN6 ,27/10/2023,-6.76
111254342,Learning Disabilities,Adults,Learning Disability 18 - 64,Transfer Payments,Personal Budget - Direct Payments - Domiciliary Care,REDACTED PERSONAL DATA,SN6 ,27/10/2023,180.36
111254342,Learning Disabilities,Adults,Learning Disability 18 - 64,Transfer Payments,Personal Budget - Direct Payments - Other,REDACTED PERSONAL DATA,SN6 ,27/10/2023,150.40
111254342,Learning Disabilities,Adults,Learning Disability 18 - 64,Income,Client Contribution - Personal Budget - DP,REDACTED PERSONAL DATA,SN6 ,27/10/2023,-7.68
111254342,Learning Disabilities,Adults,Learning Disability 18 - 64,Income,Client Contribution - Personal Budget - DP,REDACTED PERSONAL DATA,SN6 ,27/10/2023,-87.92
111254342,Learning Disabilities,Adults,Learning Disability 18 - 64,Income,Client Contribution - Personal Budget - DP,REDACTED PERSONAL DATA,SN6 ,27/10/2023,-3.56
111254342,Learning Disabilities,Adults,Learning Disability 18 - 64,Income,Client Contribution - Personal Budget - DP,REDACTED PERSONAL DATA,SN6 ,27/10/2023,-5.64
111254342,Learning Disabilities,Adults,Learning Disability 18 - 64,Transfer Payments,Personal Budget - Direct Payments - Other,REDACTED PERSONAL DATA,SN6 ,27/10/2023,94.80
111254342,Learning Disabilities,Adults,Learning Disability 18 - 64,Transfer Payments,Personal Budget - Direct Payments - Domiciliary Care,REDACTED PERSONAL DATA,SN6 ,27/10/2023,205.44
111254342,Learning Disabilities,Adults,Learning Disability 18 - 64,Income,Client Contribution - Personal Budget - DP,REDACTED PERSONAL DATA,SN6 ,27/10/2023,-7.40
111254342,Learning Disabilities,Adults,Learning Disability 18 - 64,Income,Client Contribution - Personal Budget - DP,REDACTED PERSONAL DATA,SN6 ,27/10/2023,-5.48
111254342,Learning Disabilities,Adults,Learning Disability 18 - 64,Transfer Payments,Personal Budget - Direct Payments - Other,REDACTED PERSONAL DATA,SN6 ,27/10/2023,147.60
110248234,Traded Services,"Education, Inclusion and Skills",Plas Pencelli Outdoor Education Centre,Supplies and Services,Materials,CASTELL HOWELL FOODS LIMITED,SA14,20/10/2023,627.64
109257233,Traded Services,"Education, Inclusion and Skills",Plas Pencelli Outdoor Education Centre,Supplies and Services,Materials,CASTELL HOWELL FOODS LIMITED,SA14,13/10/2023,"1,293.30"
107639233,Traded Services,"Education, Inclusion and Skills",Plas Pencelli Outdoor Education Centre,Supplies and Services,Materials,CASTELL HOWELL FOODS LIMITED,SA14,04/10/2023,255.22
109257233,Traded Services,"Education, Inclusion and Skills",Plas Pencelli Outdoor Education Centre,Supplies and Services,Materials,CASTELL HOWELL FOODS LIMITED,SA14,13/10/2023,456.08
107639233,Traded Services,"Education, Inclusion and Skills",Plas Pencelli Outdoor Education Centre,Supplies and Services,Materials,CASTELL HOWELL FOODS LIMITED,SA14,04/10/2023,"1,035.50"
110248234,Traded Services,"Education, Inclusion and Skills",Plas Pencelli Outdoor Education Centre,Supplies and Services,Materials,CASTELL HOWELL FOODS LIMITED,SA14,20/10/2023,"1,823.37"
110762236,,,Balance Sheet,Balance Sheet & Recharge,Water invoices,CASTLE WATER LTD,PH10,25/10/2023,"2,888.84"
110762236,,,Balance Sheet,Balance Sheet & Recharge,Water invoices,CASTLE WATER LTD,PH10,25/10/2023,532.00
110198234,Streetsmart,Streetsmart,Grounds Maintenance,Premises Costs,Water,CASTLE WATER LTD,PH10,20/10/2023,"12,862.00"
105544233,,,Balance Sheet,Balance Sheet & Recharge,Water invoices,CASTLE WATER LTD,PH10,20/10/2023,"-12,404.94"
105544233,,,Balance Sheet,Balance Sheet & Recharge,Water invoices,CASTLE WATER LTD,PH10,20/10/2023,266.00
110200233,Streetsmart,Streetsmart,Grounds Maintenance,Premises Costs,Water,CASTLE WATER LTD,PH10,20/10/2023,"5,969.72"
110200233,Streetsmart,Streetsmart,Grounds Maintenance,Premises Costs,Water,CASTLE WATER LTD,PH10,20/10/2023,"11,763.80"
110198234,Streetsmart,Streetsmart,Grounds Maintenance,Premises Costs,Water,CASTLE WATER LTD,PH10,20/10/2023,"6,530.41"
110200233,Streetsmart,Streetsmart,Grounds Maintenance,Premises Costs,Water,CASTLE WATER LTD,PH10,20/10/2023,469.14
111237234,Learning Disabilities,Adults,Learning Disability 18 - 64,3rd Party Payments,Supported Lodgings (Childrens)/Supported Living (Adults),CATHEDRAL HOMES,GL1 ,27/10/2023,"2,199.79"
110780236,Learning Disabilities,Adults,Learning Disability 18 - 64,3rd Party Payments,Supported Lodgings (Childrens)/Supported Living (Adults),CATHEDRAL HOMES,GL1 ,27/10/2023,"2,325.00"
110780236,Learning Disabilities,Adults,Learning Disability 18 - 64,Income,Client Contribution - Supported Living,CATHEDRAL HOMES,GL1 ,27/10/2023,-45.28
110780236,Learning Disabilities,Adults,Learning Disability 18 - 64,3rd Party Payments,Supported Lodgings (Childrens)/Supported Living (Adults),CATHEDRAL HOMES,GL1 ,27/10/2023,"4,462.52"
110780236,Learning Disabilities,Adults,Learning Disability 18 - 64,3rd Party Payments,Supported Lodgings (Childrens)/Supported Living (Adults),CATHEDRAL HOMES,GL1 ,27/10/2023,675.00
110780236,Learning Disabilities,Adults,Learning Disability 18 - 64,Income,Client Contribution - Supported Living,CATHEDRAL HOMES,GL1 ,27/10/2023,-118.40
110780236,Learning Disabilities,Adults,Learning Disability 18 - 64,3rd Party Payments,Supported Lodgings (Childrens)/Supported Living (Adults),CATHEDRAL HOMES,GL1 ,27/10/2023,"3,225.00"
110780236,Learning Disabilities,Adults,Learning Disability 18 - 64,Income,Client Contribution - Supported Living,CATHEDRAL HOMES,GL1 ,27/10/2023,-17.92
110780236,Learning Disabilities,Adults,Learning Disability 18 - 64,3rd Party Payments,Supported Lodgings (Childrens)/Supported Living (Adults),CATHEDRAL HOMES,GL1 ,27/10/2023,"1,706.28"
110065233,Learning Disabilities,Adults,Learning Disability 18 - 64,3rd Party Payments,Supported Accommodation Scheme,REDACTED PERSONAL DATA,SN6 ,23/10/2023,"1,480.00"
110065233,Learning Disabilities,Adults,Learning Disability 18 - 64,3rd Party Payments,Supported Accommodation Scheme,REDACTED PERSONAL DATA,SN6 ,23/10/2023,"2,280.00"
107901233,Town Centre,"Economy, Growth and Place",Kimmerfields enabling works,Capital,Contractor Payments,CC GROUND INVESTIGATIONS LTD,GL3 ,04/10/2023,"15,730.80"
110765239,Early Years Block,Dedicated Schools Grant (DSG),Free Nursery Education Commissioning - three & four  year olds,3rd Party Payments,Contracts - Child Care,CENTRAL PRE-SCHOOL,SN1 ,25/10/2023,"2,280.00"
109733233,Public Health,Public Health,Affordable Warmth,Supplies and Services,Service Charges,CENTRE FOR SUSTAINABLE ENERGY,BS1 ,18/10/2023,"10,000.00"
109767233,Public Health,Public Health,Supplementary SMTR Grant,3rd Party Payments,Contract Payments,CHANGE GROW LIVE SERVICES LTD,BN1 ,18/10/2023,"61,633.51"
109641233,Public Health,Public Health,Supplementary SMTR Grant,3rd Party Payments,Contract Payments,CHANGE GROW LIVE SERVICES LTD,BN1 ,18/10/2023,"5,000.00"
110327234,Lydiard Park,Culture & Heritage,Lydiard : Coach House Caf�,Supplies and Services,Confectionary,CHAPPLE & JENKINS LTD,BS15,20/10/2023,46.17
110327234,Lydiard Park,Culture & Heritage,Lydiard : Coach House Caf�,Supplies and Services,Food,CHAPPLE & JENKINS LTD,BS15,20/10/2023,9.52
111366233,Lydiard Park,Culture & Heritage,Lydiard : Forest Caf�,Supplies and Services,Confectionary,CHAPPLE & JENKINS LTD,BS15,27/10/2023,107.28
110279233,Lydiard Park,Culture & Heritage,Lydiard : Forest Caf�,Supplies and Services,Confectionary,CHAPPLE & JENKINS LTD,BS15,20/10/2023,378.56
111366233,Lydiard Park,Culture & Heritage,Lydiard : Forest Caf�,Supplies and Services,Confectionary,CHAPPLE & JENKINS LTD,BS15,27/10/2023,754.82
111366233,Lydiard Park,Culture & Heritage,Lydiard : Forest Caf�,Supplies and Services,Food,CHAPPLE & JENKINS LTD,BS15,27/10/2023,8.99
110279233,Lydiard Park,Culture & Heritage,Lydiard : Forest Caf�,Supplies and Services,Confectionary,CHAPPLE & JENKINS LTD,BS15,20/10/2023,90.90
110279233,Lydiard Park,Culture & Heritage,Lydiard : Forest Caf�,Supplies and Services,Food,CHAPPLE & JENKINS LTD,BS15,20/10/2023,30.11
110327234,Lydiard Park,Culture & Heritage,Lydiard : Coach House Caf�,Supplies and Services,Confectionary,CHAPPLE & JENKINS LTD,BS15,20/10/2023,413.46
110768236,Sheltered Accomodation,Special Services,Les Gowing House,Supplies and Services,Equipment,CHARISMA BLINDS,SN2 ,25/10/2023,770.15
110541243,Disabled Children,Children & Families,Aiming High for Disabled Children,3rd Party Payments,Cash Support,REDACTED PERSONAL DATA,SN3 ,23/10/2023,600.40
107425233,Homelessness and Travellers,Housing Services,Homelessness Prevention,Transfer Payments,Payment of Costs,CHARLES HOPES HOLDINGS LIMITED,SO15,02/10/2023,"4,500.00"
110234233,Homelessness and Travellers,Housing Services,Bed and Breakfast Accommodation,Transfer Payments,Payment of Costs,CHARLES HOPES HOLDINGS LIMITED,SO15,20/10/2023,"2,250.00"
110202233,Homelessness and Travellers,Housing Services,Bed and Breakfast Accommodation,Transfer Payments,Payment of Costs,CHARLES HOPES HOLDINGS LIMITED,SO15,20/10/2023,"2,250.00"
110204233,Homelessness and Travellers,Housing Services,Bed and Breakfast Accommodation,Transfer Payments,Payment of Costs,CHARLES HOPES HOLDINGS LIMITED,SO15,20/10/2023,"2,250.00"
110233233,Homelessness and Travellers,Housing Services,Bed and Breakfast Accommodation,Transfer Payments,Payment of Costs,CHARLES HOPES HOLDINGS LIMITED,SO15,20/10/2023,150.00
110235233,Homelessness and Travellers,Housing Services,Bed and Breakfast Accommodation,Transfer Payments,Payment of Costs,CHARLES HOPES HOLDINGS LIMITED,SO15,20/10/2023,"2,250.00"
107698233,Homelessness and Travellers,Housing Services,Homelessness Prevention,Transfer Payments,Payment of Costs,CHARLES HOPES HOLDINGS LIMITED,SO15,04/10/2023,"2,250.00"
110237233,Homelessness and Travellers,Housing Services,Bed and Breakfast Accommodation,Transfer Payments,Payment of Costs,CHARLES HOPES HOLDINGS LIMITED,SO15,20/10/2023,173.08
107442233,Homelessness and Travellers,Housing Services,Homelessness Prevention,Transfer Payments,Payment of Costs,CHARLES HOPES HOLDINGS LIMITED,SO15,02/10/2023,"2,100.00"
107429233,Homelessness and Travellers,Housing Services,Homelessness Prevention,Transfer Payments,Payment of Costs,CHARLES HOPES HOLDINGS LIMITED,SO15,02/10/2023,"2,250.00"
107430233,Homelessness and Travellers,Housing Services,Homelessness Prevention,Transfer Payments,Payment of Costs,CHARLES HOPES HOLDINGS LIMITED,SO15,02/10/2023,"2,250.00"
110233233,Homelessness and Travellers,Housing Services,Bed and Breakfast Accommodation,Transfer Payments,Payment of Costs,CHARLES HOPES HOLDINGS LIMITED,SO15,20/10/2023,"2,100.00"
107433233,Homelessness and Travellers,Housing Services,Homelessness Prevention,Transfer Payments,Payment of Costs,CHARLES HOPES HOLDINGS LIMITED,SO15,02/10/2023,"6,750.00"
107427234,Homelessness and Travellers,Housing Services,Homelessness Prevention,Transfer Payments,Payment of Costs,CHARLES HOPES HOLDINGS LIMITED,SO15,02/10/2023,"2,250.00"
107434233,Homelessness and Travellers,Housing Services,Homelessness Prevention,Transfer Payments,Payment of Costs,CHARLES HOPES HOLDINGS LIMITED,SO15,02/10/2023,"4,500.00"
107697233,Homelessness and Travellers,Housing Services,Homelessness Prevention,Transfer Payments,Payment of Costs,CHARLES HOPES HOLDINGS LIMITED,SO15,04/10/2023,"2,250.00"
107440233,Homelessness and Travellers,Housing Services,Homelessness Prevention,Transfer Payments,Payment of Costs,CHARLES HOPES HOLDINGS LIMITED,SO15,02/10/2023,"2,100.00"
110212233,Homelessness and Travellers,Housing Services,Bed and Breakfast Accommodation,Transfer Payments,Payment of Costs,CHARLES HOPES HOLDINGS LIMITED,SO15,20/10/2023,"2,250.00"
110228233,Homelessness and Travellers,Housing Services,Bed and Breakfast Accommodation,Transfer Payments,Payment of Costs,CHARLES HOPES HOLDINGS LIMITED,SO15,20/10/2023,"2,250.00"
107423233,Homelessness and Travellers,Housing Services,Homelessness Prevention,Transfer Payments,Payment of Costs,CHARLES HOPES HOLDINGS LIMITED,SO15,02/10/2023,"6,750.00"
107435233,Homelessness and Travellers,Housing Services,Homelessness Prevention,Transfer Payments,Payment of Costs,CHARLES HOPES HOLDINGS LIMITED,SO15,02/10/2023,"2,250.00"
107696233,Homelessness and Travellers,Housing Services,Homelessness Prevention,Transfer Payments,Payment of Costs,CHARLES HOPES HOLDINGS LIMITED,SO15,04/10/2023,"4,500.00"
110226233,Homelessness and Travellers,Housing Services,Bed and Breakfast Accommodation,Transfer Payments,Payment of Costs,CHARLES HOPES HOLDINGS LIMITED,SO15,20/10/2023,"2,250.00"
110230233,Homelessness and Travellers,Housing Services,Bed and Breakfast Accommodation,Transfer Payments,Payment of Costs,CHARLES HOPES HOLDINGS LIMITED,SO15,20/10/2023,"2,250.00"
110231233,Homelessness and Travellers,Housing Services,Bed and Breakfast Accommodation,Transfer Payments,Payment of Costs,CHARLES HOPES HOLDINGS LIMITED,SO15,20/10/2023,"2,250.00"
110227233,Homelessness and Travellers,Housing Services,Bed and Breakfast Accommodation,Transfer Payments,Payment of Costs,CHARLES HOPES HOLDINGS LIMITED,SO15,20/10/2023,"2,250.00"
110232284,Homelessness and Travellers,Housing Services,Bed and Breakfast Accommodation,Transfer Payments,Payment of Costs,CHARLES HOPES HOLDINGS LIMITED,SO15,20/10/2023,"2,250.00"
107432233,Homelessness and Travellers,Housing Services,Homelessness Prevention,Transfer Payments,Payment of Costs,CHARLES HOPES HOLDINGS LIMITED,SO15,02/10/2023,"2,250.00"
107700233,Homelessness and Travellers,Housing Services,Homelessness Prevention,Transfer Payments,Payment of Costs,CHARLES HOPES HOLDINGS LIMITED,SO15,04/10/2023,"2,250.00"
107699233,Homelessness and Travellers,Housing Services,Homelessness Prevention,Transfer Payments,Payment of Costs,CHARLES HOPES HOLDINGS LIMITED,SO15,04/10/2023,"2,250.00"
110237233,Homelessness and Travellers,Housing Services,Bed and Breakfast Accommodation,Transfer Payments,Payment of Costs,CHARLES HOPES HOLDINGS LIMITED,SO15,20/10/2023,"2,100.00"
107441233,Homelessness and Travellers,Housing Services,Homelessness Prevention,Transfer Payments,Payment of Costs,CHARLES HOPES HOLDINGS LIMITED,SO15,02/10/2023,"2,100.00"
107431233,Homelessness and Travellers,Housing Services,Homelessness Prevention,Transfer Payments,Payment of Costs,CHARLES HOPES HOLDINGS LIMITED,SO15,02/10/2023,"2,250.00"
111364233,Lydiard Park,Culture & Heritage,Lydiard : Forest Caf�,Supplies and Services,Food,CHARLES SAUNDERS LTD,BS37,27/10/2023,257.90
111362233,Lydiard Park,Culture & Heritage,Lydiard : Coach House Caf�,Supplies and Services,Food,CHARLES SAUNDERS LTD,BS37,27/10/2023,325.97
110300233,Lydiard Park,Culture & Heritage,Lydiard : Forest Caf�,Supplies and Services,Confectionary,CHARLES SAUNDERS LTD,BS37,20/10/2023,20.12
111340233,Lydiard Park,Culture & Heritage,Lydiard : Coach House Caf�,Supplies and Services,Food,CHARLES SAUNDERS LTD,BS37,27/10/2023,81.82
111340233,Lydiard Park,Culture & Heritage,Lydiard : Coach House Caf�,Supplies and Services,Confectionary,CHARLES SAUNDERS LTD,BS37,27/10/2023,431.48
109885233,Lydiard Park,Culture & Heritage,Lydiard : Hotel Operations,Supplies and Services,Materials,CHARLES SAUNDERS LTD,BS37,18/10/2023,472.95
109886233,Lydiard Park,Culture & Heritage,Lydiard : Hotel Operations,Supplies and Services,Materials,CHARLES SAUNDERS LTD,BS37,18/10/2023,343.68
109886233,Lydiard Park,Culture & Heritage,Lydiard : Hotel Operations,Supplies and Services,Food,CHARLES SAUNDERS LTD,BS37,18/10/2023,39.20
111362233,Lydiard Park,Culture & Heritage,Lydiard : Coach House Caf�,Supplies and Services,Confectionary,CHARLES SAUNDERS LTD,BS37,27/10/2023,181.46
110300233,Lydiard Park,Culture & Heritage,Lydiard : Forest Caf�,Supplies and Services,Food,CHARLES SAUNDERS LTD,BS37,20/10/2023,509.55
111364233,Lydiard Park,Culture & Heritage,Lydiard : Forest Caf�,Supplies and Services,Confectionary,CHARLES SAUNDERS LTD,BS37,27/10/2023,216.52
111364233,Lydiard Park,Culture & Heritage,Lydiard : Forest Caf�,Supplies and Services,Confectionary,CHARLES SAUNDERS LTD,BS37,27/10/2023,925.23
109886233,Lydiard Park,Culture & Heritage,Lydiard : Hotel Operations,Supplies and Services,Food,CHARLES SAUNDERS LTD,BS37,18/10/2023,338.69
110765237,Early Years Block,Dedicated Schools Grant (DSG),Free Nursery Education Commissioning - three & four  year olds,3rd Party Payments,Contracts - Child Care,CHEEKY CHIMPS,SN2 ,25/10/2023,"2,280.00"
109602347,Early Years Block,Dedicated Schools Grant (DSG),Free Nursery Education Commissioning - two year olds,3rd Party Payments,Contracts - Child Care,CHILD BASE NURSERIES,MK16,18/10/2023,"2,039.11"
109602348,Early Years Block,Dedicated Schools Grant (DSG),Free Nursery Education Commissioning - three & four  year olds,3rd Party Payments,Contracts - Child Care,CHILD BASE NURSERIES,MK16,18/10/2023,"14,179.40"
107506233,Responsive Repairs,Repairs,Responsive Repairs,3rd Party Payments,Contract Payments,CHILD SCAFFOLDING LTD,SN1 ,02/10/2023,"2,314.26"
109467233,Responsive Repairs,Repairs,Responsive Repairs,3rd Party Payments,Contract Payments,CHILD SCAFFOLDING LTD,SN1 ,18/10/2023,440.00
109589233,Void Repairs,Supervision & Management,Void Property Repairs,3rd Party Payments,Contract Payments,CHILD SCAFFOLDING LTD,SN1 ,18/10/2023,"1,485.00"
109464233,Responsive Repairs,Repairs,Responsive Repairs,3rd Party Payments,Contract Payments,CHILD SCAFFOLDING LTD,SN1 ,18/10/2023,780.00
109590234,Responsive Repairs,Repairs,Responsive Repairs,3rd Party Payments,Contract Payments,CHILD SCAFFOLDING LTD,SN1 ,18/10/2023,880.00
107518233,Responsive Repairs,Repairs,Responsive Repairs,3rd Party Payments,Contract Payments,CHILD SCAFFOLDING LTD,SN1 ,02/10/2023,600.00
107515233,Responsive Repairs,Repairs,Responsive Repairs,3rd Party Payments,Contract Payments,CHILD SCAFFOLDING LTD,SN1 ,02/10/2023,"3,630.00"
109466233,Responsive Repairs,Repairs,Responsive Repairs,3rd Party Payments,Contract Payments,CHILD SCAFFOLDING LTD,SN1 ,18/10/2023,"1,350.00"
109463233,Responsive Repairs,Repairs,Responsive Repairs,3rd Party Payments,Contract Payments,CHILD SCAFFOLDING LTD,SN1 ,18/10/2023,"1,150.00"
109590233,Responsive Repairs,Repairs,Responsive Repairs,3rd Party Payments,Contract Payments,CHILD SCAFFOLDING LTD,SN1 ,18/10/2023,680.00
109110233,Highways & Transport,Highways & Transport,Traffic Management & Road Safety,Supplies and Services,Services,CHILD SEAT SAFETY LTD,PR26,13/10/2023,675.00
108103233,High Needs Block,Dedicated Schools Grant (DSG),SEN Resourcing Assessment Panel,Supplies and Services,Services,CHILDREN & FAMILY WELLBEING SERVICES LTD,BA14,06/10/2023,669.20
108958370,High Needs Block,Dedicated Schools Grant (DSG),SEN Resourcing Assessment Panel,Supplies and Services,Services,CHILDREN & FAMILY WELLBEING SERVICES LTD,BA14,11/10/2023,659.80
108566233,Parking & Bus lanes,Highway Operations and Car Parking,Car Parking,Supplies and Services,Fees,CHIPSIDE LTD,SN15,09/10/2023,"1,000.00"
108512233,Parking & Bus lanes,Highway Operations and Car Parking,Street Parking,Supplies and Services,Fees,CHIPSIDE LTD,SN15,09/10/2023,910.42
109504240,High Needs Block,Dedicated Schools Grant (DSG),SEN Resourcing Assessment Panel,3rd Party Payments,Top up funding - Maintained providers Pre 16,CHISELDON PRIMARY SCHOOL,SN4 ,16/10/2023,780.83
108745233,DSG Other Funding,Dedicated Schools Grant (DSG),DFE Additional Grants,3rd Party Payments,Payment of Pupil Premium to school,CHISELDON PRIMARY SCHOOL,SN4 ,13/10/2023,"5,441.00"
108723233,Schools - Primary,Dedicated Schools Grant (DSG),Primary School Budgets,3rd Party Payments,Mainstream Delegated Funding,CHISELDON PRIMARY SCHOOL,SN4 ,13/10/2023,"71,288.00"
110232262,Learning Disabilities,Adults,Learning Disability 18 - 64,3rd Party Payments,Residential Care,CHOSEN CARE LTD,GL3 ,20/10/2023,"7,802.16"
110232262,Learning Disabilities,Adults,Learning Disability 18 - 64,3rd Party Payments,Residential Care,CHOSEN CARE LTD,GL3 ,20/10/2023,"7,639.52"
110232262,Learning Disabilities,Adults,Learning Disability 18 - 64,3rd Party Payments,Residential Care,CHOSEN CARE LTD,GL3 ,20/10/2023,"7,631.68"
110232262,Learning Disabilities,Adults,Learning Disability 18 - 64,Income,Client Contribution - Residential,CHOSEN CARE LTD,GL3 ,20/10/2023,-400.48
110232262,Learning Disabilities,Adults,Learning Disability 18 - 64,Income,Client Contribution - Residential,CHOSEN CARE LTD,GL3 ,20/10/2023,-779.20
111254367,Physical Support,Adults,Physical Support 18 - 64,Income,Client Contribution - Personal Budget - DP,REDACTED PERSONAL DATA,SN25,27/10/2023,-147.40
111254367,Physical Support,Adults,Physical Support 18 - 64,Transfer Payments,Personal Budget - Direct Payments - Domiciliary Care,REDACTED PERSONAL DATA,SN25,27/10/2023,952.56
110623350,Social Care,Children & Families,Placement Adoption Service,3rd Party Payments,Adoption Allowances,REDACTED PERSONAL DATA,SN6 ,23/10/2023,"1,055.64"
108565314,Social Care,Children & Families,Placement Adoption Service,3rd Party Payments,Adoption Allowances,REDACTED PERSONAL DATA,SN6 ,09/10/2023,"1,055.64"
108565313,Social Care,Children & Families,Placement Adoption Service,3rd Party Payments,Adoption Allowances,REDACTED PERSONAL DATA,SN6 ,09/10/2023,699.84
110623349,Social Care,Children & Families,Placement Adoption Service,3rd Party Payments,Adoption Allowances,REDACTED PERSONAL DATA,SN6 ,23/10/2023,699.84
110281233,Physical Support,Adults,Physical Support 18 - 64,Income,Client Contribution - Nursing,CHURCH VIEW,SN3 ,20/10/2023,-744.56
110281233,Physical Support,Adults,Physical Support 18 - 64,3rd Party Payments,Nursing Care,CHURCH VIEW,SN3 ,20/10/2023,"2,988.96"
110281233,Physical Support,Adults,Physical Support 65 and over,Income,Client Contribution - Nursing,CHURCH VIEW,SN3 ,20/10/2023,-491.76
110281233,Mental Health,Adults,Mental Health 65 and over,3rd Party Payments,Nursing Care,CHURCH VIEW,SN3 ,20/10/2023,"5,000.00"
110281233,Physical Support,Adults,Physical Support 18 - 64,Income,Client Contribution - Nursing,CHURCH VIEW,SN3 ,20/10/2023,-552.52
110281233,Physical Support,Adults,Physical Support 65 and over,Income,Client Contribution - Nursing,CHURCH VIEW,SN3 ,20/10/2023,-709.76
110281233,Physical Support,Adults,Physical Support 65 and over,Income,Client Contribution - Nursing,CHURCH VIEW,SN3 ,20/10/2023,"-2,867.32"
110281233,Physical Support,Adults,Physical Support 65 and over,3rd Party Payments,Nursing Care,CHURCH VIEW,SN3 ,20/10/2023,"6,496.00"
110281233,Physical Support,Adults,Physical Support 65 and over,Income,Client Contribution - Nursing,CHURCH VIEW,SN3 ,20/10/2023,-763.24
110281233,Physical Support,Adults,Physical Support 65 and over,3rd Party Payments,Nursing Care,CHURCH VIEW,SN3 ,20/10/2023,"2,988.96"
110281233,Physical Support,Adults,Physical Support 18 - 64,3rd Party Payments,Nursing Care,CHURCH VIEW,SN3 ,20/10/2023,"5,816.00"
110281233,Physical Support,Adults,Physical Support 65 and over,Income,Client Contribution - Nursing,CHURCH VIEW,SN3 ,20/10/2023,-984.92
110281233,Physical Support,Adults,Physical Support 65 and over,Income,Client Contribution - Nursing,CHURCH VIEW,SN3 ,20/10/2023,-930.44
110281233,Physical Support,Adults,Physical Support 65 and over,3rd Party Payments,Nursing Care,CHURCH VIEW,SN3 ,20/10/2023,"5,863.96"
110281233,Physical Support,Adults,Physical Support 18 - 64,3rd Party Payments,Nursing Care,CHURCH VIEW,SN3 ,20/10/2023,"2,867.32"
110281233,Physical Support,Adults,Physical Support 65 and over,Income,Client Contribution - Nursing,CHURCH VIEW,SN3 ,20/10/2023,-979.88
110281233,Physical Support,Adults,Physical Support 65 and over,Income,Client Contribution - Nursing,CHURCH VIEW,SN3 ,20/10/2023,-741.88
110281233,Physical Support,Adults,Physical Support 65 and over,Income,Client Contribution - Nursing,CHURCH VIEW,SN3 ,20/10/2023,-800.96
110281233,Physical Support,Adults,Physical Support 65 and over,3rd Party Payments,Nursing Care,CHURCH VIEW,SN3 ,20/10/2023,"2,867.32"
110232309,Learning Disabilities,Adults,Learning Disability 18 - 64,Income,Client Contribution - Residential,CIDERSTONE HOUSE,SN25,20/10/2023,-414.20
110232309,Learning Disabilities,Adults,Learning Disability 18 - 64,Income,Client Contribution - Residential,CIDERSTONE HOUSE,SN25,20/10/2023,-483.20
110232309,Learning Disabilities,Adults,Learning Disability 18 - 64,Income,Client Contribution - Residential,CIDERSTONE HOUSE,SN25,20/10/2023,-438.80
110232309,Learning Disabilities,Adults,Learning Disability 18 - 64,3rd Party Payments,Residential Care,CIDERSTONE HOUSE,SN25,20/10/2023,"11,782.40"
110232309,Learning Disabilities,Adults,Learning Disability 18 - 64,3rd Party Payments,Residential Care,CIDERSTONE HOUSE,SN25,20/10/2023,"12,163.20"
111468233,Learning Disabilities,Adults,Learning Disability 18 - 64,3rd Party Payments,Residential Care,CIDERSTONE HOUSE,SN25,27/10/2023,868.80
110232309,Learning Disabilities,Adults,Learning Disability 18 - 64,Income,Client Contribution - Residential,CIDERSTONE HOUSE,SN25,20/10/2023,-788.80
110232309,Learning Disabilities,Adults,Learning Disability 18 - 64,Income,Client Contribution - Residential,CIDERSTONE HOUSE,SN25,20/10/2023,-423.00
109504348,High Needs Block,Dedicated Schools Grant (DSG),Post 16 - New Responsibilties,3rd Party Payments,FE Colleges,CIRENCESTER COLLEGE,GL7 ,16/10/2023,"2,064.25"
109504344,High Needs Block,Dedicated Schools Grant (DSG),Out of Borough School Fees,3rd Party Payments,Other Local Authority Mainstream Schools- Pre 16,CIRENCESTER KINGSHILL SCHOOL,GL7 ,16/10/2023,609.58
109504343,High Needs Block,Dedicated Schools Grant (DSG),Out of Borough School Fees,3rd Party Payments,Other Local Authority Mainstream Schools- Pre 16,CIRENCESTER KINGSHILL SCHOOL,GL7 ,16/10/2023,609.58
110552236,Homelessness and Travellers,Housing Services,Private Sector Landlords,Transfer Payments,Payment of Costs,REDACTED PERSONAL DATA,SN5 ,23/10/2023,575.00
109720233,Elections & Democracy,Elections and Democracy,Register of Electors,Supplies and Services,Post,CIVICA ELECTION SERVICES LIMITED,N8 0,18/10/2023,398.36
111107233,Elections & Democracy,Elections and Democracy,Register of Electors,Supplies and Services,Post,CIVICA ELECTION SERVICES LIMITED,N8 0,27/10/2023,"5,697.99"
107596234,Elections & Democracy,Elections and Democracy,Register of Electors,Supplies and Services,Materials,CIVICA ELECTION SERVICES LIMITED,N8 0,04/10/2023,868.42
111107233,Elections & Democracy,Elections and Democracy,Register of Electors,Supplies and Services,Materials,CIVICA ELECTION SERVICES LIMITED,N8 0,27/10/2023,"1,309.28"
107596234,Elections & Democracy,Elections and Democracy,Register of Electors,Supplies and Services,Post,CIVICA ELECTION SERVICES LIMITED,N8 0,04/10/2023,"1,926.79"
109720233,Elections & Democracy,Elections and Democracy,Register of Electors,Supplies and Services,Materials,CIVICA ELECTION SERVICES LIMITED,N8 0,18/10/2023,215.33
109020233,Libraries,"Education, Inclusion and Skills",Library Delivery,Supplies and Services,Services,CIVICA UK LTD,SE1 ,11/10/2023,"23,000.00"
107659233,Planning & Regulatory,Strategic Planning,Economy & Development Management,Employees,Temporary / Agency - by Accounts Payable,REDACTED PERSONAL DATA,BS37,04/10/2023,"11,701.27"
109602254,Early Years Block,Dedicated Schools Grant (DSG),Free Nursery Education Commissioning - three & four  year olds,3rd Party Payments,Contracts - Child Care,REDACTED PERSONAL DATA,SN2 ,18/10/2023,546.56
111192233,Care Management & Safeguarding,Adults,Swindon Safeguarding Partnershiph,Supplies and Services,Fees,CLARK WARD ASSOCIATES LTD,SN1 ,27/10/2023,"1,380.00"
110751233,Education,"Education, Inclusion and Skills",Education Standards and Quality,Supplies and Services,Fees,CLARKE WILLMOTT LLP,TA1 ,25/10/2023,"2,438.00"
108507233,Disabled Children,Children & Families,DCT Daytime Short Breaks,Transfer Payments,Personal Budget - Direct Payments - Other,REDACTED PERSONAL DATA,SN25,09/10/2023,628.00
107687233,Traded Services,"Education, Inclusion and Skills",Traded Services Operations,Supplies and Services,Subscriptions,CLEAPSS,HP5 ,04/10/2023,"2,080.00"
109106233,Customer Strategy & Operations,"People, Culture and Organisational Resilience",Cemeteries & Crematoria,Supplies and Services,Repairs & Maintenance,CLEAR SKIES SOFTWARE LTD,BS20,13/10/2023,"2,632.36"
107833233,NEV,"Economy, Growth and Place",Southern Connector Road,Capital,"Equipment, Fixtures & Fittings",CLEARVIEW INTELLIGENCE LTD,MK13,04/10/2023,"21,912.80"
110765246,Early Years Block,Dedicated Schools Grant (DSG),Free Nursery Education Commissioning - three & four  year olds,3rd Party Payments,Contracts - Child Care,CLIFTON ST PRE-SCHOOL,SN1 ,25/10/2023,750.00
110232290,Physical Support,Adults,Physical Support 65 and over,3rd Party Payments,Residential Care,COATE WATER CARE CO LTD,SN3 ,20/10/2023,975.00
110232290,Physical Support,Adults,Physical Support 65 and over,3rd Party Payments,Residential Care,COATE WATER CARE CO LTD,SN3 ,20/10/2023,"3,900.00"
110232290,Physical Support,Adults,Physical Support 65 and over,Income,Client Contribution - Residential,COATE WATER CARE CO LTD,SN3 ,20/10/2023,-895.60
110232290,Physical Support,Adults,Physical Support 65 and over,Income,Client Contribution - Residential,COATE WATER CARE CO LTD,SN3 ,20/10/2023,-954.00
110232290,Physical Support,Adults,Physical Support 65 and over,Income,Client Contribution - Residential,COATE WATER CARE CO LTD,SN3 ,20/10/2023,-644.56
110232290,Physical Support,Adults,Physical Support 65 and over,Income,Client Contribution - Residential,COATE WATER CARE CO LTD,SN3 ,20/10/2023,-675.20
110232290,Physical Support,Adults,Physical Support 65 and over,Income,Client Contribution - Residential,COATE WATER CARE CO LTD,SN3 ,20/10/2023,-933.04
110232290,Physical Support,Adults,Physical Support 65 and over,3rd Party Payments,Residential Care,COATE WATER CARE CO LTD,SN3 ,20/10/2023,"2,988.96"
110232290,Physical Support,Adults,Physical Support 65 and over,3rd Party Payments,Residential Care,COATE WATER CARE CO LTD,SN3 ,20/10/2023,"2,867.32"
110232290,Physical Support,Adults,Physical Support 18 - 64,3rd Party Payments,Residential Care,COATE WATER CARE CO LTD,SN3 ,20/10/2023,"2,867.32"
110232290,Physical Support,Adults,Physical Support 65 and over,Income,Client Contribution - Residential,COATE WATER CARE CO LTD,SN3 ,20/10/2023,-713.24
110232290,Physical Support,Adults,Physical Support 65 and over,3rd Party Payments,Residential Care,COATE WATER CARE CO LTD,SN3 ,20/10/2023,"4,400.00"
110232290,Mental Health,Adults,Mental Health 65 and over,3rd Party Payments,Residential Care,COATE WATER CARE CO LTD,SN3 ,20/10/2023,"3,480.00"
110232290,Physical Support,Adults,Physical Support 65 and over,Income,Client Contribution - Residential,COATE WATER CARE CO LTD,SN3 ,20/10/2023,"-1,434.76"
110232290,Physical Support,Adults,Physical Support 65 and over,Income,Client Contribution - Residential,COATE WATER CARE CO LTD,SN3 ,20/10/2023,"-2,280.92"
110232290,Physical Support,Adults,Physical Support 18 - 64,Income,Client Contribution - Residential,COATE WATER CARE CO LTD,SN3 ,20/10/2023,-416.56
110232290,Physical Support,Adults,Physical Support 65 and over,Income,Client Contribution - Residential,COATE WATER CARE CO LTD,SN3 ,20/10/2023,"-1,395.32"
110232290,Mental Health,Adults,Mental Health 65 and over,3rd Party Payments,Residential Care,COATE WATER CARE CO LTD,SN3 ,20/10/2023,"2,867.32"
110232290,Physical Support,Adults,Physical Support 65 and over,Income,Client Contribution - Residential,COATE WATER CARE CO LTD,SN3 ,20/10/2023,-691.20
110232290,Physical Support,Adults,Physical Support 65 and over,Income,Client Contribution - Residential,COATE WATER CARE CO LTD,SN3 ,20/10/2023,-297.96
110232290,Physical Support,Adults,Physical Support 65 and over,Income,Client Contribution - Residential,COATE WATER CARE CO LTD,SN3 ,20/10/2023,-727.20
110232290,Physical Support,Adults,Physical Support 65 and over,Income,Client Contribution - Residential,COATE WATER CARE CO LTD,SN3 ,20/10/2023,-760.96
110232290,Physical Support,Adults,Physical Support 65 and over,Income,Client Contribution - Residential,COATE WATER CARE CO LTD,SN3 ,20/10/2023,"-1,175.40"
110232290,Physical Support,Adults,Physical Support 65 and over,Income,Client Contribution - Residential,COATE WATER CARE CO LTD,SN3 ,20/10/2023,"-1,328.68"
110232290,Physical Support,Adults,Physical Support 65 and over,Income,Client Contribution - Residential,COATE WATER CARE CO LTD,SN3 ,20/10/2023,-847.96
110232256,Learning Disabilities,Adults,Learning Disability 18 - 64,Income,Client Contribution - Residential,COCKLEBURY FARMHOUSE,SN15,20/10/2023,-425.60
110232256,Learning Disabilities,Adults,Learning Disability 18 - 64,3rd Party Payments,Residential Care,COCKLEBURY FARMHOUSE,SN15,20/10/2023,"10,364.00"
111358233,Learning Disabilities,Adults,Learning Disability 18 - 64,3rd Party Payments,Residential Care,COCKLEBURY FARMHOUSE,SN15,27/10/2023,740.29
108776233,Streetsmart,Streetsmart,Waste - Disposal,3rd Party Payments,Contract Payments,CODFORD BIOGAS LTD,NR7 ,11/10/2023,469.20
110140233,Town Centre,"Economy, Growth and Place",Fleming Way Improvement Scheme,Capital,Contractor Payments,COLAS LTD,B37 ,20/10/2023,"424,849.72"
109177233,Town Centre,"Economy, Growth and Place",Carriage Works Phase 3,Capital,Professional Fees,COLE EASDON CONSULTANTS LIMITED,SN3 ,13/10/2023,675.00
109453233,Disabled Children,Children & Families,DCT Daytime Short Breaks,3rd Party Payments,Respite Care,COLLABORATIVE CARE SERVICES LTD,SN2 ,16/10/2023,"27,936.00"
110232245,Learning Disabilities,Adults,Learning Disability 18 - 64,3rd Party Payments,Residential Care,COMMUNITY ACCESS NETWORK LTD,SN25,20/10/2023,"7,036.52"
111358236,Learning Disabilities,Adults,Learning Disability 18 - 64,3rd Party Payments,Supported Lodgings (Childrens)/Supported Living (Adults),COMMUNITY ACCESS NETWORK LTD,SN25,27/10/2023,"1,108.24"
110574234,Learning Disabilities,Adults,Learning Disability 18 - 64,Income,Client Contribution - Supported Living,COMMUNITY ACCESS NETWORK LTD,SN25,23/10/2023,-103.68
110574234,Learning Disabilities,Adults,Learning Disability 18 - 64,Income,Client Contribution - Supported Living,COMMUNITY ACCESS NETWORK LTD,SN25,23/10/2023,-0.60
110574234,Learning Disabilities,Adults,Learning Disability 18 - 64,Income,Client Contribution - Supported Living,COMMUNITY ACCESS NETWORK LTD,SN25,23/10/2023,-37.84
110574234,Learning Disabilities,Adults,Learning Disability 18 - 64,3rd Party Payments,Supported Lodgings (Childrens)/Supported Living (Adults),COMMUNITY ACCESS NETWORK LTD,SN25,23/10/2023,"4,120.00"
110574233,Learning Disabilities,Adults,Learning Disability 65 and over,3rd Party Payments,Supported Lodgings (Childrens)/Supported Living (Adults),COMMUNITY ACCESS NETWORK LTD,SN25,23/10/2023,907.60
110574234,Learning Disabilities,Adults,Learning Disability 18 - 64,3rd Party Payments,Supported Lodgings (Childrens)/Supported Living (Adults),COMMUNITY ACCESS NETWORK LTD,SN25,23/10/2023,24.00
110232245,Learning Disabilities,Adults,Learning Disability 18 - 64,Income,Client Contribution - Residential,COMMUNITY ACCESS NETWORK LTD,SN25,20/10/2023,-483.20
110574234,Learning Disabilities,Adults,Learning Disability 18 - 64,Income,Client Contribution - Supported Living,COMMUNITY ACCESS NETWORK LTD,SN25,23/10/2023,-0.68
110574234,Learning Disabilities,Adults,Learning Disability 18 - 64,3rd Party Payments,Supported Lodgings (Childrens)/Supported Living (Adults),COMMUNITY ACCESS NETWORK LTD,SN25,23/10/2023,560.00
110574234,Learning Disabilities,Adults,Learning Disability 18 - 64,3rd Party Payments,Supported Lodgings (Childrens)/Supported Living (Adults),COMMUNITY ACCESS NETWORK LTD,SN25,23/10/2023,"1,360.00"
110574234,Learning Disabilities,Adults,Learning Disability 18 - 64,3rd Party Payments,Supported Lodgings (Childrens)/Supported Living (Adults),COMMUNITY ACCESS NETWORK LTD,SN25,23/10/2023,"1,503.88"
111358235,Learning Disabilities,Adults,Learning Disability 18 - 64,3rd Party Payments,Supported Lodgings (Childrens)/Supported Living (Adults),COMMUNITY ACCESS NETWORK LTD,SN25,27/10/2023,"1,824.31"
110574234,Learning Disabilities,Adults,Learning Disability 18 - 64,3rd Party Payments,Supported Lodgings (Childrens)/Supported Living (Adults),COMMUNITY ACCESS NETWORK LTD,SN25,23/10/2023,27.76
109243233,Town Centre,"Economy, Growth and Place",Uk shared Properity Fund,Supplies and Services,Fees,COMMUNITY FIRST,SN10,13/10/2023,"40,750.00"
109384242,Social Care,Children & Families,Children's Resource and Home Finding Team,3rd Party Payments,Independent Fostering Agency Placements,COMMUNITY FOSTER CARE,GL1 ,16/10/2023,"3,927.30"
109384240,Social Care,Children & Families,Children's Resource and Home Finding Team,3rd Party Payments,Independent Fostering Agency Placements,COMMUNITY FOSTER CARE,GL1 ,16/10/2023,"10,416.62"
109384241,Social Care,Children & Families,Children's Resource and Home Finding Team,3rd Party Payments,Independent Fostering Agency Placements,COMMUNITY FOSTER CARE,GL1 ,16/10/2023,"10,080.60"
110232291,Learning Disabilities,Adults,Learning Disability 18 - 64,3rd Party Payments,Residential Care,COMMUNITY THERAPEUTIC SERVICES LTD,BS22,20/10/2023,"12,423.92"
111280233,Social Care,Children & Families,Children's Resource and Home Finding Team,3rd Party Payments,Residential Care,COMPASS CHILDREN'S HOMES LTD,LE7 ,27/10/2023,"21,157.50"
108305251,Social Care,Children & Families,Children's Resource and Home Finding Team,3rd Party Payments,Residential Care,COMPASS CHILDREN'S HOMES LTD,LE7 ,06/10/2023,"18,160.74"
109390233,Highways Inspections & Maintenance,Highway Operations and Car Parking,Highway Maintenance,Supplies and Services,Materials,COMPASS MINERALS UK LTD,CW7 ,16/10/2023,"1,682.43"
109391233,Highways Inspections & Maintenance,Highway Operations and Car Parking,Highway Maintenance,Supplies and Services,Materials,COMPASS MINERALS UK LTD,CW7 ,16/10/2023,"8,530.47"
111254337,Learning Disabilities,Adults,Learning Disability 18 - 64,Transfer Payments,Personal Budget - Direct Payments - Other,REDACTED PERSONAL DATA,GL2 ,27/10/2023,"4,560.00"
111254337,Learning Disabilities,Adults,Learning Disability 18 - 64,Income,Client Contribution - Personal Budget - DP,REDACTED PERSONAL DATA,GL2 ,27/10/2023,-68.32
111254337,Learning Disabilities,Adults,Learning Disability 18 - 64,Transfer Payments,Personal Budget - Direct Payments - Other,REDACTED PERSONAL DATA,GL2 ,27/10/2023,32.32
111254337,Learning Disabilities,Adults,Learning Disability 18 - 64,Income,Client Contribution - Personal Budget - DP,REDACTED PERSONAL DATA,GL2 ,27/10/2023,-0.48
111621233,Planned Maintenance Programme,HRA Capital Financing,Contingent Major Repairs,Capital,Contractor Payments,COOLINK LTD,SN11,30/10/2023,"9,967.00"
109185235,Responsive Repairs,Repairs,Responsive Repairs,3rd Party Payments,Contract Payments,REDACTED PERSONAL DATA,SN2 ,13/10/2023,"2,300.00"
109975235,Responsive Repairs,Repairs,Responsive Repairs,3rd Party Payments,Contract Payments,REDACTED PERSONAL DATA,SN2 ,18/10/2023,"2,350.00"
109975236,Responsive Repairs,Repairs,Responsive Repairs,3rd Party Payments,Contract Payments,REDACTED PERSONAL DATA,SN2 ,18/10/2023,800.00
109975234,Responsive Repairs,Repairs,Responsive Repairs,3rd Party Payments,Contract Payments,REDACTED PERSONAL DATA,SN2 ,18/10/2023,"1,900.00"
109975236,Responsive Repairs,Repairs,Responsive Repairs,3rd Party Payments,Contract Payments,REDACTED PERSONAL DATA,SN2 ,18/10/2023,830.00
109975234,Responsive Repairs,Repairs,Responsive Repairs,3rd Party Payments,Contract Payments,REDACTED PERSONAL DATA,SN2 ,18/10/2023,"2,450.00"
109975235,Responsive Repairs,Repairs,Responsive Repairs,3rd Party Payments,Contract Payments,REDACTED PERSONAL DATA,SN2 ,18/10/2023,"1,800.00"
109185235,Responsive Repairs,Repairs,Responsive Repairs,3rd Party Payments,Contract Payments,REDACTED PERSONAL DATA,SN2 ,13/10/2023,"1,850.00"
107981233,Streetsmart,Streetsmart,Waste - Processing,Supplies and Services,Repairs & Maintenance,CORGIN LTD,ST16,06/10/2023,"8,778.00"
108069233,Streetsmart,Streetsmart,Waste - Disposal,Supplies and Services,Materials,CORGIN LTD,ST16,06/10/2023,872.00
108060233,Streetsmart,Streetsmart,Waste - Disposal,Supplies and Services,Materials,CORGIN LTD,ST16,06/10/2023,546.00
108564233,Social Care,Children & Families,Placement Adoption Service,3rd Party Payments,Adoption Allowances,REDACTED PERSONAL DATA,BA15,09/10/2023,860.00
110623268,Social Care,Children & Families,Placement Adoption Service,3rd Party Payments,Adoption Allowances,REDACTED PERSONAL DATA,BA15,23/10/2023,860.00
110232265,Learning Disabilities,Adults,Learning Disability 18 - 64,3rd Party Payments,Residential Care,CORNERSTONES UK LTD,SN9 ,20/10/2023,"6,626.24"
111358245,Learning Disabilities,Adults,Learning Disability 18 - 64,3rd Party Payments,Residential Care,CORNERSTONES UK LTD,SN9 ,27/10/2023,678.67
110232265,Learning Disabilities,Adults,Learning Disability 18 - 64,Income,Client Contribution - Residential,CORNERSTONES UK LTD,SN9 ,20/10/2023,-438.80
110232265,Learning Disabilities,Adults,Learning Disability 18 - 64,Income,Client Contribution - Residential,CORNERSTONES UK LTD,SN9 ,20/10/2023,-381.00
110232265,Learning Disabilities,Adults,Learning Disability 18 - 64,Income,Client Contribution - Residential,CORNERSTONES UK LTD,SN9 ,20/10/2023,-483.20
110232265,Learning Disabilities,Adults,Learning Disability 18 - 64,3rd Party Payments,Residential Care,CORNERSTONES UK LTD,SN9 ,20/10/2023,"8,465.28"
110232265,Learning Disabilities,Adults,Learning Disability 18 - 64,3rd Party Payments,Residential Care,CORNERSTONES UK LTD,SN9 ,20/10/2023,"8,650.40"
110232265,Learning Disabilities,Adults,Learning Disability 18 - 64,3rd Party Payments,Residential Care,CORNERSTONES UK LTD,SN9 ,20/10/2023,"9,501.40"
110232265,Learning Disabilities,Adults,Learning Disability 18 - 64,Income,Client Contribution - Residential,CORNERSTONES UK LTD,SN9 ,20/10/2023,-487.80
110232265,Learning Disabilities,Adults,Learning Disability 18 - 64,Income,Client Contribution - Residential,CORNERSTONES UK LTD,SN9 ,20/10/2023,-423.00
111358246,Learning Disabilities,Adults,Learning Disability 18 - 64,3rd Party Payments,Residential Care,CORNERSTONES UK LTD,SN9 ,27/10/2023,604.44
110232265,Learning Disabilities,Adults,Learning Disability 18 - 64,3rd Party Payments,Residential Care,CORNERSTONES UK LTD,SN9 ,20/10/2023,"7,337.52"
111358244,Learning Disabilities,Adults,Learning Disability 18 - 64,3rd Party Payments,Residential Care,CORNERSTONES UK LTD,SN9 ,27/10/2023,617.89
111358248,Learning Disabilities,Adults,Learning Disability 18 - 64,3rd Party Payments,Residential Care,CORNERSTONES UK LTD,SN9 ,27/10/2023,524.11
109052233,Streetsmart,Streetsmart,Waterside Fleet Hires,Transport Costs,Vehicle Hire / Contract,COTSWOLD RECYCLING COMPANY LTD,GL12,11/10/2023,"1,900.00"
109053233,Streetsmart,Streetsmart,Waterside Fleet Hires,Transport Costs,Vehicle Hire / Contract,COTSWOLD RECYCLING COMPANY LTD,GL12,11/10/2023,"1,900.00"
108210233,Homelessness and Travellers,Housing Services,Private Sector Landlords,Transfer Payments,Payment of Costs,REDACTED PERSONAL DATA,OX28,06/10/2023,560.73
111256291,Learning Disabilities,Adults,Learning Disability 18 - 64,Income,Client Contribution - Personal Budget - DP,REDACTED PERSONAL DATA,SP11,27/10/2023,-122.00
111256291,Learning Disabilities,Adults,Learning Disability 18 - 64,Income,Client Contribution - Personal Budget - DP,REDACTED PERSONAL DATA,SP11,27/10/2023,-38.52
111256291,Learning Disabilities,Adults,Learning Disability 18 - 64,Transfer Payments,Personal Budget - Direct Payments - Domiciliary Care,REDACTED PERSONAL DATA,SP11,27/10/2023,"1,302.40"
111256291,Learning Disabilities,Adults,Learning Disability 18 - 64,Transfer Payments,Personal Budget - Direct Payments - Domiciliary Care,REDACTED PERSONAL DATA,SP11,27/10/2023,37.76
111256291,Learning Disabilities,Adults,Learning Disability 18 - 64,Income,Client Contribution - Personal Budget - DP,REDACTED PERSONAL DATA,SP11,27/10/2023,-7.68
111256291,Learning Disabilities,Adults,Learning Disability 18 - 64,Income,Client Contribution - Personal Budget - DP,REDACTED PERSONAL DATA,SP11,27/10/2023,-3.52
111256291,Learning Disabilities,Adults,Learning Disability 18 - 64,Transfer Payments,Personal Budget - Direct Payments - Domiciliary Care,REDACTED PERSONAL DATA,SP11,27/10/2023,82.00
111256291,Learning Disabilities,Adults,Learning Disability 18 - 64,Transfer Payments,Personal Budget - Direct Payments - Domiciliary Care,REDACTED PERSONAL DATA,SP11,27/10/2023,410.88
107942233,Streetsmart,Streetsmart,Waste - Disposal,Supplies and Services,Materials,COVEYA LTD,BS30,04/10/2023,"1,146.60"
107527233,Streetsmart,Streetsmart,Waste - Disposal,Supplies and Services,Materials,COVEYA LTD,BS30,02/10/2023,"1,255.80"
108724233,Schools - Primary,Dedicated Schools Grant (DSG),Primary School Budgets,3rd Party Payments,Mainstream Delegated Funding,COVINGHAM PARK PRIMARY SCHOOL,SN3 ,13/10/2023,"133,967.00"
108746233,DSG Other Funding,Dedicated Schools Grant (DSG),DFE Additional Grants,3rd Party Payments,Payment of Pupil Premium to school,COVINGHAM PARK PRIMARY SCHOOL,SN3 ,13/10/2023,"8,057.00"
107792233,DSG Other Funding,Dedicated Schools Grant (DSG),DFE Additional Grants,Supplies and Services,Payments to Educational Bodies,COVINGHAM PARK PRIMARY SCHOOL,SN3 ,04/10/2023,856.93
109504241,High Needs Block,Dedicated Schools Grant (DSG),SEN Resourcing Assessment Panel,3rd Party Payments,Top up funding - Maintained providers Pre 16,COVINGHAM PARK PRIMARY SCHOOL,SN3 ,16/10/2023,"3,677.50"
110384235,Physical Support,Adults,Physical Support 65 and over,Income,Client Contribution - Residential,COXWELL HALL AND MEWS NURSING HOME,TW20,20/10/2023,-610.00
110384235,Physical Support,Adults,Physical Support 65 and over,3rd Party Payments,Residential Care,COXWELL HALL AND MEWS NURSING HOME,TW20,20/10/2023,"6,480.00"
110384235,Memory & Cognition,Adults,Support for Memory and Cognition 65 and over,3rd Party Payments,Residential Care,COXWELL HALL AND MEWS NURSING HOME,TW20,20/10/2023,"5,968.24"
110232250,Learning Disabilities,Adults,Learning Disability 18 - 64,3rd Party Payments,Residential Care,CRAEGMOOR HEALTHCARE,BA14,20/10/2023,"9,158.28"
110232250,Learning Disabilities,Adults,Learning Disability 18 - 64,Income,Client Contribution - Residential,CRAEGMOOR HEALTHCARE,BA14,20/10/2023,-483.20
110122233,Streetsmart,Streetsmart,Waste - Disposal,3rd Party Payments,Contract Payments,CRAPPER & SONS LANDFILL LTD,SN4 ,20/10/2023,"8,404.70"
108240233,Streetsmart,Streetsmart,Waste - Disposal,3rd Party Payments,Contract Payments,CRAPPER & SONS LANDFILL LTD,SN4 ,06/10/2023,"4,785.19"
108515233,Streetsmart,Streetsmart,Waste - Disposal,3rd Party Payments,Contract Payments,CRAPPER & SONS LANDFILL LTD,SN4 ,09/10/2023,992.92
108232233,Streetsmart,Streetsmart,Waste - Disposal,3rd Party Payments,Contract Payments,CRAPPER & SONS LANDFILL LTD,SN4 ,06/10/2023,520.88
108235233,Streetsmart,Streetsmart,Waste - Disposal,3rd Party Payments,Contract Payments,CRAPPER & SONS LANDFILL LTD,SN4 ,06/10/2023,"7,786.40"
110802233,Streetsmart,Streetsmart,Waste - Disposal,3rd Party Payments,Contract Payments,CRAPPER & SONS LANDFILL LTD,SN4 ,25/10/2023,"5,598.33"
108516233,Streetsmart,Streetsmart,Waste - Disposal,3rd Party Payments,Contract Payments,CRAPPER & SONS LANDFILL LTD,SN4 ,09/10/2023,"6,891.61"
110124233,Streetsmart,Streetsmart,Waste - Disposal,3rd Party Payments,Contract Payments,CRAPPER & SONS LANDFILL LTD,SN4 ,20/10/2023,"2,565.24"
108160233,Streetsmart,Streetsmart,Waste - Disposal,3rd Party Payments,Contract Payments,CRAPPER & SONS LANDFILL LTD,SN4 ,06/10/2023,"1,627.17"
108236233,Streetsmart,Streetsmart,Waste - Disposal,3rd Party Payments,Contract Payments,CRAPPER & SONS LANDFILL LTD,SN4 ,06/10/2023,817.57
108239233,Streetsmart,Streetsmart,Waste - Disposal,3rd Party Payments,Contract Payments,CRAPPER & SONS LANDFILL LTD,SN4 ,06/10/2023,"12,732.45"
108512234,Streetsmart,Streetsmart,Waste - Disposal,3rd Party Payments,Contract Payments,CRAPPER & SONS LANDFILL LTD,SN4 ,09/10/2023,"5,467.90"
109166233,Streetsmart,Streetsmart,Waste - Disposal,3rd Party Payments,Contract Payments,CRAPPER & SONS LANDFILL LTD,SN4 ,13/10/2023,"2,035.27"
108237233,Streetsmart,Streetsmart,Waste - Disposal,3rd Party Payments,Contract Payments,CRAPPER & SONS LANDFILL LTD,SN4 ,06/10/2023,"1,467.31"
108513233,Streetsmart,Streetsmart,Waste - Disposal,3rd Party Payments,Contract Payments,CRAPPER & SONS LANDFILL LTD,SN4 ,09/10/2023,"9,057.88"
109175233,"Data, Performance and Insight",Digital & Business Change,"Performance, Intelligence and Insight",Supplies and Services,Services,CRAYON DRAGONS LTD,SL6 ,13/10/2023,"11,000.00"
111216234,Heritage,Culture,SMAG relocation,Capital,Contractor Payments,CREATIVE CONSTRUCTION SOUTH WEST LTD,BS48,27/10/2023,"53,885.51"
107582234,Physical Support,Adults,Fessey House,Supplies and Services,Food,CREED CATERING SUPPLIES LTD,GL51,04/10/2023,907.31
109392233,Physical Support,Adults,Fessey House,Supplies and Services,Food,CREED CATERING SUPPLIES LTD,GL51,16/10/2023,103.29
109395233,Physical Support,Adults,Fessey House,Supplies and Services,Food,CREED CATERING SUPPLIES LTD,GL51,16/10/2023,869.78
109394233,Physical Support,Adults,Fessey House,Supplies and Services,Food,CREED CATERING SUPPLIES LTD,GL51,16/10/2023,125.22
109394233,Physical Support,Adults,Fessey House,Supplies and Services,Food,CREED CATERING SUPPLIES LTD,GL51,16/10/2023,759.28
109392233,Physical Support,Adults,Fessey House,Supplies and Services,Food,CREED CATERING SUPPLIES LTD,GL51,16/10/2023,"1,063.31"
109395233,Physical Support,Adults,Fessey House,Supplies and Services,Food,CREED CATERING SUPPLIES LTD,GL51,16/10/2023,87.96
111548233,Disabled Children,Children & Families,ICES Paediatric,Supplies and Services,Equipment,CRELLING HARNESSES LIMITED,FY5 ,30/10/2023,727.50
107356241,Property & Assets,Property & Assets,DMJ Repairs,Capital,Professional Fees,CRL SURVEYS LIMITED,CR4 ,02/10/2023,"9,988.10"
107356242,Property & Assets,Property & Assets,DMJ Repairs,Capital,Professional Fees,CRL SURVEYS LIMITED,CR4 ,02/10/2023,"9,988.10"
111233233,Organisational Resilience,"People, Culture and Organisational Resilience",Security,Employees,Casual Staff - Basic,CROCSEC LIMITED,SN25,27/10/2023,"1,734.00"
111345233,Organisational Resilience,"People, Culture and Organisational Resilience",Security,Employees,Casual Staff - Basic,CROCSEC LIMITED,SN25,27/10/2023,"1,564.00"
109001233,Licencing,Regulatory Services,Taxis & Private Hire,Supplies and Services,Testing / Inspection,CROSS STREET GARAGE (SWINDON) LTD,SN1 ,11/10/2023,"1,430.00"
110117233,School Transport,"Education, Inclusion and Skills",Special Educational Needs Transport,Transport Costs,Home to School Transport,CROSS STREET RADIO CARS,SN1 ,20/10/2023,"2,700.00"
110251233,School Transport,"Education, Inclusion and Skills",Special Educational Needs Transport,Transport Costs,Home to School Transport,CROSS STREET RADIO CARS,SN1 ,20/10/2023,"1,680.00"
110115233,School Transport,"Education, Inclusion and Skills",Special Educational Needs Transport,Transport Costs,Home to School Transport,CROSS STREET RADIO CARS,SN1 ,20/10/2023,"3,060.00"
108756233,DSG Other Funding,Dedicated Schools Grant (DSG),DFE Additional Grants,3rd Party Payments,Payment of Pupil Premium to school,CROWDYS HILL SCHOOL,SN2 ,13/10/2023,"10,281.00"
107772233,DSG Other Funding,Dedicated Schools Grant (DSG),DFE Additional Grants,Supplies and Services,Payments to Educational Bodies,CROWDYS HILL SCHOOL,SN2 ,04/10/2023,"4,800.00"
107798233,DSG Other Funding,Dedicated Schools Grant (DSG),DFE Additional Grants,Supplies and Services,Payments to Educational Bodies,CROWDYS HILL SCHOOL,SN2 ,04/10/2023,"2,570.79"
109504258,High Needs Block,Dedicated Schools Grant (DSG),SEN Resourcing Assessment Panel,3rd Party Payments,Top up funding - Maintained providers Pre 16,CROWDYS HILL SCHOOL,SN2 ,16/10/2023,"102,443.62"
108732233,High Needs Block,Dedicated Schools Grant (DSG),Special School Place,3rd Party Payments,HNB- Place Funding post 16,CROWDYS HILL SCHOOL,SN2 ,13/10/2023,"38,333.00"
109504260,High Needs Block,Dedicated Schools Grant (DSG),SEN Resourcing Assessment Panel,3rd Party Payments,Top up funding - Maintained providers Pre 16,CROWDYS HILL SCHOOL,SN2 ,16/10/2023,"4,375.00"
108733233,High Needs Block,Dedicated Schools Grant (DSG),Special School Place,3rd Party Payments,HNB- Place Funding pre 16,CROWDYS HILL SCHOOL,SN2 ,13/10/2023,"170,000.00"
109504259,High Needs Block,Dedicated Schools Grant (DSG),SEN Resourcing Assessment Panel,3rd Party Payments,Top up funding - Maintained providers Pre 16,CROWDYS HILL SCHOOL,SN2 ,16/10/2023,"150,573.48"
109504264,High Needs Block,Dedicated Schools Grant (DSG),SEN Resourcing Assessment Panel,3rd Party Payments,Top up funding - Maintained providers Post 16,CROWDYS HILL SCHOOL,SN2 ,16/10/2023,"66,579.21"
107946233,"Volutary Sector, Equipment and Carers",Adults,Voluntary Sector Adults,3rd Party Payments,Contracts - Social Care,CRUSE BEREAVEMENT CARE,TW9 ,06/10/2023,"6,250.00"
110232314,Physical Support,Adults,Physical Support 65 and over,3rd Party Payments,Personal Budget - Domiciliary care,CRYSTAL CARING LIMITED,SN2 ,20/10/2023,"1,105.92"
110232314,Physical Support,Adults,Physical Support 65 and over,3rd Party Payments,Personal Budget - Domiciliary care,CRYSTAL CARING LIMITED,SN2 ,20/10/2023,524.16
110232314,Physical Support,Adults,Physical Support 65 and over,3rd Party Payments,Personal Budget - Domiciliary care,CRYSTAL CARING LIMITED,SN2 ,20/10/2023,"1,036.80"
109119236,Other Repairs,Repairs,Unallocated job costs from OPEN system,Premises Costs,Repairs - Buildings,CRYSTAL ELECTRONICS LTD,NN6 ,13/10/2023,527.42
109119240,Other Repairs,Repairs,Asbestos Services,Premises Costs,Permanent Fixtures and Fittings,CRYSTAL ELECTRONICS LTD,NN6 ,13/10/2023,"1,667.17"
109119238,Other Repairs,Repairs,Asbestos Services,Premises Costs,Permanent Fixtures and Fittings,CRYSTAL ELECTRONICS LTD,NN6 ,13/10/2023,"1,667.17"
109588234,Other Repairs,Repairs,Unallocated job costs from OPEN system,Premises Costs,Repairs - Buildings,CRYSTAL ELECTRONICS LTD,NN6 ,18/10/2023,527.42
Corporate Card Transaction,Community Health & Wellbeing,Public Health,Community Health and Wellbeing Management,Supplies and Services,Food,Cs* Tesco Stores Gc,,27/09/2023,2000
Corporate Card Transaction,Community Health & Wellbeing,Public Health,Community Health and Wellbeing Management,Supplies and Services,Food,Cs* Tesco Stores Gc,,16/10/2023,2000
Corporate Card Transaction,Community Health & Wellbeing,Public Health,Community Health and Wellbeing Management,Supplies and Services,Food,Cs* Tesco Stores Gc,,20/10/2023,975
107906233,Highways Inspections & Maintenance,Highway Operations and Car Parking,Streetlighting,Supplies and Services,Materials,CU PHOSCO LIGHTING LTD,SG12,04/10/2023,164.00
107905233,Highways Inspections & Maintenance,Highway Operations and Car Parking,Streetlighting,Supplies and Services,Materials,CU PHOSCO LIGHTING LTD,SG12,04/10/2023,"8,235.00"
107906233,Highways Inspections & Maintenance,Highway Operations and Car Parking,Streetlighting,Supplies and Services,Materials,CU PHOSCO LIGHTING LTD,SG12,04/10/2023,"1,932.00"
Corporate Card Transaction,Homelessness and Travellers,Housing Services,Warm Welcome Project,Supplies and Services,Equipment,Currys Online,,16/10/2023,644.17
Corporate Card Transaction,Homelessness and Travellers,Housing Services,Warm Welcome Project,Supplies and Services,Equipment,Currys Online,,28/09/2023,947.5
111254234,Physical Support,Adults,Physical Support 18 - 64,Transfer Payments,Personal Budget - Direct Payments - Other,REDACTED PERSONAL DATA,SN25,27/10/2023,820.00
111254234,Physical Support,Adults,Physical Support 18 - 64,Transfer Payments,Personal Budget - Direct Payments - Domiciliary Care,REDACTED PERSONAL DATA,SN25,27/10/2023,"2,018.72"
111254234,Physical Support,Adults,Physical Support 18 - 64,Transfer Payments,Personal Budget - Direct Payments - Domiciliary Care,REDACTED PERSONAL DATA,SN25,27/10/2023,547.84
111254234,Physical Support,Adults,Physical Support 18 - 64,Income,Client Contribution - Personal Budget - DP,REDACTED PERSONAL DATA,SN25,27/10/2023,-58.88
111254234,Physical Support,Adults,Physical Support 18 - 64,Income,Client Contribution - Personal Budget - DP,REDACTED PERSONAL DATA,SN25,27/10/2023,-8.12
111254234,Physical Support,Adults,Physical Support 18 - 64,Transfer Payments,Personal Budget - Direct Payments - Domiciliary Care,REDACTED PERSONAL DATA,SN25,27/10/2023,75.52
111254234,Physical Support,Adults,Physical Support 18 - 64,Income,Client Contribution - Personal Budget - DP,REDACTED PERSONAL DATA,SN25,27/10/2023,-217.00
111254234,Physical Support,Adults,Physical Support 18 - 64,Income,Client Contribution - Personal Budget - DP,REDACTED PERSONAL DATA,SN25,27/10/2023,-88.16
111256253,Physical Support,Adults,Physical Support 18 - 64,Transfer Payments,Personal Budget - Direct Payments - Domiciliary Care,REDACTED PERSONAL DATA,SP11,27/10/2023,60.16
111256253,Physical Support,Adults,Physical Support 18 - 64,Transfer Payments,Personal Budget - Direct Payments - Domiciliary Care,REDACTED PERSONAL DATA,SP11,27/10/2023,"1,302.40"
111256253,Physical Support,Adults,Physical Support 18 - 64,Transfer Payments,Personal Budget - Direct Payments - Domiciliary Care,REDACTED PERSONAL DATA,SP11,27/10/2023,"1,058.20"
111256253,Physical Support,Adults,Physical Support 18 - 64,Transfer Payments,Personal Budget - Direct Payments - Domiciliary Care,REDACTED PERSONAL DATA,SP11,27/10/2023,568.80
111256253,Physical Support,Adults,Physical Support 18 - 64,Transfer Payments,Personal Budget - Direct Payments - Domiciliary Care,REDACTED PERSONAL DATA,SP11,27/10/2023,252.34
111256253,Physical Support,Adults,Physical Support 18 - 64,Transfer Payments,Personal Budget - Direct Payments - Domiciliary Care,REDACTED PERSONAL DATA,SP11,27/10/2023,547.84
111256253,Physical Support,Adults,Physical Support 18 - 64,Transfer Payments,Personal Budget - Direct Payments - Domiciliary Care,REDACTED PERSONAL DATA,SP11,27/10/2023,201.71
111256253,Physical Support,Adults,Physical Support 18 - 64,Transfer Payments,Personal Budget - Direct Payments - Domiciliary Care,REDACTED PERSONAL DATA,SP11,27/10/2023,198.32
111256253,Physical Support,Adults,Physical Support 18 - 64,Transfer Payments,Personal Budget - Direct Payments - Domiciliary Care,REDACTED PERSONAL DATA,SP11,27/10/2023,650.56
109150233,Town Centre,"Economy, Growth and Place",Carriage Works Phase 3,Capital,Professional Fees,DANIEL AHERN ECOLOGY LTD,SP9 ,13/10/2023,"1,857.00"
111254291,Physical Support,Adults,Physical Support 18 - 64,Transfer Payments,Personal Budget - Direct Payments - Domiciliary Care,REDACTED PERSONAL DATA,SN3 ,27/10/2023,"2,903.04"
111254291,Physical Support,Adults,Physical Support 18 - 64,Income,Client Contribution - Personal Budget - DP,REDACTED PERSONAL DATA,SN3 ,27/10/2023,-181.60
111254268,Learning Disabilities,Adults,Learning Disability 18 - 64,Income,Client Contribution - Personal Budget - DP,REDACTED PERSONAL DATA,SN2 ,27/10/2023,-13.20
111254268,Learning Disabilities,Adults,Learning Disability 18 - 64,Income,Client Contribution - Personal Budget - DP,REDACTED PERSONAL DATA,SN2 ,27/10/2023,-2.92
111254268,Learning Disabilities,Adults,Learning Disability 18 - 64,Transfer Payments,Personal Budget - Direct Payments - Domiciliary Care,REDACTED PERSONAL DATA,SN2 ,27/10/2023,"1,237.28"
111254268,Learning Disabilities,Adults,Learning Disability 18 - 64,Transfer Payments,Personal Budget - Direct Payments - Domiciliary Care,REDACTED PERSONAL DATA,SN2 ,27/10/2023,272.16
111254311,Learning Disabilities,Adults,Learning Disability 18 - 64,Transfer Payments,Personal Budget - Direct Payments - Domiciliary Care,REDACTED PERSONAL DATA,SN2 ,27/10/2023,"2,148.40"
111254311,Learning Disabilities,Adults,Learning Disability 18 - 64,Transfer Payments,Personal Budget - Direct Payments - Domiciliary Care,REDACTED PERSONAL DATA,SN2 ,27/10/2023,"3,907.20"
111254311,Learning Disabilities,Adults,Learning Disability 18 - 64,Income,Client Contribution - Personal Budget - DP,REDACTED PERSONAL DATA,SN2 ,27/10/2023,-12.48
111254311,Learning Disabilities,Adults,Learning Disability 18 - 64,Income,Client Contribution - Personal Budget - DP,REDACTED PERSONAL DATA,SN2 ,27/10/2023,-22.88
111254311,Learning Disabilities,Adults,Learning Disability 18 - 64,Income,Client Contribution - Personal Budget - DP,REDACTED PERSONAL DATA,SN2 ,27/10/2023,-32.84
111254311,Learning Disabilities,Adults,Learning Disability 18 - 64,Transfer Payments,Personal Budget - Direct Payments - Domiciliary Care,REDACTED PERSONAL DATA,SN2 ,27/10/2023,"1,172.16"
111254311,Learning Disabilities,Adults,Learning Disability 18 - 64,Transfer Payments,Personal Budget - Direct Payments - Domiciliary Care,REDACTED PERSONAL DATA,SN2 ,27/10/2023,"3,081.60"
111254311,Learning Disabilities,Adults,Learning Disability 18 - 64,Income,Client Contribution - Personal Budget - DP,REDACTED PERSONAL DATA,SN2 ,27/10/2023,-41.64
109615233,Museums & Heritage,Culture & Heritage,Steam:Income Generation,Supplies and Services,Goods for resale,DAPOL LTD,LL14,18/10/2023,"2,186.22"
108526233,Internal Audit,Internal Audit,Internal Audit,Supplies and Services,Services,DATATANK LTD,NG1 ,09/10/2023,"1,822.00"
111254298,Physical Support,Adults,Physical Support 18 - 64,Transfer Payments,Personal Budget - Direct Payments - Domiciliary Care,REDACTED PERSONAL DATA,SN2 ,27/10/2023,725.76
111254298,Physical Support,Adults,Physical Support 18 - 64,Income,Client Contribution - Personal Budget - DP,REDACTED PERSONAL DATA,SN2 ,27/10/2023,-95.72
111256251,Learning Disabilities,Adults,Learning Disability 18 - 64,Transfer Payments,Personal Budget - Direct Payments - Domiciliary Care,REDACTED PERSONAL DATA,SP11,27/10/2023,716.32
111256251,Learning Disabilities,Adults,Learning Disability 18 - 64,Income,Client Contribution - Personal Budget - DP,REDACTED PERSONAL DATA,SP11,27/10/2023,-26.44
111256251,Learning Disabilities,Adults,Learning Disability 18 - 64,Income,Client Contribution - Personal Budget - DP,REDACTED PERSONAL DATA,SP11,27/10/2023,-71.00
111256251,Learning Disabilities,Adults,Learning Disability 18 - 64,Transfer Payments,Personal Budget - Direct Payments - Domiciliary Care,REDACTED PERSONAL DATA,SP11,27/10/2023,136.96
111256251,Learning Disabilities,Adults,Learning Disability 18 - 64,Income,Client Contribution - Personal Budget - DP,REDACTED PERSONAL DATA,SP11,27/10/2023,-138.36
111256251,Learning Disabilities,Adults,Learning Disability 18 - 64,Income,Client Contribution - Personal Budget - DP,REDACTED PERSONAL DATA,SP11,27/10/2023,-371.40
111248233,Highways & Transport,Highways & Transport,Rights of Way (ROW),Supplies and Services,Repairs & Maintenance,DAVID NEWMAN CONTRACTORS LTD,SN6 ,27/10/2023,"1,050.00"
108067233,Streetsmart,Streetsmart,Waterside Fleet Hires,Transport Costs,Vehicle Hire / Contract,DAWSONRENTLES SWEEPERS,HD6 ,06/10/2023,"2,954.77"
108065233,Streetsmart,Streetsmart,Waterside Fleet Hires,Transport Costs,Vehicle Hire / Contract,DAWSONRENTLES SWEEPERS,HD6 ,06/10/2023,"2,259.53"
108066233,Streetsmart,Streetsmart,Waterside Fleet Hires,Transport Costs,Vehicle Hire / Contract,DAWSONRENTLES SWEEPERS,HD6 ,06/10/2023,"2,954.77"
108063233,Streetsmart,Streetsmart,Waterside Fleet Hires,Transport Costs,Vehicle Hire / Contract,DAWSONRENTLES SWEEPERS,HD6 ,06/10/2023,"2,976.49"
108064233,Streetsmart,Streetsmart,Waterside Fleet Hires,Transport Costs,Vehicle Hire / Contract,DAWSONRENTLES SWEEPERS,HD6 ,06/10/2023,"3,324.11"
109320234,Learning Disabilities,Adults,LD Day Services (OK4U),Supplies and Services,Discretionary Costs,DDC DOLPHIN LIMITED,BH12,13/10/2023,446.00
107658233,Physical Support,Adults,Fessey House,Supplies and Services,Equipment,DDC DOLPHIN LIMITED,BH12,04/10/2023,"3,191.00"
107733336,Landlord Services,Supervision & Management,Estate Management Team,Premises Costs,Non-contract Cleaning,DEA SOUTHWEST,SN3 ,04/10/2023,525.00
108431233,Social Care,Children & Families,Placement Fostering Service,3rd Party Payments,Foster Care Basic Payments,REDACTED PERSONAL DATA,SN5 ,09/10/2023,600.00
110595233,Social Care,Children & Families,Placement Fostering Service,3rd Party Payments,Carers Skills Payments - Advanced,REDACTED PERSONAL DATA,SN5 ,23/10/2023,370.00
108431233,Social Care,Children & Families,Placement Fostering Service,3rd Party Payments,Carers Skills Payments - Advanced,REDACTED PERSONAL DATA,SN5 ,09/10/2023,370.00
108431233,Social Care,Children & Families,Placement Fostering Service,3rd Party Payments,Foster Care Additional Allowance,REDACTED PERSONAL DATA,SN5 ,09/10/2023,100.00
110595233,Social Care,Children & Families,Placement Fostering Service,3rd Party Payments,Foster Care Basic Payments,REDACTED PERSONAL DATA,SN5 ,23/10/2023,600.00
110595233,Social Care,Children & Families,Placement Fostering Service,3rd Party Payments,Foster Care Additional Allowance,REDACTED PERSONAL DATA,SN5 ,23/10/2023,100.00
110752233,Landscaping & Open Space,Culture & Heritage & Art,Great Western Community Forest,Capital,Contractor Payments,DEEPER GREEN SERVICES LTD,BS40,25/10/2023,"1,225.00"
107756233,Senior Management Team,Children & Families,Senior Management Team - Non Staffing,Supplies and Services,Consultants,DELOITTE MCS LIMITED,EC4A,04/10/2023,"50,000.00"
109736233,Homelessness and Travellers,Housing Services,Warm Welcome Project,Supplies and Services,Food,DELTA HOTELS BY MARRIOTT SWINDON,SN3 ,18/10/2023,"2,791.33"
111249233,Homelessness and Travellers,Housing Services,Warm Welcome Project,Supplies and Services,Food,DELTA HOTELS BY MARRIOTT SWINDON,SN3 ,27/10/2023,"4,884.83"
109602256,Early Years Block,Dedicated Schools Grant (DSG),Free Nursery Education Commissioning - three & four  year olds,3rd Party Payments,Contracts - Child Care,REDACTED PERSONAL DATA,SN5 ,18/10/2023,823.20
110068233,Learning Disabilities,Adults,Learning Disability 18 - 64,3rd Party Payments,Supported Accommodation Scheme,REDACTED PERSONAL DATA,SN2 ,23/10/2023,"2,152.76"
110068233,Learning Disabilities,Adults,Learning Disability 18 - 64,3rd Party Payments,Supported Accommodation Scheme,REDACTED PERSONAL DATA,SN2 ,23/10/2023,"1,480.00"
110068233,Learning Disabilities,Adults,Learning Disability 18 - 64,3rd Party Payments,Supported Accommodation Scheme,REDACTED PERSONAL DATA,SN2 ,23/10/2023,"1,822.76"
110068233,Learning Disabilities,Adults,Learning Disability 18 - 64,3rd Party Payments,Supported Accommodation Scheme,REDACTED PERSONAL DATA,SN2 ,23/10/2023,563.10
110068233,Learning Disabilities,Adults,Learning Disability 18 - 64,3rd Party Payments,Supported Accommodation Scheme,REDACTED PERSONAL DATA,SN2 ,23/10/2023,335.10
110623235,Social Care,Children & Families,Placement Adoption Service,3rd Party Payments,Adoption Allowances,REDACTED PERSONAL DATA,CF44,23/10/2023,500.34
108530233,Social Care,Children & Families,Placement Adoption Service,3rd Party Payments,Adoption Allowances,REDACTED PERSONAL DATA,CF44,09/10/2023,500.34
109496233,High Needs Block,Dedicated Schools Grant (DSG),SEN Resourcing Assessment Panel,Supplies and Services,Services,REDACTED PERSONAL DATA,SN25,16/10/2023,"1,317.92"
110965233,Lydiard Park,Culture & Heritage,Lydiard : Hotel Operations,Supplies and Services,Hire / Rental,DISCO SUPERSTARS,SN3 ,25/10/2023,900.00
110232313,Physical Support,Adults,Physical Support 65 and over,Income,Client Contribution - Nursing,DIVA CARE LIMITED,GL7 ,20/10/2023,-268.72
110232313,Physical Support,Adults,Physical Support 65 and over,3rd Party Payments,Nursing Care,DIVA CARE LIMITED,GL7 ,20/10/2023,"3,471.08"
109022233,Town Centre,"Economy, Growth and Place",Carriage Works Phase 3,Capital,Professional Fees,DONALD INSALL ASSOCIATES LIMITED,W1G ,11/10/2023,"3,060.00"
107805234,Town Centre,"Economy, Growth and Place",Carriage Works Phase 3,Capital,Professional Fees,DONALD INSALL ASSOCIATES LIMITED,W1G ,04/10/2023,"2,572.50"
111256333,Physical Support,Adults,Physical Support 18 - 64,Transfer Payments,Personal Budget - Direct Payments - Domiciliary Care,REDACTED PERSONAL DATA,SP11,27/10/2023,"1,623.68"
111256333,Physical Support,Adults,Physical Support 18 - 64,Transfer Payments,Personal Budget - Direct Payments - Domiciliary Care,REDACTED PERSONAL DATA,SP11,27/10/2023,"2,767.60"
111256333,Physical Support,Adults,Physical Support 18 - 64,Transfer Payments,Personal Budget - Direct Payments - Domiciliary Care,REDACTED PERSONAL DATA,SP11,27/10/2023,102.72
111256333,Physical Support,Adults,Physical Support 18 - 64,Transfer Payments,Personal Budget - Direct Payments - Domiciliary Care,REDACTED PERSONAL DATA,SP11,27/10/2023,16.40
110577233,Social Care,Children & Families,Placement Fostering Service,3rd Party Payments,Carers Skills Payments - Advanced,REDACTED PERSONAL DATA,SN3 ,23/10/2023,370.00
108413234,Social Care,Children & Families,Placement Fostering Service,3rd Party Payments,Foster Care Basic Payments,REDACTED PERSONAL DATA,SN3 ,09/10/2023,600.00
108413234,Social Care,Children & Families,Placement Fostering Service,3rd Party Payments,Carers Skills Payments - Advanced,REDACTED PERSONAL DATA,SN3 ,09/10/2023,370.00
110577233,Social Care,Children & Families,Placement Fostering Service,3rd Party Payments,Foster Care Basic Payments,REDACTED PERSONAL DATA,SN3 ,23/10/2023,600.00
108437233,Social Care,Children & Families,Placement Fostering Service,3rd Party Payments,Foster Care Basic Payments,REDACTED PERSONAL DATA,SN2 ,09/10/2023,600.00
110601233,Social Care,Children & Families,Placement Fostering Service,3rd Party Payments,Carers Skills Payments - Core,REDACTED PERSONAL DATA,SN2 ,23/10/2023,216.00
110601233,Social Care,Children & Families,Placement Fostering Service,3rd Party Payments,Foster Care Basic Payments,REDACTED PERSONAL DATA,SN2 ,23/10/2023,600.00
108437233,Social Care,Children & Families,Placement Fostering Service,3rd Party Payments,Carers Skills Payments - Core,REDACTED PERSONAL DATA,SN2 ,09/10/2023,216.00
109504302,High Needs Block,Dedicated Schools Grant (DSG),SEN Resourcing Assessment Panel,3rd Party Payments,Top up funding - Academies and Free Schools Pre 16,DORCAN ACADEMY,SN3 ,16/10/2023,"6,883.67"
109763234,Mainstream Schools Extension,Skills & Attainment,Dorcan Academy PAN,Capital,Contractor Payments,DORCAN ACADEMY,SN3 ,18/10/2023,"40,344.99"
111256409,Physical Support,Adults,Physical Support 18 - 64,Transfer Payments,Personal Budget - Direct Payments - Domiciliary Care,REDACTED PERSONAL DATA,SP11,27/10/2023,890.24
111256409,Physical Support,Adults,Physical Support 18 - 64,Transfer Payments,Personal Budget - Direct Payments - Domiciliary Care,REDACTED PERSONAL DATA,SP11,27/10/2023,586.08
111256409,Physical Support,Adults,Physical Support 18 - 64,Transfer Payments,Personal Budget - Direct Payments - Domiciliary Care,REDACTED PERSONAL DATA,SP11,27/10/2023,65.60
108682233,High Needs Block,Dedicated Schools Grant (DSG),Out of Borough School Fees,3rd Party Payments,OLA Special schools- Pre 16,DOWNLAND SCHOOL WCC FUND A/C,SN10,11/10/2023,"13,561.50"
109030233,High Needs Block,Dedicated Schools Grant (DSG),Out of Borough School Fees,3rd Party Payments,OLA Special schools- Pre 16,DOWNLAND SCHOOL WCC FUND A/C,SN10,11/10/2023,"22,677.49"
111204233,Streetsmart,Streetsmart,Waste - Processing,Transport Costs,Repairs & Maintenance - Vehicles,DOYLE MACHINERY LIMITED,SL6 ,27/10/2023,"4,034.65"
111206233,Streetsmart,Streetsmart,Waste - Processing,Transport Costs,Repairs & Maintenance - Vehicles,DOYLE MACHINERY LIMITED,SL6 ,27/10/2023,492.75
110552394,Homelessness and Travellers,Housing Services,Private Sector Landlords,Transfer Payments,Payment of Costs,REDACTED PERSONAL DATA,SN6 ,23/10/2023,725.00
110552369,Homelessness and Travellers,Housing Services,Private Sector Landlords,Transfer Payments,Payment of Costs,REDACTED PERSONAL DATA,SN6 ,23/10/2023,725.00
111328248,Public Health,Public Health,Health Checks,3rd Party Payments,Contract Payments,REDACTED PERSONAL DATA,SN6 ,27/10/2023,"6,624.00"
111328247,Public Health,Public Health,Health Checks,3rd Party Payments,Contract Payments,REDACTED PERSONAL DATA,SN6 ,27/10/2023,"1,058.00"
107612234,Care Management & Safeguarding,Adults,Mental Capacity & DOL,3rd Party Payments,Contracts - Social Care,REDACTED PERSONAL DATA,BA1 ,04/10/2023,"2,136.00"
108010233,Customer Strategy & Operations,"People, Culture and Organisational Resilience",Cemeteries & Crematoria,Supplies and Services,Fees,REDACTED PERSONAL DATA,SN15,06/10/2023,"2,530.00"
109660234,Customer Strategy & Operations,"People, Culture and Organisational Resilience",Cemeteries & Crematoria,Supplies and Services,Fees,REDACTED PERSONAL DATA,SN15,18/10/2023,"2,860.00"
Corporate Card Transaction,Digital & Business Change,Digital & Business Change,IT Operations,Supplies and Services,Equipment,Drones Direct,,10/10/2023,968
110232310,Physical Support,Adults,Physical Support 18 - 64,3rd Party Payments,Nursing Care,DRUMMOND GRANGE NURSING HOME,EH18,20/10/2023,"6,603.00"
110039233,Learning Disabilities,Adults,Learning Disability 18 - 64,3rd Party Payments,Supported Accommodation Scheme,REDACTED PERSONAL DATA,SN25,23/10/2023,"2,280.00"
110622233,Learning Disabilities,Adults,Learning Disability 18 - 64,Income,Client Contribution - Supported Living,DYNAMIC SUPPORT LTD,SN25,23/10/2023,-121.84
111308251,Learning Disabilities,Adults,Learning Disability 18 - 64,3rd Party Payments,Supported Lodgings (Childrens)/Supported Living (Adults),DYNAMIC SUPPORT LTD,SN25,27/10/2023,"3,879.40"
111308238,Learning Disabilities,Adults,Learning Disability 18 - 64,3rd Party Payments,Supported Lodgings (Childrens)/Supported Living (Adults),DYNAMIC SUPPORT LTD,SN25,27/10/2023,"2,540.04"
111308234,Learning Disabilities,Adults,Learning Disability 18 - 64,3rd Party Payments,Supported Lodgings (Childrens)/Supported Living (Adults),DYNAMIC SUPPORT LTD,SN25,27/10/2023,"2,823.39"
111308256,Learning Disabilities,Adults,Learning Disability 18 - 64,3rd Party Payments,Supported Lodgings (Childrens)/Supported Living (Adults),DYNAMIC SUPPORT LTD,SN25,27/10/2023,"1,832.98"
110622233,Learning Disabilities,Adults,Learning Disability 18 - 64,3rd Party Payments,Supported Lodgings (Childrens)/Supported Living (Adults),DYNAMIC SUPPORT LTD,SN25,23/10/2023,718.08
110622233,Learning Disabilities,Adults,Learning Disability 18 - 64,3rd Party Payments,Supported Lodgings (Childrens)/Supported Living (Adults),DYNAMIC SUPPORT LTD,SN25,23/10/2023,"8,400.00"
110622233,Learning Disabilities,Adults,Learning Disability 18 - 64,3rd Party Payments,Supported Lodgings (Childrens)/Supported Living (Adults),DYNAMIC SUPPORT LTD,SN25,23/10/2023,160.00
110622233,Learning Disabilities,Adults,Learning Disability 18 - 64,3rd Party Payments,Supported Lodgings (Childrens)/Supported Living (Adults),DYNAMIC SUPPORT LTD,SN25,23/10/2023,"5,280.00"
110622233,Learning Disabilities,Adults,Learning Disability 18 - 64,3rd Party Payments,Supported Lodgings (Childrens)/Supported Living (Adults),DYNAMIC SUPPORT LTD,SN25,23/10/2023,"1,072.00"
110255236,Learning Disabilities,Adults,Learning Disability 18 - 64,3rd Party Payments,Personal Budget - Domiciliary care,DYNAMIC SUPPORT LTD,SN25,20/10/2023,-16.72
111308247,Mental Health,Adults,Mental Health 18-64,3rd Party Payments,Supported Lodgings (Childrens)/Supported Living (Adults),DYNAMIC SUPPORT LTD,SN25,27/10/2023,"3,183.39"
110622233,Physical Support,Adults,Physical Support 65 and over,3rd Party Payments,Supported Lodgings (Childrens)/Supported Living (Adults),DYNAMIC SUPPORT LTD,SN25,23/10/2023,"3,920.00"
110622233,Learning Disabilities,Adults,Learning Disability 65 and over,3rd Party Payments,Supported Lodgings (Childrens)/Supported Living (Adults),DYNAMIC SUPPORT LTD,SN25,23/10/2023,"3,920.00"
110622233,Learning Disabilities,Adults,Learning Disability 18 - 64,Income,Client Contribution - Supported Living,DYNAMIC SUPPORT LTD,SN25,23/10/2023,-86.68
111308246,Learning Disabilities,Adults,Learning Disability 18 - 64,3rd Party Payments,Supported Lodgings (Childrens)/Supported Living (Adults),DYNAMIC SUPPORT LTD,SN25,27/10/2023,810.37
111308242,Learning Disabilities,Adults,Learning Disability 18 - 64,3rd Party Payments,Supported Lodgings (Childrens)/Supported Living (Adults),DYNAMIC SUPPORT LTD,SN25,27/10/2023,"4,320.00"
111308233,Learning Disabilities,Adults,Learning Disability 18 - 64,3rd Party Payments,Supported Lodgings (Childrens)/Supported Living (Adults),DYNAMIC SUPPORT LTD,SN25,27/10/2023,"3,836.61"
110622233,Learning Disabilities,Adults,Learning Disability 18 - 64,3rd Party Payments,Supported Lodgings (Childrens)/Supported Living (Adults),DYNAMIC SUPPORT LTD,SN25,23/10/2023,"1,503.88"
110622233,Learning Disabilities,Adults,Learning Disability 18 - 64,3rd Party Payments,Supported Lodgings (Childrens)/Supported Living (Adults),DYNAMIC SUPPORT LTD,SN25,23/10/2023,"1,390.40"
110255236,Learning Disabilities,Adults,Learning Disability 18 - 64,3rd Party Payments,Personal Budget - Domiciliary care,DYNAMIC SUPPORT LTD,SN25,20/10/2023,368.64
110232308,Physical Support,Adults,Physical Support 65 and over,3rd Party Payments,Personal Budget - Domiciliary care,DYNAMIC SUPPORT LTD,SN25,20/10/2023,"5,529.60"
110255236,Physical Support,Adults,Physical Support 18 - 64,3rd Party Payments,Personal Budget - Domiciliary care,DYNAMIC SUPPORT LTD,SN25,20/10/2023,-3.56
110622233,Learning Disabilities,Adults,Learning Disability 18 - 64,Income,Client Contribution - Supported Living,DYNAMIC SUPPORT LTD,SN25,23/10/2023,-11.60
111308245,Learning Disabilities,Adults,Learning Disability 18 - 64,3rd Party Payments,Supported Lodgings (Childrens)/Supported Living (Adults),DYNAMIC SUPPORT LTD,SN25,27/10/2023,"2,780.54"
111308237,Learning Disabilities,Adults,Learning Disability 18 - 64,3rd Party Payments,Supported Lodgings (Childrens)/Supported Living (Adults),DYNAMIC SUPPORT LTD,SN25,27/10/2023,"3,131.96"
111308235,Learning Disabilities,Adults,Learning Disability 18 - 64,3rd Party Payments,Supported Lodgings (Childrens)/Supported Living (Adults),DYNAMIC SUPPORT LTD,SN25,27/10/2023,"2,990.53"
111308257,Learning Disabilities,Adults,Learning Disability 18 - 64,3rd Party Payments,Supported Lodgings (Childrens)/Supported Living (Adults),DYNAMIC SUPPORT LTD,SN25,27/10/2023,683.49
111308253,Learning Disabilities,Adults,Learning Disability 18 - 64,3rd Party Payments,Supported Lodgings (Childrens)/Supported Living (Adults),DYNAMIC SUPPORT LTD,SN25,27/10/2023,"1,945.71"
110622233,Learning Disabilities,Adults,Learning Disability 18 - 64,3rd Party Payments,Supported Lodgings (Childrens)/Supported Living (Adults),DYNAMIC SUPPORT LTD,SN25,23/10/2023,"3,600.00"
110622233,Learning Disabilities,Adults,Learning Disability 18 - 64,3rd Party Payments,Supported Lodgings (Childrens)/Supported Living (Adults),DYNAMIC SUPPORT LTD,SN25,23/10/2023,"1,173.32"
110622233,Learning Disabilities,Adults,Learning Disability 18 - 64,3rd Party Payments,Supported Lodgings (Childrens)/Supported Living (Adults),DYNAMIC SUPPORT LTD,SN25,23/10/2023,"1,720.00"
110622233,Learning Disabilities,Adults,Learning Disability 18 - 64,3rd Party Payments,Supported Lodgings (Childrens)/Supported Living (Adults),DYNAMIC SUPPORT LTD,SN25,23/10/2023,"1,760.00"
110622233,Learning Disabilities,Adults,Learning Disability 18 - 64,3rd Party Payments,Supported Lodgings (Childrens)/Supported Living (Adults),DYNAMIC SUPPORT LTD,SN25,23/10/2023,"2,080.00"
110622233,Learning Disabilities,Adults,Learning Disability 18 - 64,3rd Party Payments,Supported Lodgings (Childrens)/Supported Living (Adults),DYNAMIC SUPPORT LTD,SN25,23/10/2023,"7,280.00"
110622233,Learning Disabilities,Adults,Learning Disability 18 - 64,3rd Party Payments,Supported Lodgings (Childrens)/Supported Living (Adults),DYNAMIC SUPPORT LTD,SN25,23/10/2023,480.00
110622233,Mental Health,Adults,Mental Health 18-64,3rd Party Payments,Supported Lodgings (Childrens)/Supported Living (Adults),DYNAMIC SUPPORT LTD,SN25,23/10/2023,"9,303.00"
110622233,Mental Health,Adults,Mental Health 18-64,3rd Party Payments,Supported Lodgings (Childrens)/Supported Living (Adults),DYNAMIC SUPPORT LTD,SN25,23/10/2023,"8,400.00"
111308244,Learning Disabilities,Adults,Learning Disability 65 and over,3rd Party Payments,Supported Lodgings (Childrens)/Supported Living (Adults),DYNAMIC SUPPORT LTD,SN25,27/10/2023,"2,226.78"
111308255,Physical Support,Adults,Physical Support 18 - 64,3rd Party Payments,Supported Lodgings (Childrens)/Supported Living (Adults),DYNAMIC SUPPORT LTD,SN25,27/10/2023,"3,022.26"
110622233,Learning Disabilities,Adults,Learning Disability 18 - 64,Income,Client Contribution - Supported Living,DYNAMIC SUPPORT LTD,SN25,23/10/2023,-90.24
110622233,Learning Disabilities,Adults,Learning Disability 18 - 64,Income,Client Contribution - Supported Living,DYNAMIC SUPPORT LTD,SN25,23/10/2023,-153.36
110622233,Learning Disabilities,Adults,Learning Disability 18 - 64,Income,Client Contribution - Supported Living,DYNAMIC SUPPORT LTD,SN25,23/10/2023,-17.28
111308250,Learning Disabilities,Adults,Learning Disability 18 - 64,3rd Party Payments,Supported Lodgings (Childrens)/Supported Living (Adults),DYNAMIC SUPPORT LTD,SN25,27/10/2023,"2,167.68"
111308259,Learning Disabilities,Adults,Learning Disability 18 - 64,3rd Party Payments,Supported Lodgings (Childrens)/Supported Living (Adults),DYNAMIC SUPPORT LTD,SN25,27/10/2023,"1,928.57"
110622233,Learning Disabilities,Adults,Learning Disability 18 - 64,3rd Party Payments,Supported Lodgings (Childrens)/Supported Living (Adults),DYNAMIC SUPPORT LTD,SN25,23/10/2023,"2,400.00"
110622233,Learning Disabilities,Adults,Learning Disability 18 - 64,3rd Party Payments,Supported Lodgings (Childrens)/Supported Living (Adults),DYNAMIC SUPPORT LTD,SN25,23/10/2023,"6,320.00"
110622233,Learning Disabilities,Adults,Learning Disability 18 - 64,3rd Party Payments,Supported Lodgings (Childrens)/Supported Living (Adults),DYNAMIC SUPPORT LTD,SN25,23/10/2023,"7,680.08"
110622233,Learning Disabilities,Adults,Learning Disability 18 - 64,3rd Party Payments,Supported Lodgings (Childrens)/Supported Living (Adults),DYNAMIC SUPPORT LTD,SN25,23/10/2023,"5,040.00"
110622233,Learning Disabilities,Adults,Learning Disability 18 - 64,3rd Party Payments,Supported Lodgings (Childrens)/Supported Living (Adults),DYNAMIC SUPPORT LTD,SN25,23/10/2023,"3,120.00"
110622233,Learning Disabilities,Adults,Learning Disability 18 - 64,3rd Party Payments,Supported Lodgings (Childrens)/Supported Living (Adults),DYNAMIC SUPPORT LTD,SN25,23/10/2023,"7,200.00"
110622233,Learning Disabilities,Adults,Learning Disability 18 - 64,Income,Client Contribution - Supported Living,DYNAMIC SUPPORT LTD,SN25,23/10/2023,-125.28
110622233,Learning Disabilities,Adults,Learning Disability 18 - 64,Income,Client Contribution - Supported Living,DYNAMIC SUPPORT LTD,SN25,23/10/2023,-89.80
111308249,Learning Disabilities,Adults,Learning Disability 18 - 64,3rd Party Payments,Supported Lodgings (Childrens)/Supported Living (Adults),DYNAMIC SUPPORT LTD,SN25,27/10/2023,"2,998.21"
111308248,Learning Disabilities,Adults,Learning Disability 18 - 64,3rd Party Payments,Supported Lodgings (Childrens)/Supported Living (Adults),DYNAMIC SUPPORT LTD,SN25,27/10/2023,565.71
110622233,Learning Disabilities,Adults,Learning Disability 18 - 64,3rd Party Payments,Supported Lodgings (Childrens)/Supported Living (Adults),DYNAMIC SUPPORT LTD,SN25,23/10/2023,"1,260.00"
110622233,Learning Disabilities,Adults,Learning Disability 18 - 64,3rd Party Payments,Supported Lodgings (Childrens)/Supported Living (Adults),DYNAMIC SUPPORT LTD,SN25,23/10/2023,"3,440.00"
110622233,Learning Disabilities,Adults,Learning Disability 18 - 64,3rd Party Payments,Supported Lodgings (Childrens)/Supported Living (Adults),DYNAMIC SUPPORT LTD,SN25,23/10/2023,"3,520.00"
110622233,Learning Disabilities,Adults,Learning Disability 18 - 64,3rd Party Payments,Supported Lodgings (Childrens)/Supported Living (Adults),DYNAMIC SUPPORT LTD,SN25,23/10/2023,"3,007.76"
110622233,Learning Disabilities,Adults,Learning Disability 18 - 64,3rd Party Payments,Supported Lodgings (Childrens)/Supported Living (Adults),DYNAMIC SUPPORT LTD,SN25,23/10/2023,"2,640.00"
110622233,Learning Disabilities,Adults,Learning Disability 18 - 64,3rd Party Payments,Supported Lodgings (Childrens)/Supported Living (Adults),DYNAMIC SUPPORT LTD,SN25,23/10/2023,"4,240.00"
110622233,Learning Disabilities,Adults,Learning Disability 18 - 64,3rd Party Payments,Supported Lodgings (Childrens)/Supported Living (Adults),DYNAMIC SUPPORT LTD,SN25,23/10/2023,"8,080.00"
110255236,Learning Disabilities,Adults,Learning Disability 18 - 64,3rd Party Payments,Personal Budget - Domiciliary care,DYNAMIC SUPPORT LTD,SN25,20/10/2023,138.24
111308254,Mental Health,Adults,Mental Health 18-64,3rd Party Payments,Supported Lodgings (Childrens)/Supported Living (Adults),DYNAMIC SUPPORT LTD,SN25,27/10/2023,"3,887.33"
111308258,Learning Disabilities,Adults,Learning Disability 65 and over,3rd Party Payments,Supported Lodgings (Childrens)/Supported Living (Adults),DYNAMIC SUPPORT LTD,SN25,27/10/2023,598.05
110622233,Learning Disabilities,Adults,Learning Disability 18 - 64,Income,Client Contribution - Supported Living,DYNAMIC SUPPORT LTD,SN25,23/10/2023,-7.20
110622233,Learning Disabilities,Adults,Learning Disability 18 - 64,Income,Client Contribution - Supported Living,DYNAMIC SUPPORT LTD,SN25,23/10/2023,-203.04
111308240,Learning Disabilities,Adults,Learning Disability 18 - 64,3rd Party Payments,Supported Lodgings (Childrens)/Supported Living (Adults),DYNAMIC SUPPORT LTD,SN25,27/10/2023,"2,437.70"
111308236,Learning Disabilities,Adults,Learning Disability 18 - 64,3rd Party Payments,Supported Lodgings (Childrens)/Supported Living (Adults),DYNAMIC SUPPORT LTD,SN25,27/10/2023,"4,474.29"
110622233,Learning Disabilities,Adults,Learning Disability 18 - 64,3rd Party Payments,Supported Lodgings (Childrens)/Supported Living (Adults),DYNAMIC SUPPORT LTD,SN25,23/10/2023,"1,002.60"
110622233,Learning Disabilities,Adults,Learning Disability 18 - 64,3rd Party Payments,Supported Lodgings (Childrens)/Supported Living (Adults),DYNAMIC SUPPORT LTD,SN25,23/10/2023,"2,126.40"
110622233,Learning Disabilities,Adults,Learning Disability 18 - 64,3rd Party Payments,Supported Lodgings (Childrens)/Supported Living (Adults),DYNAMIC SUPPORT LTD,SN25,23/10/2023,299.20
110622233,Learning Disabilities,Adults,Learning Disability 18 - 64,3rd Party Payments,Supported Lodgings (Childrens)/Supported Living (Adults),DYNAMIC SUPPORT LTD,SN25,23/10/2023,"7,029.24"
110255236,Learning Disabilities,Adults,Learning Disability 18 - 64,3rd Party Payments,Personal Budget - Domiciliary care,DYNAMIC SUPPORT LTD,SN25,20/10/2023,-14.24
110255236,Learning Disabilities,Adults,Learning Disability 18 - 64,3rd Party Payments,Personal Budget - Domiciliary care,DYNAMIC SUPPORT LTD,SN25,20/10/2023,-18.24
110255236,Learning Disabilities,Adults,Learning Disability 18 - 64,3rd Party Payments,Personal Budget - Domiciliary care,DYNAMIC SUPPORT LTD,SN25,20/10/2023,126.72
110622233,Mental Health,Adults,Mental Health 18-64,3rd Party Payments,Supported Lodgings (Childrens)/Supported Living (Adults),DYNAMIC SUPPORT LTD,SN25,23/10/2023,"1,503.88"
110622233,Physical Support,Adults,Physical Support 65 and over,3rd Party Payments,Supported Lodgings (Childrens)/Supported Living (Adults),DYNAMIC SUPPORT LTD,SN25,23/10/2023,"5,040.00"
110232308,Physical Support,Adults,Physical Support 65 and over,3rd Party Payments,Personal Budget - Domiciliary care,DYNAMIC SUPPORT LTD,SN25,20/10/2023,"1,843.20"
110622233,Learning Disabilities,Adults,Learning Disability 65 and over,3rd Party Payments,Supported Lodgings (Childrens)/Supported Living (Adults),DYNAMIC SUPPORT LTD,SN25,23/10/2023,"3,007.76"
110622233,Physical Support,Adults,Physical Support 18 - 64,3rd Party Payments,Supported Lodgings (Childrens)/Supported Living (Adults),DYNAMIC SUPPORT LTD,SN25,23/10/2023,"3,007.76"
110622233,Learning Disabilities,Adults,Learning Disability 18 - 64,Income,Client Contribution - Supported Living,DYNAMIC SUPPORT LTD,SN25,23/10/2023,-33.04
110622233,Learning Disabilities,Adults,Learning Disability 18 - 64,Income,Client Contribution - Supported Living,DYNAMIC SUPPORT LTD,SN25,23/10/2023,-181.28
110622233,Learning Disabilities,Adults,Learning Disability 18 - 64,Income,Client Contribution - Supported Living,DYNAMIC SUPPORT LTD,SN25,23/10/2023,-62.28
110622233,Learning Disabilities,Adults,Learning Disability 18 - 64,Income,Client Contribution - Supported Living,DYNAMIC SUPPORT LTD,SN25,23/10/2023,-92.88
110622233,Learning Disabilities,Adults,Learning Disability 18 - 64,3rd Party Payments,Supported Lodgings (Childrens)/Supported Living (Adults),DYNAMIC SUPPORT LTD,SN25,23/10/2023,970.48
110622233,Learning Disabilities,Adults,Learning Disability 18 - 64,3rd Party Payments,Supported Lodgings (Childrens)/Supported Living (Adults),DYNAMIC SUPPORT LTD,SN25,23/10/2023,138.08
110622233,Learning Disabilities,Adults,Learning Disability 18 - 64,3rd Party Payments,Supported Lodgings (Childrens)/Supported Living (Adults),DYNAMIC SUPPORT LTD,SN25,23/10/2023,"2,800.00"
110622233,Learning Disabilities,Adults,Learning Disability 18 - 64,3rd Party Payments,Supported Lodgings (Childrens)/Supported Living (Adults),DYNAMIC SUPPORT LTD,SN25,23/10/2023,751.96
110622233,Learning Disabilities,Adults,Learning Disability 18 - 64,3rd Party Payments,Supported Lodgings (Childrens)/Supported Living (Adults),DYNAMIC SUPPORT LTD,SN25,23/10/2023,600.00
110622233,Mental Health,Adults,Mental Health 18-64,3rd Party Payments,Supported Lodgings (Childrens)/Supported Living (Adults),DYNAMIC SUPPORT LTD,SN25,23/10/2023,"2,790.92"
110622233,Learning Disabilities,Adults,Learning Disability 18 - 64,Income,Client Contribution - Supported Living,DYNAMIC SUPPORT LTD,SN25,23/10/2023,-43.68
110622233,Learning Disabilities,Adults,Learning Disability 18 - 64,Income,Client Contribution - Supported Living,DYNAMIC SUPPORT LTD,SN25,23/10/2023,-18.12
111308243,Learning Disabilities,Adults,Learning Disability 18 - 64,3rd Party Payments,Supported Lodgings (Childrens)/Supported Living (Adults),DYNAMIC SUPPORT LTD,SN25,27/10/2023,807.42
111308241,Learning Disabilities,Adults,Learning Disability 18 - 64,3rd Party Payments,Supported Lodgings (Childrens)/Supported Living (Adults),DYNAMIC SUPPORT LTD,SN25,27/10/2023,"2,941.70"
110622233,Learning Disabilities,Adults,Learning Disability 18 - 64,3rd Party Payments,Supported Lodgings (Childrens)/Supported Living (Adults),DYNAMIC SUPPORT LTD,SN25,23/10/2023,"4,880.00"
110622233,Learning Disabilities,Adults,Learning Disability 18 - 64,3rd Party Payments,Supported Lodgings (Childrens)/Supported Living (Adults),DYNAMIC SUPPORT LTD,SN25,23/10/2023,"3,536.12"
110622233,Learning Disabilities,Adults,Learning Disability 65 and over,3rd Party Payments,Supported Lodgings (Childrens)/Supported Living (Adults),DYNAMIC SUPPORT LTD,SN25,23/10/2023,"1,860.60"
111308252,Physical Support,Adults,Physical Support 18 - 64,3rd Party Payments,Supported Lodgings (Childrens)/Supported Living (Adults),DYNAMIC SUPPORT LTD,SN25,27/10/2023,"3,666.78"
110622233,Physical Support,Adults,Physical Support 18 - 64,3rd Party Payments,Supported Lodgings (Childrens)/Supported Living (Adults),DYNAMIC SUPPORT LTD,SN25,23/10/2023,"1,002.60"
110622233,Physical Support,Adults,Physical Support 18 - 64,3rd Party Payments,Supported Lodgings (Childrens)/Supported Living (Adults),DYNAMIC SUPPORT LTD,SN25,23/10/2023,"8,400.00"
110255236,Physical Support,Adults,Physical Support 18 - 64,3rd Party Payments,Personal Budget - Domiciliary care,DYNAMIC SUPPORT LTD,SN25,20/10/2023,92.16
110622233,Learning Disabilities,Adults,Learning Disability 18 - 64,Income,Client Contribution - Supported Living,DYNAMIC SUPPORT LTD,SN25,23/10/2023,-26.32
110622233,Learning Disabilities,Adults,Learning Disability 18 - 64,Income,Client Contribution - Supported Living,DYNAMIC SUPPORT LTD,SN25,23/10/2023,-1.84
109504242,High Needs Block,Dedicated Schools Grant (DSG),SEN Resourcing Assessment Panel,3rd Party Payments,Top up funding - Maintained providers Pre 16,EAST WICHEL COMMUNITY PRIMARY SCHOOL,SN1 ,16/10/2023,"3,482.08"
107793233,DSG Other Funding,Dedicated Schools Grant (DSG),DFE Additional Grants,Supplies and Services,Payments to Educational Bodies,EAST WICHEL COMMUNITY PRIMARY SCHOOL,SN1 ,04/10/2023,856.93
108747233,DSG Other Funding,Dedicated Schools Grant (DSG),DFE Additional Grants,3rd Party Payments,Payment of Pupil Premium to school,EAST WICHEL COMMUNITY PRIMARY SCHOOL,SN1 ,13/10/2023,"6,280.00"
108725233,Schools - Primary,Dedicated Schools Grant (DSG),Primary School Budgets,3rd Party Payments,Mainstream Delegated Funding,EAST WICHEL COMMUNITY PRIMARY SCHOOL,SN1 ,13/10/2023,"129,531.00"
110232285,Learning Disabilities,Adults,Learning Disability 18 - 64,3rd Party Payments,Residential Care,EASTERBROOK FARM LTD,EX20,20/10/2023,"5,047.36"
110232285,Learning Disabilities,Adults,Learning Disability 18 - 64,Income,Client Contribution - Residential,EASTERBROOK FARM LTD,EX20,20/10/2023,-483.20
108114233,DSG Other Funding,Dedicated Schools Grant (DSG),LAC pupil premium,3rd Party Payments,Education / Training,EB EDUCATION SERVICES LTD,SK4 ,06/10/2023,"10,275.00"
